Workbook

Sheet Help
B3: If you have any questions or comments concerning this program, or would like to obtain an updated version of this program (if it has been updated) contact the Rigid Pavements and Concrete Materials Branch of the Construction Division at 512-506-5856 or you may contact one of the representatives of the SiteManager material management system.
A8: * | B8: Requirements: Sheets in this workbook that have a red tab are required. Sheets in this workbook that have an yellow tab may be required depending on the project. Other sheets are optional.
A9: * | B9: Getting Started: Begin with the "Mix Design" sheet. Here you will select dependent variables such as specification year, class of concrete, nominal maximum aggregate size, water/cement (W/C) ratio, and others. These variables will affect the calculations on other sheets in the workbook.
B13: • | C13: Spec Year: Built-in specifications are only applicable to the 2004 Texas Standard Specifications.
B14: • | C14: Class of Concrete: Select the correct concrete class for this project. Clicking in the light blue cell, adjacent to the class label, will reveal a small dropdown list. From this list select the class that matches your mix. This class will determine the specifications displayed. If the class of concrete does not have a specification, "Input at right" will be displayed. At this point, type a requirement in the light blue cell adjacent to this message. If necessary, consult the "2004, Item 421 Info " sheet.
B19: • | C19: Nominal Maximum Aggregate Size: Select the nominal maximum aggregate size.
B20: • | C20: Slump: Input the initial slump. If necessary, consult the "2004, Item 421 Info" sheet.
B21: • | C21: Optimized Gradation Design: Select yes or no if this design will utilize Tex-470-A, "Optimized Aggregate Gradation for Hydraulic Cement Concrete Mix Designs."
B22: • | C22: Air-Entrained or Non Air-Entrained Concrete: Select if the concrete will be air entrained or non-air entrained by choosing from the dropdown list. Select if mix design is to be used for rigid pavement, by choosing from the dropdown list. Select if air entrainment will be reduced by 1% if compressive strength exceeds 5,000 psi. If non air-entrained, the approximate entrapped air based on ACI 211 Table 6.3.3 will be displayed. If desired, you can input a different entrapped air voids content in the cell below.
B27: • | C27: Target Strength: If desired, input an alternate minimum 28-day compressive strength than the concrete class' requirement. (Bear in mind that the larger of the two strengths will be used.) From the inputed data on the "Producer Data" sheet, the producer's standard deviation, S, and the number of tests used to estimate S will be displayed. If you have already calculated S, you can input S and the number of tests used to calculate S without having to input data on the "Producer Data" sheet.
B32: • | C32: Mix Design Option: If applicable, select the mix design option from the dropdown list. If Option 6 or 7 is selected, input the maximum % Na2O equivalent in cement. If Option 8 is selected, input the material % expansion and check if testing laboratory is on approved list:
D35: ftp://ftp.dot.state.tx.us/pub/txdot-info/cmd/mpl/commlabC1260.pdf
B36: • | C36: W/C or W/CM: If desired, input an alternate W/C or W/CM than the concrete class' requirement. (Bear in mind that the smaller of the two ratios will be used.)
C38: For Non-ACI 211 Mix Proptions, input below cells. For ACI 211 Design go to Matl Propterties Tab and Mix Proportions via ACI 211 Tab
B39: • | C39: Paste Components:
D40: Water: Input source, volume, and weight.
D41: Cementitious Materials: Input type/class, source, volume, and weight.
D42: Admixtures: Input type, source, and dosage (fl oz./100 lbs. cement).
B43: • | C43: Other Components: Input source, volume, and weight for fibers and other components.
B44: • | C44: Aggregates: Input grade and source for each aggregate.
D45: Non-Optimized Mix Designs: Input volume and weight.
D46: Optimized Mix Designs: Input percentages of total aggregate volume.
B47: • | C47: Weight of Full Truck: If desired, input the capacity of the concrete truck for estimation of the weight of concrete in a full truck.
A49: * | B49: Move on to the "Matl Properties" sheet. Input the properties in the light blue cells. Some properties are required when using an optimized mix design. All properties are necessary to calculate a concrete mix design via ACI 211.
B50: • | C50: Aggregates: Specific gravities of aggregates are required when using an optimized mix design.
B51: • | C51: % Solids in Admixtures: Go to the Material Producer List for Chemical Admixtures for Concrete (see below link) to find the % solids for the admixture(s) to be used. The % solids will affect the adjusted weight of water.
D53: ftp://ftp.dot.state.tx.us/pub/txdot-info/cmd/mpl/admixtur.pdf
A54: * | B54: Move on to the "Optimized Gradation" sheet. Input the sieve analysis results in the light blue cells. This sheet is required when using an optimized mix design.
A55: * | B55: Move on to the "Mix Proportions via ACI 211" sheet if using ACI 211 Design. This sheet will calculate a concrete mix design.
B56: • | C56: Construction Details: Inputting these details will assist in determining an appropriate nominal maximum aggregate size.
B58: • | C58: Nominal Maximum Aggregate Size: Based on the guidelines provided by specification requirements and the construction details, select the nominal maximum aggregate size.
B60: • | C60: Water Adjustment: For aggregate shape & texture, optimized aggregate gradation, air entraining admixture, etc, change the water adjustment factor by inputing a percentage for each category based on the guidelines adjacent to each category. A negative number will decrease the water and a positive number will increase the water.
B64: • | C64: Coarse Aggregate Factor: If desired, specify a Coarse Aggregate Factor different from the calculated Coarse Aggregate Factor. Note, it only calculates once material properties are entered. The calculation is based on ACI 211 Table 6.3.6.
B67: • | C67: Paste Components: Input Water, Cement, Admixtures ( fl oz. per CY), percentage of agggregates. Ensure the W/Cm ratio is less than controlling W/Cm ratio.
B70: • | C70: Weight of Full Truck: If desired, input the capacity of the concrete truck for estimation of the weight of concrete in a full truck.
A72: * | B72: Move on to the "Trial Batch Results" sheet. Input the trial batch results for caluculation of target strengths.
B73: • | C73: Trial Batch Results: On the "Trial Batch Results" sheet, input the trial batch results for calculation of target strengths.
A74: * | B74: Move on to Batch Tolerances.
B75: • | C75: Non-Volumetric Mixer Tolerances: On the "Non-Vol. Mixers Tolerances" sheet, you can enter a batch size, amount of ice to be used (if applicable) and surface moisture contents and the sheet will display the batch weights, volumes, and non-volumetric tolerances as required by Item 421.
B78: • | C78: Volumetric Mixer Tolerances: On the "Vol. Mixers Tolerances" sheet, you can enter a batch size, amount of ice to be used (if applicable) and surface moisture contents and the sheet will display the batch weights, volumes, and volumetric mixer tolerances as required by Item 421.
A81: * | B81: Move on to the "Producer Data" sheet. Input the date and compressive strength for each test for calculation of the standard deviation. Note: ACI 318 requires production data from two separate runs to be calculated individually and then averaged; however, TxDOT allows multiple production run data to be combined for calculation of the standard deviation.
A83: * | B83: Move on to the "Effects of Air on Yield" sheet. This is an informational sheet only.
A85: * | B85: To move from page to page click on the different sheet tabs at the bottom of the page.
A88: * | B88: For TxDOT personel: To import a complete HCCMxDes2 template into SiteManager, use the following instructions.
B89: • | C89: Logon to SiteManager.
B90: • | C90: Create/open the SiteManager Sample ID.
B91: • | C91: Open the HCCMxDes2 test.
B92: • | C92: With the XiteManager toolbar:
C93: • | D93: Select CUSTOM TOOLS.
C94: • | D94: Select IMPORT.
C95: • | D95: Browse to the HCCMxDes2 file to import.

Sheet Mix Design
A1: TxDOT Test Procedures >
B2: TEXAS DEPARTMENT OF TRANSPORTATION | O2: 643
O3: 7
O4: HCCMxDes2.xlsm::42072.434317
B5: HYDRAULIC CEMENT CONCRETE MIX DESIGN & CONTROL
B6: Mix Design
L7: ="File Version: " & TEXT(MID(sn,SEARCH("::",sn,1)+2,20),"mm/dd/yy hh:mm:ss") -> File Version: 03/09/15 10:25:25
B8: SAMPLE ID: | H8: SAMPLED DATE:
B9: TEST NUMBER: | H9: LETTING DATE:
C10: SAMPLE STATUS: | H10: CONTROLLING CSJ:
B11: COUNTY: | H11: SPEC YEAR:
B12: SAMPLED BY: | H12: SPEC ITEM:
B13: SAMPLE LOCATION: | H13: SPECIAL PROVISION:
B14: MATERIAL CODE: | H14: CLASS:
B15: MATERIAL NAME:
B16: PRODUCER:
B17: AREA ENGINEER: | H17: PROJECT MANAGER:
B19: COURSE\LIFT: | F19: STATION: | I19: DIST. FROM CL:
B21: Plant: | F21: Design #: | I21: Date:
B24: PROJECT SUMMARY | E24: See Item 421, Table 5 | J24: SELECTING AIR-ENTRAINMENT
B25: Design Strength, Min. 28-day f'c (psi): | F25: =IF(ConcreteClass="","",VLOOKUP(ConcreteClass,'Hidden Tables'!A3:E22,2)) ->  | H25: =IF(G25="",F25,G25) ->  | J25: Air-Entrained:
B26: Maximum W/C Ratio: | F26: =IF(ConcreteClass="","",VLOOKUP(ConcreteClass,'Hidden Tables'!A3:E22,3)) ->  | H26: =IF(G26="",F26,G26) ->  | J26: Pavement:
B27: Max. Nominal Aggregate Size (inches): | F27: =IF(ConcreteClass="","",VLOOKUP(ConcreteClass,'Hidden Tables'!A3:E22,4)) ->  | H27: =IF(G27="",F27,G27) ->  | J27: Reduce air content by 1%, based on strength above 5,000 psi?:
B28: Min. Nominal Aggregate Size (inches): | F28: =IF(ConcreteClass="","",VLOOKUP(ConcreteClass,'Hidden Tables'!A3:E22,5)) ->  | H28: =IF(G28="",F28,G28) -> 
B29: Nominal Maximum Aggregate Size, (inches): | J29: Specified total air content, %: | M29: =IF(AND(M25="",M26=""),"",IF(M25="No",0,IF(AND(M27="Yes",M26="Yes"),3,IF(AND(M27="Yes",M26="No"),4.5,IF(M26="Yes",4,5.5))))) -> 
B30: See Item 421, Table 8 | D30: Initial Slump, (inches): | J30: Plan note air content, %:
B31: Optimized Gradation Design: | J31: Approximate entrapped air content, % : | M31: =IF(M25="No",IF(F29=0.375,3,IF(F29=0.5,2.5,IF(F29=0.75,2,IF(F29=1,1.5,IF(F29=1.5,1,0.5))))),0) -> 0
J32: Entrapped air content different from above, % :
B33: SELECTING TARGET STRENGTH
B34: Min. 28-day compressive strength based on class of concrete f 'c min., (psi): | H34: =IF(F25="Input at right",IF(G25="","",G25),F25) -> 
B35: Specified minimum 28-day compressive strength f 'c min., (psi): | J35: SELECTING MIX DESIGN OPTION
B36: Maximum of preceding 2 rows f 'c*, (psi): | H36: =IF(AND(H34="",H35=""),"",MAX(H34:H35)) ->  | J36: See Item 421.4.A.6
B37: Producer's standard deviation (index of producer's precision), S (psi): | J37: Mix Design Option:
B38: Producer's standard deviation from inputted data, S (psi): | H38: =IF(ISBLANK(H37),IF('Producer Data'!J50="","",'Producer Data'!J50),H37) ->  | J38: Max. % NA2O equivalent in cement | O38: =IF(N(H38)<=300,470,IF(AND(N(H38)>300,N(H38)<=400),620,IF(AND(N(H38)>400,N(H38)<=500),850,IF(AND(N(H38)>500,N(H38)<=600),1120,1390)))) -> 470
B39: Producer Data | D39: Number of tests of a concrete mixture used to estimate S: | J39: lb. alkali per cu. yd. | M39: =IF(ISERROR((K54*M38)/100)," ",IF(OR(MixDesOption=6,MixDesOption=7),((K54*M38)/100),"")) ->  | O39: =IF(version>1,IF(N(H38)<=300,430,IF(AND(N(H38)>300,N(H38)<=400),580,IF(AND(N(H38)>400,N(H38)<=500),760,IF(AND(N(H38)>500,N(H38)<=600),1010,1260)))), IF(N(H38)<=300,470,IF(AND(N(H38)>300,N(H38)<=400),620,IF(AND(N(H38)>400,N(H38)<=500),850,IF(AND(N(H38)>500,N(H38)<=600),1120,1390))))) -> 430
B40: Number of tests from inputted data: | H40: =IF(ISBLANK(H39),IF('Producer Data'!J51="","",'Producer Data'!J51),H39) ->  | J40: ASTM C 1567 % Expansion: | O40: =IF(N(H38)<=300,400,IF(AND(N(H38)>300,N(H38)<=400),530,IF(AND(N(H38)>400,N(H38)<=500),670,IF(AND(N(H38)>500,N(H38)<=600),900,1130)))) -> 400
B41: Over design amount, A (psi): | H41: =IF(COUNTBLANK(H34:H40)=7,"",IF(ConcreteClass="CLASS P",0,IF(N(H40)<15,IF(N(H36)<3000,1000,IF(AND(N(H36)>=3000,N(H36)<=5000),1200,1400)),IF(AND(N(H40)>=15,N(H40)<20),O38,IF(AND(N(H40)>=20,N(H40)<30),O39,O40))))) ->  | J41: Approved Lab Used?:
B42: Mix design target strength, f 'cr = f'c* + A, f 'cr, (psi): | H42: =IF(ISERROR(H36+H41),"",H36+H41) -> 
B44: SELECTING W/C OR W/CM
B45: Maximum w/c or w/cm based on class of concrete: | H45: =IF(F26="Input at right",G26,F26) -> 
B46: Specified maximum w/c or w/cm:
B47: Mix Design w/c or w/cm = minimum value from preceding 2 rows: | H47: =IF(AND(H45="",H46=""),"",MIN(H45:H46)) -> 
B48: Max. cementitious material content ,lbs/CY: (should be 700 lbs/CY unless otherwise specified or approved)
C51: Mix Component | E51: Type/Class/ Grade | F51: Producer/Source | H51: % or Dosage* | I51: Absolute Vol. (ft3) | K51: SSD† Weight (lbs/CY)
B52: Paste | C52: Basic Water Demand:
C53: Total Cementitious: | F53: =IF(K53="","",IF(ROUND((N(K52)+N(K69)+N(K70))/N(K53),2)<=N(H47),"",CONCATENATE("Exceeds Controlling W/Cm! "))) ->  | I53: =IF(ISBLANK(K52),"",IF(OR(ISERROR((K69+K70+K52)/(SUM(K54:K61))),((K69+K70+K52)/(SUM(K54:K61)))=0),"","W/Cm = "&ROUND(((K69+K70+K52)/(SUM(K54:K61))),2))) ->  | K53: =IF(ISBLANK(K54),"",IF(ISERROR(ROUND(SUM(K54:K61),0)),"",ROUND(SUM(K54:K61),0))) -> 
C54: Portland Cement: | H54: =IF(ISBLANK(K54),"",ROUND(K54/K53*100,0)) -> 
C55: Flyash: | H55: =IF(ISBLANK(K55),"",ROUND(K55/K53*100,0)) -> 
C56: GGBF Slag: | H56: =IF(ISBLANK(K56),"",ROUND(K56/K53*100,0)) -> 
C57: Silica Fume: | H57: =IF(ISBLANK(K57),"",ROUND(K57/K53*100,0)) -> 
C58: UFFA: | H58: =IF(ISBLANK(K58),"",ROUND(K58/K53*100,0)) -> 
C59: MFFA: | H59: =IF(ISBLANK(K59),"",ROUND(K59/K53*100,0)) -> 
C60: Metakaolin: | H60: =IF(ISBLANK(K60),"",ROUND(K60/K53*100,0)) -> 
C61: Other Pozzolan: | H61: =IF(ISBLANK(K61),"",ROUND(K61/K53*100,0)) -> 
C62: Air entraining admixture: | I62: =IF(ISBLANK(H62),"",IF(ISERROR(ROUND((N(H62)*(N($K$53)/100))*(1.044379*10^-3),2)),"",ROUND((N(H62)*(N($K$53)/100))*(1.044379*10^-3),2))) -> 
C63: Set retarder: | E63: B
C64: Accelerator: | E64: C
C65: Water Reducer: | E65: A
C66: High-Range Water Reducer: | E66: F
C67: Water Reducing Retarder: | E67: D
C68: High-Range Water Reducing Retarder: | E68: G
C69: Lithium Nitrate Admixture: | L69: =IF(ISBLANK(H69),"", "Input at Left - Water Contribution (lbs/CY) ") -> 
C70: Corrosion Inhibitor: | L70: =IF(ISBLANK(H70),"", "Input at Left - Water Contribution (lbs/CY) ") -> 
C71: Paste Volume = Total (water + cm): | I71: =IF(COUNTBLANK(I54:J70)=17,"",I52+SUM(I54:J70)) -> 0
B72: Air | C72: Entrapped air: | H72: =IF(M25="Yes",0,IF(OR(ISBLANK(M32),M32=""),M31,M32)) -> 0 | I72: =IF(H72="","",ROUND((27*(H72/100)),2)) -> 0
C73: Target Total Air Content: | H73: =IF(ISBLANK(M29),0,IF(ISBLANK(M30),M29,M30)) ->  | I73: =IF(H73="","",ROUND((27*(H73/100)),2)) -> 
C74: Air + Paste Volume: | I74: =IF(ISERROR(I71+I72+I73),"",I71+I72+I73) -> 
B75: Other | C75: Fibers:
B77: Non Optimized Aggregates | C77: Total Aggregate Volume: | I77: =IF(ISBLANK(I78),"",SUM(I78:I83)) ->  | J77: =IF(ISBLANK(J78),"",SUM(J78:J83)) ->  | K77: =IF(ISBLANK(K78),"",SUM(K78:K83)) -> 
C78: Coarse Aggregate 1:
C79: Coarse Aggregate 2:
C80: Intermediate Aggregate 1:
C81: Intermediate Aggregate 2:
C82: Fine Aggregate 1:
C83: Fine Aggregate 2:
B84: Optimized Aggregates | C84: Total Aggregate Volume: | H84: =IF(ISERROR(SUM(H85:H90)),"",SUM(H85:H90)) -> 0 | I84: =IF(I74="","",27-I75-I76-I74) ->  | K84: =IF(ISERROR(SUM(K85:K90)),"",SUM(K85:K90)) -> 0
C85: Coarse Aggregate 1: | I85: =IF(OR(ISERROR($I$84*(H85/100)),ISBLANK(H85)),"",ROUND($I$84*(H85/100),2)) ->  | K85: =IF(OR(ISBLANK(H85),ISERROR(I85*62.4*'Matl Properties'!$C$24)),"",I85*62.4*'Matl Properties'!$C$24) -> 
C86: Coarse Aggregate 2: | K86: =IF(OR(ISBLANK(H86),ISERROR(I86*62.4*'Matl Properties'!$C$25)),"",I86*62.4*'Matl Properties'!$C$25) -> 
C87: Intermediate Aggregate 1: | K87: =IF(OR(ISBLANK(H87),ISERROR(I87*62.4*'Matl Properties'!$C$26)),"",I87*62.4*'Matl Properties'!$C$26) -> 
C88: Intermediate Aggregate 2: | K88: =IF(OR(ISBLANK(H88),ISERROR(I88*62.4*'Matl Properties'!$C$27)),"",I88*62.4*'Matl Properties'!$C$27) -> 
C89: Fine Aggregate 1: | K89: =IF(OR(ISBLANK(H89),ISERROR(I89*62.4*'Matl Properties'!$C$28)),"",I89*62.4*'Matl Properties'!$C$28) -> 
C90: Fine Aggregate 2: | K90: =IF(OR(ISBLANK(H90),ISERROR(I90*62.4*'Matl Properties'!$C$29)),"",I90*62.4*'Matl Properties'!$C$29) -> 
H92: CY | I92: Absolute Vol. (ft3) | K92: SSD Weight (lbs/CY) | L92: lbs/ft3
C93: Total Weight / CY: | K93: =IF(F31="Yes",ROUND((N(K52)+N(K53)+N(K69)+N(K70)+SUM(K75:K76)+N(K84)),0),ROUND((N(K52)+N(K53)+N(K69)+N(K70)+SUM(K75:K76)+N(K77)),0)) -> 0
C94: Size of Truck:
C95: Est. Total Weight / Truck: | K95: =N(K93)*N(H94) -> 0
C96: Total Absolute Volume: | I96: =IF(F31="Yes",N(I74)+SUM(I75:J76)+SUM(I85:J90),N(I74)+SUM(I75:J76)+SUM(I78:J83)) -> 0
C97: Theoretical Weight of Concrete Computed on an Air-Free Basis**: | L97: =IF(ISERROR(N(K93)/(N(I96)-N(I72)-N(I73))),"",(ROUND((N(K93)/(N(I96)-N(I72)-N(I73))),1))) -> 
C98: Design Yield (Unit Weight): | L98: =IF(ISERROR(K93/N(I96)),"",ROUND((N(K93)/N(I96)),1)) -> 
C99: * Dosage (fl oz./100 lbs. cement)
C100: † Aggregate weights should be inputed as saturated-surface dry weights.
C101: ◄ Only applicable if non air-entrained concrete.
C102: ▼ Only applicable if air-entrained concrete.
C103: ** See Tex-417-A (ASTM C 138)
B105: Remarks: | D105: =NOW() -> 2015-06-23T15:06:35.770
B111: Test Stamp Code: | F111: Omit Test: | G111: Completed Date: | H111: Reviewed By:
B113: Locked By: | D113: TxDOT: | E113: District: | F113: Area:
B115: Authorized By: | F115: Authorized Date:
G116: =IF(OR(AuthorizedDate="",AuthorizedDate>40659),2,1) -> 2

Sheet Matl Properties
A1: TxDOT Manuals > | E1: Tex-402-A | F1: Tex-403-A | G1: Tex-404-A | H1: Tex-409-A
B2: HELP | E2: Material Producer List
B3: TEXAS DEPARTMENT OF TRANSPORTATION
B5: HYDRAULIC CEMENT CONCRETE MIX DESIGN & CONTROL
B6: Material Properties
B8: SAMPLE ID | D8: =IF('Mix Design'!E8="","",'Mix Design'!E8) ->  | G8: SAMPLED DATE: | I8: =IF('Mix Design'!I8="","",'Mix Design'!I8) -> 
B9: TEST NUMBER: | D9: =IF('Mix Design'!E9="","",'Mix Design'!E9) ->  | G9: LETTING DATE: | I9: =IF('Mix Design'!I9="","",'Mix Design'!I9) -> 
B10: SAMPLE STATUS: | D10: =IF('Mix Design'!E10="","",'Mix Design'!E10) ->  | G10: CONTROLLING CSJ: | I10: =IF('Mix Design'!I10="","",'Mix Design'!I10) -> 
B11: COUNTY: | D11: =IF('Mix Design'!E11="","",'Mix Design'!E11) ->  | G11: SPEC YEAR: | I11: =IF('Mix Design'!I11="","",'Mix Design'!I11) -> 
B12: SAMPLED BY: | D12: =IF('Mix Design'!E12="","",'Mix Design'!E12) ->  | G12: SPEC ITEM: | I12: =IF('Mix Design'!I12="","",'Mix Design'!I12) -> 
B13: SAMPLE LOCATION: | D13: =IF('Mix Design'!E13="","",'Mix Design'!E13) ->  | G13: SPECIAL PROVISION: | I13: =IF('Mix Design'!I13="","",'Mix Design'!I13) -> 
B14: MATERIAL CODE: | D14: =IF('Mix Design'!E14="","",'Mix Design'!E14) ->  | G14: CLASS: | I14: =IF('Mix Design'!I14="","",'Mix Design'!I14) -> 
B15: MATERIAL NAME: | D15: =IF('Mix Design'!E15="","",'Mix Design'!E15) -> 
B16: PRODUCER: | D16: =IF('Mix Design'!E16="","",'Mix Design'!E16) -> 
B17: AREA ENGINEER: | D17: =IF('Mix Design'!E17="","",'Mix Design'!E17) ->  | G17: PROJECT MANAGER: | I17: =IF('Mix Design'!I17="","",'Mix Design'!I17) -> 
B19: COURSE\LIFT: | D19: =IF('Mix Design'!E19="","",'Mix Design'!E19) ->  | E19: =IF('Mix Design'!E19="","",'Mix Design'!E19) ->  | F19: STATION: | G19: =IF('Mix Design'!G19="","",'Mix Design'!G19) ->  | H19: DIST. FROM CL: | J19: =IF('Mix Design'!L19="","",'Mix Design'!L19) -> 
B21: AGGREGATE PROPERTIES (FROM LABORATORY TESTING) | K21: `
C22: Specific Gravity (SSD) | D22: Rodded Unit Weight (UDRY) | F22: Fineness Modulus (FM) | G22: Absorption (%) | H22: Unit Weight (SSD)
B23: Test Method | C23: Tex-403-A | D23: Tex-404-A | F23: Tex-402-A | G23: Tex-403-A
B24: Coarse Aggregate 1: | H24: =IF(ISBLANK(D24)," ",ROUND(D24*(1+G24/100),2)) -> 
B25: Coarse Aggregate 2: | H25: =IF(ISBLANK(D25)," ",ROUND(D25*(1+G25/100),2)) -> 
B26: Intermediate Aggregate 1: | H26: =IF(ISBLANK(D26)," ",ROUND(D26*(1+G26/100),2)) -> 
B27: Intermediate Aggregate 2: | H27: =IF(ISBLANK(D27)," ",ROUND(D27*(1+G27/100),2)) -> 
B28: Fine Aggregate 1:
B29: Fine Aggregate 2:
B31: CEMENTITIOUS MATERIALS | E31: CHEMICAL ADMIXTURES
C32: Specific Gravity | H32: % Solids
B33: Hydraulic cement | E33: Air entraining admixutre
B34: Fly Ash | E34: Set Retarder
B35: Ground Granulated Blast Furnace Slag | E35: Accelerator
E36: Water reducer
B37: Silica Fume | E37: High-range water reducer
B38: UFFA | E38: Water reducing retarder
B39: MFFA | E39: High-range water reducing retarder
B40: Metakaolin | E40: Lithium nitrate admixture
B41: Other Pozzolan | E41: Corrosion inhibitor
B43: OTHER MATERIALS
D44: Specific Gravity
B45: Fibers
B46: =IF(ISBLANK('Mix Design'!C76),"",'Mix Design'!C76) -> 

Sheet Optimized Gradation
B1: TxDOT Manuals > | F1: Tex-470-A
C2: HELP
B4: HYDRAULIC CEMENT CONCRETE MIX DESIGN & CONTROL
B5: Optimized Gradation
B7: SAMPLE ID | D7: =IF('Mix Design'!E8="","",'Mix Design'!E8) ->  | G7: SAMPLED DATE: | I7: =IF('Mix Design'!I8="","",'Mix Design'!I8) -> 
B8: TEST NUMBER: | D8: =IF('Mix Design'!E9="","",'Mix Design'!E9) ->  | G8: LETTING DATE: | I8: =IF('Mix Design'!I9="","",'Mix Design'!I9) -> 
B9: SAMPLE STATUS: | D9: =IF('Mix Design'!E10="","",'Mix Design'!E10) ->  | G9: CONTROLLING CSJ: | I9: =IF('Mix Design'!I10="","",'Mix Design'!I10) -> 
B10: COUNTY: | D10: =IF('Mix Design'!E11="","",'Mix Design'!E11) ->  | G10: SPEC YEAR: | I10: =IF('Mix Design'!I11="","",'Mix Design'!I11) -> 
B11: SAMPLED BY: | D11: =IF('Mix Design'!E12="","",'Mix Design'!E12) ->  | G11: SPEC ITEM: | I11: =IF('Mix Design'!I12="","",'Mix Design'!I12) -> 
B12: SAMPLE LOCATION: | D12: =IF('Mix Design'!E13="","",'Mix Design'!E13) ->  | G12: SPECIAL PROVISION: | I12: =IF('Mix Design'!I13="","",'Mix Design'!I13) -> 
B13: MATERIAL CODE: | D13: =IF('Mix Design'!E14="","",'Mix Design'!E14) ->  | G13: CLASS: | I13: =IF('Mix Design'!I14="","",'Mix Design'!I14) -> 
B14: MATERIAL NAME: | D14: =IF('Mix Design'!E15="","",'Mix Design'!E15) -> 
B15: PRODUCER: | D15: =IF('Mix Design'!E16="","",'Mix Design'!E16) -> 
B16: AREA ENGINEER: | D16: =IF('Mix Design'!E17="","",'Mix Design'!E17) ->  | G16: PROJECT MANAGER: | I16: =IF('Mix Design'!I17="","",'Mix Design'!I17) -> 
B18: COURSE\LIFT: | D18: =IF('Mix Design'!E19="","",'Mix Design'!E19) ->  | E18: =IF('Mix Design'!E18="","",'Mix Design'!E18) ->  | F18: STATION: | G18: =IF('Mix Design'!G19="","",'Mix Design'!G19) ->  | H18: DIST. FROM CL: | J18: =IF('Mix Design'!L19="","",'Mix Design'!L19) -> 
B20: SIEVE ANALYSIS
B21: Sieve Size | C21: Sieve Size (in) | D21: Coarse Agg. 1 % Passing | E21: Coarse Agg. 2 % Passing | F21: Intermediate Agg. 1 % Passing | G21: Intermediate Agg. 2 % Passing | H21: Fine Agg. 1 % Passing | I21: Fine Agg. 2 % Passing | J21: Combined % Passing | K21: Combined Cumulative % Retained | L21: Combined % Retained | N21: 0.45 Sieve Sizes | S21: 0.45 Sieve Sizes | T21: % Passing | V21: Coarseness Chart
B22: 2 1/2 in | C22: 2.5 | J22: =IF(ISERROR(D22*$D$37+E22*$E$37+F22*$F$37+G22*$G$37+H22*$H$37+I22*$I$37),"",D22*$D$37+E22*$E$37+F22*$F$37+G22*$G$37+H22*$H$37+I22*$I$37) -> 0 | K22: =IF(ISERROR(100-J22),"",100-J22) -> 100 | L22: =K22 -> 100 | N22: =C22^0.45 -> 1.510334016 | O22: Minimum Density Line | P22: =IF(P25=N23,N24,IF(P25=N24,N25,IF(P25=N25,N26,IF(P25=N26,N27,IF(P25=N27,N28))))) -> FALSE | Q22: 100 | S22: 1.510334016 | T22: 100 | V22: 30 | W22: 34.992 | X22: 52 | Y22: 34
B23: 2 in | C23: 2 | J23: 0 | K23: 100 | L23: =IF(ISERROR(K23-K22),"",K23-K22) -> 0 | N23: 1.366040257 | P23: 0 | Q23: 0 | S23: 1.510334016 | T23: 0 | V23: 40 | W23: 33.206 | X23: 52 | Y23: 38 | Z23: 45 | AA23: 32.3
B24: 1 1/2 in | C24: 1.5 | J24: 0 | K24: 100 | L24: 0 | N24: 1.200165302 | V24: 50 | W24: 31.42 | Z24: 50 | AA24: 31.42
B25: 1 in | C25: 1 | J25: 0 | K25: 100 | L25: 0 | N25: 1 | O25: Density Line | P25: =IF(J23<=90,N22,IF(J24<=90,N23,IF(J25<=90,N24,IF(J26<=90,N25,IF(J27<=90,N26))))) -> 1.510334016 | Q25: 100 | S25: 1.366040257 | T25: 100 | V25: 60 | W25: 29.634 | X25: 68 | Y25: 32 | Z25: 60 | AA25: 29.634
B26: 3/4 in | C26: 0.75 | J26: 0 | K26: 100 | L26: 0 | N26: 0.8785724254 | P26: 0 | Q26: 0 | S26: 1.366040257 | T26: 0 | V26: 70 | W26: 27.848 | X26: 68 | Y26: 36 | Z26: 70 | AA26: 27.848
B27: 1/2 in | C27: 0.5 | J27: 0 | K27: 100 | L27: 0 | N27: 0.732042848 | V27: 80 | W27: 26.062 | Z27: 75 | AA27: 26.95
B28: 3/8 in | C28: 0.375 | J28: 0 | K28: 100 | L28: 0 | N28: 0.6431526605 | O28: Maximum Density Line | P28: =IF(P25=N23,N22,IF(P25=N24,N23,IF(P25=N25,N24,IF(P25=N26,N25,IF(P25=N27,N26))))) -> FALSE | Q28: 100 | S28: 1.200165302 | T28: 100 | X28: 52 | Y28: 34
B29: No. 4 | C29: 0.187 | J29: 0 | K29: 100 | L29: 0 | N29: 0.470249912 | P29: 0 | Q29: 0 | S29: 1.200165302 | T29: 0 | X29: 68 | Y29: 32
B30: No. 8 | C30: 0.093 | J30: 0 | K30: 100 | L30: 0 | N30: 0.3434134708 | V30: 40 | W30: 45 | Z30: 45 | AA30: 44.1
B31: No. 16 | C31: 0.0465 | J31: 0 | K31: 100 | L31: 0 | N31: 0.2513933752 | S31: 1 | T31: 100 | V31: 50 | W31: 43.214 | X31: 52 | Y31: 38 | Z31: 50 | AA31: 43.214
B32: No. 30 | C32: 0.024 | J32: 0 | K32: 100 | L32: 0 | N32: 0.186678825 | S32: 1 | T32: 0 | V32: 60 | W32: 41.428 | X32: 68 | Y32: 36 | Z32: 60 | AA32: 41.428
B33: No. 50 | C33: 0.012 | J33: 0 | K33: 100 | L33: 0 | N33: 0.1366568987 | V33: 70 | W33: 39.642 | Z33: 70 | AA33: 39.642
B34: No. 100 | C34: 0.006 | J34: 0 | K34: 100 | L34: 0 | N34: 0.1000387053 | S34: 0.8785724254 | T34: 100 | V34: 80 | W34: 37.856 | Z34: 75 | AA34: 38.75
B35: No. 200 | C35: 0.003 | J35: 0 | K35: 100 | L35: 0 | N35: 0.07323261877 | S35: 0.8785724254 | T35: 0
B36: Pan | C36: 0 | J36: 0 | K36: 100 | L36: 0 | N36: 0 | V36: 45 | W36: 32.25 | Z36: 45 | AA36: 32.25
B37: Percent of Total Agg. | D37: =IF(ISERROR('Mix Design'!H85/100),"",'Mix Design'!H85/100) -> 0 | E37: =IF(ISERROR('Mix Design'!H86/100),"",'Mix Design'!H86/100) -> 0 | F37: =IF(ISERROR('Mix Design'!H87/100),"",'Mix Design'!H87/100) -> 0 | G37: =IF(ISERROR('Mix Design'!H88/100),"",'Mix Design'!H88/100) -> 0 | H37: =IF(ISERROR('Mix Design'!H89/100),"",'Mix Design'!H89/100) -> 0 | I37: =IF(ISERROR('Mix Design'!H90/100),"",'Mix Design'!H90/100) -> 0 | J37: =ROUND(SUM(D37:I37),4) -> 0 | S37: 0.732042848 | T37: 100 | V37: 45 | W37: 44 | Z37: 45 | AA37: 44
S38: 0.732042848 | T38: 0
D39: Workability Factor = | E39: =IF(ISERROR(ROUND(J30+(('Mix Design'!K53-564)/94)*2.5,1)),"",ROUND(J30+(('Mix Design'!K53-564)/94)*2.5,1)) ->  | V39: 75 | W39: 27 | Z39: 75 | AA39: 27
D40: Coarseness Factor = | E40: =IF(ISERROR(K28/K30*100),"",K28/K30*100) -> 100 | S40: 0.6431526605 | T40: 100 | V40: 75 | W40: 38.75 | Z40: 75 | AA40: 38.75
S41: 0.6431526605 | T41: 0
S43: 0.470249912 | T43: 100
S44: 0.470249912 | T44: 0
S46: 0.3434134708 | T46: 100
S47: 0.3434134708 | T47: 0
S49: 0.2513933752 | T49: 100
S50: 0.2513933752 | T50: 0
S52: 0.186678825 | T52: 100
S53: 0.186678825 | T53: 0
S55: 0.1366568987 | T55: 100
S56: 0.1366568987 | T56: 0
S58: 0.1000387053 | T58: 100
S59: 0.1000387053 | T59: 0
S61: 0.07323261877 | T61: 100
S62: 0.07323261877 | T62: 0
S64: 0 | T64: 100
S65: 0 | T65: 0

Sheet Mix Proportions via ACI 211
B1: TxDOT Manuals >
C2: HELP
C3: TEXAS DEPARTMENT OF TRANSPORTATION
C5: HYDRAULIC CEMENT CONCRETE MIX DESIGN & CONTROL
C6: Mix Proportions based on ACI 211.1-91®
C8: SAMPLE ID | F8: =IF('Mix Design'!E8="","",'Mix Design'!E8) ->  | H8: SAMPLED DATE: | J8: =IF('Mix Design'!I8="","",'Mix Design'!I8) -> 
C9: TEST NUMBER: | F9: =IF('Mix Design'!E9="","",'Mix Design'!E9) ->  | H9: LETTING DATE: | J9: =IF('Mix Design'!I9="","",'Mix Design'!I9) -> 
C10: SAMPLE STATUS: | F10: =IF('Mix Design'!E10="","",'Mix Design'!E10) ->  | H10: CONTROLLING CSJ: | J10: =IF('Mix Design'!I10="","",'Mix Design'!I10) -> 
C11: COUNTY: | F11: =IF('Mix Design'!E11="","",'Mix Design'!E11) ->  | H11: SPEC YEAR: | J11: =IF('Mix Design'!I11="","",'Mix Design'!I11) -> 
C12: SAMPLED BY: | F12: =IF('Mix Design'!E12="","",'Mix Design'!E12) ->  | H12: SPEC ITEM: | J12: =IF('Mix Design'!I12="","",'Mix Design'!I12) -> 
C13: SAMPLE LOCATION: | F13: =IF('Mix Design'!E13="","",'Mix Design'!E13) ->  | H13: SPECIAL PROVISION: | J13: =IF('Mix Design'!I13="","",'Mix Design'!I13) -> 
C14: MATERIAL CODE: | F14: =IF('Mix Design'!E14="","",'Mix Design'!E14) ->  | H14: CLASS: | J14: =IF('Mix Design'!I14="","",'Mix Design'!I14) -> 
C15: MATERIAL NAME: | F15: =IF('Mix Design'!E15="","",'Mix Design'!E15) -> 
C16: PRODUCER: | F16: =IF('Mix Design'!E16="","",'Mix Design'!E16) -> 
C17: AREA ENGINEER: | F17: =IF('Mix Design'!E17="","",'Mix Design'!E17) ->  | H17: PROJECT MANAGER: | J17: =IF('Mix Design'!I17="","",'Mix Design'!I17) -> 
C19: COURSE\LIFT: | F19: =IF('Mix Design'!E19="","",'Mix Design'!E19) ->  | G19: STATION: | H19: =IF('Mix Design'!G19="","",'Mix Design'!G19) ->  | I19: DIST. FROM CL: | K19: =IF('Mix Design'!L19="","",'Mix Design'!L19) -> 
C21: CONSTRUCTION DETAILS
C22: Minimum dim. between formed (or slip-formed) faces, (inches):
C23: Minimum pavement/slab/overlay thickness, (inches):
C24: Minimum clear spacing between reinforcing bars, (inches):
C26: SELECTING NOMINAL MAXIMUM AGGREGATE SIZE
C27: 1/5 mimimum dimension between formed faces, (inches): | I27: =IF(I22=0,"",I22/5) -> 
C28: 1/3 minimum slab depth, (inches): | I28: =IF(I23=0,"",I23/3) -> 
C29: 3/4 minimum clear opening between reinforcing bars, (inches): | I29: =IF(I24=0,"",I24*(3/4)) -> 
C30: Specified nominal maximum aggregate size based on class of concrete, (inches): | I30: =IF('Mix Design'!F27="Input at right",'Mix Design'!G27,'Mix Design'!F27) -> 
C31: Minimum of all values (preceding 4 rows), (inches): | I31: =IF(AND(I27=0,I28=0,I29=0),IF('Mix Design'!F27="","",IF('Mix Design'!F27="Specify",'Mix Design'!G27,'Mix Design'!F27)),IF(COUNTBLANK(I27:I30)=4,"",MIN(I27:I30))) -> 
C32: Selected Nominal Maximum Aggregate Size from Mix Design, (inches): | I32: =IF('Mix Design'!F29="","",'Mix Design'!F29) -> 
C33: Select Nominal Maximum Aggregate Size, (inches):
C35: WATER ADJUSTMENT
C36: Water Adjustment Factor | G36: Water Adjustment Effectiveness | I36: Select Adjustment %
C37: Aggregate shape & texture | G37: (-5 to +5%)
C38: Optimized aggregate gradation | G38: (-10 to +10%)
C39: Air entraining admixture | G39: (-10 to 0%)
C40: Normal range water reducing admixture | G40: (-10 to -5%)
C41: High-range water reducer (HRWR) | G41: (-30 to -12%)
C42: Mineral admixtures, fly ash to silica fume | G42: (-10 to +15%)
C43: Other factors: w/c, cement fineness, temperature | G43: (-10 to +10%)
C44: Cumulative adjustment percentage:, % | I44: =IF(COUNTBLANK(I37:I43)=7,"",SUM(I37:I43)) -> 
C45: Water Adjustment Factor: | I45: =1+(N(I44)/100) -> 1
C47: SELECTING COARSE AGGREGATE FACTOR
C48: Calculated Coarse Aggregate Factor, CAF (based on inputted material properties): | I48: =IF(E92="","",IF(E92=2.4,IF(E51<1,-0.4503*E51^2+0.9383*E51+0.2191,-0.02*E51^2+0.13*E51+0.6),IF(E51<1,(-0.4503*E51^2+0.9383*E51+0.2191-((E92-2.4)*10)*0.01),(-0.02*E51^2+0.13*E51+0.6-((E92-2.4)*10)*0.01)))) -> 
C49: Specified Coarse Aggregate Factor, CAF:
C51: Nom. Max. Agg. Size, (inches): | E51: =IF(I33="",'Mix Design'!F29,I33) -> 0 | F51: Slump, (inches): | H51: =IF('Mix Design'!F30="","",'Mix Design'!F30) -> 
C52: Mix design target strength, (psi): | E52: ='Mix Design'!H42 ->  | G52: Air Entrained?: | H52: =IF('Mix Design'!M25="Yes","Yes","No") -> No
C53: Basic Water Demand, lb/CY: | E53: =IF('Mix Design'!M25="Yes", IF(E51=0.375,290.58*H51^0.1228,IF(E51=0.5,282.95*H51^0.1072,IF(E51=0.75,268.66*H51^0.1016,IF(E51=1,260.45*H51^0.0948,IF(E51=1.5,240.52*H51^0.1019, IF(E51=2,230.56*H51^0.1058," ")))))),IF(E51=0.375,335.34*H51^0.1082,IF(E51=0.5,322.79*H51^0.0952,IF(E51=0.75,303.52*H51^0.091,IF(E51=1,290.36*H51^0.0859,IF(E51=1.5,265.43*H51^0.0932, IF(E51=2,250.48*H51^0.0982," "))))))) ->  | F53: Controlling w/c or w/cm: | H53: ='Mix Design'!H47 -> 
C54: Water Adjustment Factor: | E54: =N(I45) -> 1 | F54: Use calculated weights for tolerance sheets?
C56: Mix Component | E56: lbs/CY | F56: % of Total Cement | G56: fl oz./CY | H56: Specific Gravity | I56: Density, lbs/ft3 | J56: Approx. Sacks | K56: Absolute Vol. (ft3) | L56: Weight (lbs/CY)
B57: Paste | C57: Specified Water | H57: 1 | I57: 62.4 | K57: =IF(AND(L57="",I57=""),"",IF(ISERROR(ROUND((N(L57)/N(I57)),2)),"",ROUND((N(L57)/N(I57)),2))) -> 0 | L57: =E57 -> 0
C58: Total Cementitious | F58: =SUM(F59:F66) -> 0 | G58: =IF(E58="","",IF(ROUND((N(L57)+N(L74)+N(L75))/N(E58),2)<=N(H53),"",CONCATENATE("Exceeds Controlling W/Cm! "))) ->  | I58: =IF(E58="","",IF((E58)<='Mix Design'!H48,"",CONCATENATE("Cementitious content exceeds max! "))) -> 
C59: Portland Cement | G59: =IF(ISBLANK(E58),"","W/Cm = "&ROUND((N(L57)+N(L74)+N(L75))/(E58),2)) ->  | H59: =IF('Matl Properties'!$C33="","",'Matl Properties'!$C33) ->  | I59: =IF(H59="","",62.4*H59) ->  | J59: =IF(L59="","",L59/94) ->  | K59: =IF(AND(L59="",I59=""),"",IF(ISERROR(ROUND((N(L59)/N(I59)),2)),"",ROUND((N(L59)/N(I59)),2))) ->  | L59: =IF(F59="","",ROUND((N($E$58)*(F59/100)),0)) -> 
C60: Flyash | H60: =IF('Matl Properties'!$C34="","",'Matl Properties'!$C34) ->  | J60: =IF(L60="","",L60/94) ->  | K60: =IF(AND(L60="",I60=""),"",ROUND((N(L60)/N(I60)),2)) -> 
C61: GGBF Slag | H61: =IF('Matl Properties'!$C35="","",'Matl Properties'!$C35) -> 
C62: Silica Fume | H62: =IF('Matl Properties'!$C37="","",'Matl Properties'!$C37) -> 
C63: UFFA | H63: =IF('Matl Properties'!$C38="","",'Matl Properties'!$C38) -> 
C64: MFFA | H64: =IF('Matl Properties'!$C39="","",'Matl Properties'!$C39) -> 
C65: Metakaolin | H65: =IF('Matl Properties'!$C40="","",'Matl Properties'!$C40) -> 
C66: Other Pozzolan | H66: =IF('Matl Properties'!$C41="","",'Matl Properties'!$C41) -> 
C67: Air entraining admixture: | K67: =IF(G67="","",ROUND(G67*(1.044379*10^-3),2)) -> 
C68: Set retarder
C69: Accelerator
C70: Water Reducer
C71: High-Range Water Reducer
C72: Water Reducing Retarder
C73: Hi-Range Water Reducing Retarder
C74: Lithium Nitrate Admixture | L74: =IF(ISBLANK(G74)," ",K74*62.4*(1-'Matl Properties'!H40/100)) ->  | M74: =IF(ISBLANK(G74),"", "Water Contribution (lbs/CY) ") -> 
C75: Corrosion Inhibitor | L75: =IF(ISBLANK(G75),"",K75*62.4*(1-'Matl Properties'!H41/100)) ->  | M75: =IF(ISBLANK(G75),"", "Water Contribution (lbs/CY) ") -> 
C76: Paste Volume=Total (water + cm) | K76: =IF(COUNTBLANK(K57:K75)=18,"",SUM(K57:K75)) -> 
B77: Air | C77: Approximate Entrapped Air*: | F77: ='Mix Design'!H72 -> 0 | K77: =ROUND((27*(F77/100)),2) -> 0
C78: Target Total Air Content**: | F78: ='Mix Design'!H73 ->  | K78: =IF(ISERROR(ROUND((27*(F78/100)),2)),"",ROUND((27*(F78/100)),2)) -> 
C79: Air + Paste Volume: | K79: =IF(ISERROR(SUM(K76,K77,K78)),"",SUM(K76,K77,K78)) -> 0
B80: Other | C80: Fibers: | H80: =IF('Matl Properties'!D45="","",'Matl Properties'!D45) ->  | K80: =IF(H80="","",ROUND((L80/(62.4*H80)),2)) -> 
C81: =IF(ISBLANK('Mix Design'!C76:D76),"",'Mix Design'!C76:D76) ->  | H81: =IF('Matl Properties'!D46="","",'Matl Properties'!D46) ->  | K81: =IF(H81="","",ROUND((L81/(62.4*H81)),2)) -> 
C83: Mix Component | F83: % | G83: Sp. Gr. SSD | H83: Unit Weight, SSD, lbs/ft3 | I83: Bulk Vol. = CAF x 27, ft3 | K83: Absolute Vol. (ft3) | L83: SSD Weight (lbs/CY)
B84: Aggregate | C84: Total Aggregate Volume, ft3: | K84: =27-N(K79)-N(K80)-N(K81) -> 27
C85: Coarse Aggregate Factor (CAF): | E85: =IF(ISERROR(IF(ISBLANK(I49),ROUND(I48,2),I49)),"",IF(ISBLANK(I49),ROUND(I48,2),I49)) -> 
C86: Coarse Aggregate 1: | G86: =IF('Matl Properties'!C24="","",'Matl Properties'!C24) ->  | H86: =IF('Matl Properties'!H24="","",'Matl Properties'!H24) ->  | I86: =IF(F86="","",N($E$85)*27) ->  | K86: =IF(F86="","",IF(ISERROR(ROUND(((N(L86)/(N(G86)*62.4))),2)),"",ROUND(((N(L86)/(N(G86)*62.4))),2))) ->  | L86: =IF(F86="","",ROUND(((N(F86)/100)*(N(I86)*N(H86))),0)) -> 
C87: Coarse Aggregate 2: | G87: =IF('Matl Properties'!C25="","",'Matl Properties'!C25) ->  | H87: =IF('Matl Properties'!H25="","",'Matl Properties'!H25) ->  | I87: =IF(F87="","",N($E$85)*27) ->  | K87: =IF(F87="","",IF(ISERROR(ROUND(((N(L87)/(N(G87)*62.4))),2)),"",ROUND(((N(L87)/(N(G87)*62.4))),2))) ->  | L87: =IF(F87="","",ROUND(((N(F87)/100)*(N(I87)*N(H87))),0)) -> 
C88: Intermediate Aggregate 1: | G88: =IF('Matl Properties'!C26="","",'Matl Properties'!C26) ->  | H88: =IF('Matl Properties'!H26="","",'Matl Properties'!H26) ->  | I88: =IF(F88="","",N($E$85)*27) ->  | K88: =IF(F88="","",IF(ISERROR(ROUND(((N(L88)/(N(G88)*62.4))),2)),"",ROUND(((N(L88)/(N(G88)*62.4))),2))) ->  | L88: =IF(F88="","",ROUND(((N(F88)/100)*(N(I88)*N(H88))),0)) -> 
C89: Intermediate Aggregate 2: | G89: =IF('Matl Properties'!C27="","",'Matl Properties'!C27) ->  | H89: =IF('Matl Properties'!H27="","",'Matl Properties'!H27) ->  | I89: =IF(F89="","",N($E$85)*27) ->  | K89: =IF(F89="","",IF(ISERROR(ROUND(((N(L89)/(N(G89)*62.4))),2)),"",ROUND(((N(L89)/(N(G89)*62.4))),2))) ->  | L89: =IF(F89="","",ROUND(((N(F89)/100)*(N(I89)*N(H89))),0)) -> 
C90: Total Coarse & Intemediate Agg. | F90: =SUM(F86:F89) -> 0
C91: Mix vol. subtotal: | K91: =SUM(K79:K81)+SUM(K86:K89) -> 0
C92: Weighted Average FM: | E92: =IF(ISBLANK('Matl Properties'!F28),"",IF(F93=100,'Matl Properties'!F28,SUMPRODUCT('Matl Properties'!F28:F29,F93:F94)/SUM(F93:F94))) -> 
C93: Fine Aggregate 1 | G93: =IF('Matl Properties'!C28="","",'Matl Properties'!C28) ->  | K93: =IF(F93="","",ROUND(((27-N(K91))*(N(F93)/100)),2)) ->  | L93: =IF(F93="","",ROUND(((N(G93)*62.4)*N(K93)),0)) -> 
C94: Fine Aggregate 2 | G94: =IF('Matl Properties'!C29="","",'Matl Properties'!C29) ->  | K94: =IF(F94="","",ROUND(((27-N(K91))*(N(F94)/100)),2)) ->  | L94: =IF(F94="","",ROUND(((N(G94)*62.4)*N(K94)),0)) -> 
C95: Total Fine Aggregate | F95: =SUM(F93:F94) -> 0
I98: CY | J98: Absolute Vol. (ft3) | K98: SSD Weight (lbs/CY) | L98: lbs/ft3
C99: Total Weight: | K99: =ROUND((N(L57)+N(L74)+N(L75)+SUM(L59:L66)+SUM(L80:L81)+SUM(L86:L89)+SUM(L93:L94)),0) -> 0
C100: Size of Truck, CY:
C101: Est. Total Weight / Truck : | K101: =IF(ISERROR(K99*I100),"",K99*I100) -> 0
C102: Total Absolute Volume: | J102: =IF(ISERROR(SUM(K79:K81)+SUM(K86:K89)+SUM(K93:K94)),"",SUM(K79:K81)+SUM(K86:K89)+SUM(K93:K94)) -> 0
C103: Theoretical Weight of Concrete Computed on an Air-Free Basis (see Tex-417-A): | L103: =IF(ISERROR(ROUND((K99/(J102-K77-K78)),1)),"",ROUND((K99/(J102-K77-K78)),1)) -> 
C104: Design Yield (Unit Weight): | L104: =IF(ISERROR(ROUND((K99/27),1)),"",ROUND((K99/27),1)) -> 0
C105: * Only applicable for non-air-entrained concrete
C106: ** Only applicable for air-entrained concrete

Sheet Trial Batch Results
B1: TxDOT Manuals > | E1: Tex-414-A | F1: Tex-415-A | G1: Tex-416-A | H1: Tex-417-A | I1: Tex-418-A | J1: Tex-422-A | K1: Tex-447-A | L1: Tex-448-A
C2: HELP
C3: TEXAS DEPARTMENT OF TRANSPORTATION | L3: 16
L4: 1
C5: HYDRAULIC CEMENT CONCRETE MIX DESIGN & CONTROL | L5: Tx417.xls::38117.490382
C6: Trial Batch Results
C8: SAMPLE ID | E8: =IF('Mix Design'!E8="","",'Mix Design'!E8) ->  | G8: SAMPLED DATE: | I8: =IF('Mix Design'!I8="","",'Mix Design'!I8) -> 
C9: TEST NUMBER: | E9: =IF('Mix Design'!E9="","",'Mix Design'!E9) ->  | G9: LETTING DATE: | I9: =IF('Mix Design'!I9="","",'Mix Design'!I9) -> 
C10: SAMPLE STATUS: | E10: =IF('Mix Design'!E10="","",'Mix Design'!E10) ->  | G10: CONTROLLING CSJ: | I10: =IF('Mix Design'!I10="","",'Mix Design'!I10) -> 
C11: COUNTY: | E11: =IF('Mix Design'!E11="","",'Mix Design'!E11) ->  | G11: SPEC YEAR: | I11: =IF('Mix Design'!I11="","",'Mix Design'!I11) -> 
C12: SAMPLED BY: | E12: =IF('Mix Design'!E12="","",'Mix Design'!E12) ->  | G12: SPEC ITEM: | I12: =IF('Mix Design'!I12="","",'Mix Design'!I12) -> 
C13: SAMPLE LOCATION: | E13: =IF('Mix Design'!E13="","",'Mix Design'!E13) ->  | G13: SPECIAL PROVISION: | I13: =IF('Mix Design'!I13="","",'Mix Design'!I13) -> 
C14: MATERIAL CODE: | E14: =IF('Mix Design'!E14="","",'Mix Design'!E14) ->  | G14: CLASS: | I14: =IF('Mix Design'!I14="","",'Mix Design'!I14) -> 
C15: MATERIAL NAME: | E15: =IF('Mix Design'!E15="","",'Mix Design'!E15) -> 
C16: PRODUCER: | E16: =IF('Mix Design'!E16="","",'Mix Design'!E16) -> 
C17: AREA ENGINEER: | E17: =IF('Mix Design'!E17="","",'Mix Design'!E17) ->  | G17: PROJECT MANAGER: | I17: =IF('Mix Design'!I17="","",'Mix Design'!I17) -> 
C19: COURSE\LIFT: | E19: =IF('Mix Design'!E19="","",'Mix Design'!E19) ->  | F19: STATION: | G19: =IF('Mix Design'!G19="","",'Mix Design'!G19) ->  | H19: DIST. FROM CL: | J19: =IF('Mix Design'!L19="","",'Mix Design'!L19) -> 
D21: SLUMP
D22: Design Slump: | E22: =IF(ISBLANK('Mix Design'!F30),"",CONCATENATE('Mix Design'!F30," inches")) ->  | H22: TEMPERATURE
D23: Tex-415-A (ASTM C 143) | H23: Tex-422-A (ASTM C 1064)
D24: Slump | H24: Temperature
D27: AIR CONTENT | H27: UNIT WEIGHT
D28: Design Air: | E28: =IF(ISBLANK('Mix Design'!H73),CONCATENATE('Mix Proportions via ACI 211'!F78,"%"),CONCATENATE('Mix Design'!H73,"%")) -> % | I28: Design Unit Weight: | J28: =IF('Mix Design'!L98=0,CONCATENATE('Mix Proportions via ACI 211'!L104," lb/ft³"),CONCATENATE('Mix Design'!L98," lb/ft³")) -> lb/ft³
D29: Test Method: | H29: Tex-417-A (ASTM C 138)
C30: =IF(AirMethod="Tex 414-A (ASTM C 173)","Water Level Reading, %:","Uncorrected Air Content, %:") -> Uncorrected Air Content, %: | H30: Mass of bucket, lbs:
C31: =IF(AirMethod="Tex 414-A (ASTM C 173)","*Calibrated Cups of Water, Cups:","Aggr. Correction Factor, %:") -> Aggr. Correction Factor, %: | H31: Volume of bucket, ft³:
C32: =IF(AirMethod="Tex 414-A (ASTM C 173)","Amt. of Isopropyl Alcohol, Pints:","") ->  | H32: Mass of bucket (filled with) concrete, lbs:
C33: =IF(AirMethod="Tex 414-A (ASTM C 173)","Air Content, %:","Corrected Air Content, %:") -> Corrected Air Content, %: | F33: =IF(ISERROR(IF(AirMethod="Tex 414-A (ASTM C 173)",ROUND(((F30+F31-VLOOKUP(ROUND(F32,0),AirCorrectionFactor,4))/25),2)*25,ROUND(F30-F31,1))),"",IF(AirMethod="Tex 414-A (ASTM C 173)",ROUND(((F30+F31-VLOOKUP(ROUND(F32,0),AirCorrectionFactor,4))/25),2)*25,ROUND(F30-F31,1))) -> 0 | H33: Density (Unit weight ) of concrete lb/ft³: | K33: =IF(ISERROR((K32-K30)/K31),"",(K32-K30)/K31) -> 
C34: =IF(AirMethod="Tex 414-A (ASTM C 173)","* Only necessary if the air content is greater than the 9% range of the meter.","") -> 
C36: COMPRESSIVE STRENGTH
G37: Min. 28-Day Design Strength: | H37: =IF(ISBLANK('Mix Design'!H36),"",CONCATENATE('Mix Design'!H36," psi")) -> psi
G38: Min. 28-Day Target Strength (based on over-design requirements): | H38: =IF(ISBLANK('Mix Design'!H42),"",CONCATENATE('Mix Design'!H42," psi")) -> psi | I38: `
C39: Test Method Tex-418-A (ASTM C 39)
C40: Cylinder Number | D40: Age | F40: Length of Cylinder (inches) | G40: Length to Diameter Ratio | H40: Max Load (lbs.) | I40: Failure Type | J40: Correction Factor | K40: Compressive Strength (psi) | L40: Average Compressive Strength (psi)
E41: of Cylinder
B43: 1 | G43: =IF(ISERROR(IF(CircumDiameter1="circumference",$F43/(SQRT($E43/PI())*2),($F43/$E43))),"",IF(CircumDiameter1="circumference",$F43/(SQRT($E43/PI())*2),($F43/$E43))) ->  | J43: =IF(G43="","",IF(G43<1,"CHK SIZES",IF(G43<2.1,1,VLOOKUP(G43,CorrectionFactor,2)))) ->  | K43: =IF(G43="","",ROUND(J43*IF(CircumDiameter1="Circumference",(H43/((E43*E43)/12.566)),(H43/(0.7854*E43*E43))),-1)) ->  | L43: =IF(ISERROR(IF(ISBLANK(H45),ROUND(AVERAGE(K43:K44),-1),ROUND(AVERAGE(K43:K45),-1))),"",IF(ISBLANK(H45),ROUND(AVERAGE(K43:K44),-1),ROUND(AVERAGE(K43:K45),-1))) -> 
B44: 2
B45: 3 | J45: =IF(G45="","",IF(G45<1,"CHK SIZES",IF(G45<2.1,1,VLOOKUP(G45,CorrectionFactor,2)))) ->  | K45: =IF(G45="","",ROUND(J45*IF(CircumDiameter1="Circumference",(H45/((E45*E45)/12.566)),(H45/(0.7854*E45*E45))),-1)) -> 
B46: 4 | L46: =IF(ISERROR(IF(ISBLANK(H48),ROUND(AVERAGE(K46:K47),-1),ROUND(AVERAGE(K46:K48),-1))),"",IF(ISBLANK(H48),ROUND(AVERAGE(K46:K47),-1),ROUND(AVERAGE(K46:K48),-1))) -> 
B47: 5
B48: 6 | J48: =IF(G48="","",IF(G48<1,"CHK SIZES",IF(G48<2.1,1,VLOOKUP(G48,CorrectionFactor,2)))) ->  | K48: =IF(G48="","",ROUND(J48*IF(CircumDiameter1="Circumference",(H48/((E48*E48)/12.566)),(H48/(0.7854*E48*E48))),-1)) -> 
B49: 7 | D49: 7-Day | L49: =IF(ISERROR(IF(ISBLANK(H51),ROUND(AVERAGE(K49:K50),-1),ROUND(AVERAGE(K49:K51),-1))),"",IF(ISBLANK(H51),ROUND(AVERAGE(K49:K50),-1),ROUND(AVERAGE(K49:K51),-1))) -> 
B50: 8
B51: 9 | J51: =IF(G51="","",IF(G51<1,"CHK SIZES",IF(G51<2.1,1,VLOOKUP(G51,CorrectionFactor,2)))) ->  | K51: =IF(G51="","",ROUND(J51*IF(CircumDiameter1="Circumference",(H51/((E51*E51)/12.566)),(H51/(0.7854*E51*E51))),-1)) -> 
B52: 10 | D52: 28-Day | L52: =IF(ISERROR(IF(ISBLANK(H54),ROUND(AVERAGE(K52:K53),-1),ROUND(AVERAGE(K52:K54),-1))),"",IF(ISBLANK(H54),ROUND(AVERAGE(K52:K53),-1),ROUND(AVERAGE(K52:K54),-1))) -> 
B53: 11
B54: 12 | G54: =IF(ISERROR(IF(CircumDiameter1="circumference",$F54/(SQRT($E54/PI())*2),($F54/$E54))),"",IF(CircumDiameter1="circumference",$F54/(SQRT($E54/PI())*2),($F54/$E54))) ->  | J54: =IF(G54="","",IF(G54<1,"CHK SIZES",IF(G54<2.1,1,VLOOKUP(G54,CorrectionFactor,2)))) ->  | K54: =IF(G54="","",ROUND(J54*IF(CircumDiameter1="Circumference",(H54/((E54*E54)/12.566)),(H54/(0.7854*E54*E54))),-1)) -> 
B55: Note: Item 421 only requires one set of design strength specimens, consisting of two specimens per set, at 7-day, 28-day, and at least one additional age. Additional age and additional specimen per age are optional. | J55: =CONCATENATE(D43," Target Value:") -> Target Value: | L55: =IF(ISERROR(IF(G43="","",ROUND('Mix Design'!$H$36*(AVERAGE(L43)/AVERAGE($L$52)),-1))),"",IF(G43="","",ROUND('Mix Design'!$H$36*(AVERAGE(L43)/AVERAGE($L$52)),-1))) -> 
J56: =CONCATENATE(D46," Target Value:") -> Target Value: | L56: =IF(ISERROR(IF(G46="","",ROUND('Mix Design'!$H$36*(AVERAGE(L46)/AVERAGE($L$52)),-1))),"",IF(G46="","",ROUND('Mix Design'!$H$36*(AVERAGE(L46)/AVERAGE($L$52)),-1))) -> 
J57: 7-Day Target Value: | L57: =IF(ISERROR(IF(G49="","",ROUND('Mix Design'!$H$36*(AVERAGE(L49)/AVERAGE($L$52)),-1))),"",IF(G49="","",ROUND('Mix Design'!$H$36*(AVERAGE(L49)/AVERAGE($L$52)),-1))) -> 
C65: FLEXURAL STRENGTH
C66: Tex-448-A
C67: Beam Number | D67: Age (Days) | E67: Width of Beam (inches) | F67: Depth of Beam (inches) | G67: Span Length (inches) | H67: Max Recording | I67: *Failure Location (inches) | J67: Modulus of Rupture (psi) | K67: Average Modulus of Rupture (psi)
B69: 1 | G69: =IF(E69="","",18) ->  | J69: =IF(ISERROR(IF(I69>(G69*0.05),"RETEST",IF(BeamMaxRec="(lbs)",IF(I69=0,((H69*G69)/(E69*F69^2)),(3*H69*I69)/(E69*F69^2)),IF(I69=0,(((H69*6^3/G69)*G69)/(E69*F69^2)),(3*(H69*6^3/G69)*(G69/3-I69))/(E69*F69^2))))),"",IF(I69>(G69*0.05),"RETEST",IF(BeamMaxRec="(lbs)",IF(I69=0,((H69*G69)/(E69*F69^2)),(3*H69*I69)/(E69*F69^2)),IF(I69=0,(((H69*6^3/G69)*G69)/(E69*F69^2)),(3*(H69*6^3/G69)*(G69/3-I69))/(E69*F69^2))))) ->  | K69: =IF(ISERROR(ROUND(AVERAGE(J69:J70)*2,-1)/2),"",ROUND(AVERAGE(J69:J70)*2,-1)/2) -> 
B70: 2
B71: 3 | K71: =IF(ISERROR(ROUND(AVERAGE(J71:J72)*2,-1)/2),"",ROUND(AVERAGE(J71:J72)*2,-1)/2) -> 
B72: 4
B73: 5 | D73: 7-Day | K73: =IF(ISERROR(ROUND(AVERAGE(J73:J74)*2,-1)/2),"",ROUND(AVERAGE(J73:J74)*2,-1)/2) -> 
B74: 6
B75: 7 | D75: 28-Day | K75: =IF(ISERROR(ROUND(AVERAGE(J75:J76)*2,-1)/2),"",ROUND(AVERAGE(J75:J76)*2,-1)/2) -> 
B76: 8
B77: * When outside the middle 1/3, distance from the line of the fracture to the nearest support measured on the tension surface of the beam.
C79: Trial Batch Remarks:
C82: Test Method: | D82: Tested By: | G82: Tested Date:
C83: TX415
C85: TX422
C87: TX414
C89: TX416
C91: TX417
C93: TX418
C95: TX448

Sheet Non-Vol. Mixers Tolerances
A1: TxDOT Manuals > | C1: Item 421 | E1: Tex-409-A
B2: HELP
B3: TEXAS DEPARTMENT OF TRANSPORTATION
B5: HYDRAULIC CEMENT CONCRETE MIX DESIGN & CONTROL
B6: Non-Vol. Mixers Tolerances
B8: SAMPLE ID | D8: =IF('Mix Design'!E8="","",'Mix Design'!E8) ->  | F8: SAMPLED DATE: | H8: =IF('Mix Design'!I8="","",'Mix Design'!I8) -> 
B9: TEST NUMBER: | D9: =IF('Mix Design'!E9="","",'Mix Design'!E9) ->  | F9: LETTING DATE: | H9: =IF('Mix Design'!I9="","",'Mix Design'!I9) -> 
B10: SAMPLE STATUS: | D10: =IF('Mix Design'!E10="","",'Mix Design'!E10) ->  | F10: CONTROLLING CSJ: | H10: =IF('Mix Design'!I10="","",'Mix Design'!I10) -> 
B11: COUNTY: | D11: =IF('Mix Design'!E11="","",'Mix Design'!E11) ->  | F11: SPEC YEAR: | H11: =IF('Mix Design'!I11="","",'Mix Design'!I11) -> 
B12: SAMPLED BY: | D12: =IF('Mix Design'!E12="","",'Mix Design'!E12) ->  | F12: SPEC ITEM: | H12: =IF('Mix Design'!I12="","",'Mix Design'!I12) -> 
B13: SAMPLE LOCATION: | D13: =IF('Mix Design'!E13="","",'Mix Design'!E13) ->  | F13: SPECIAL PROVISION: | H13: =IF('Mix Design'!I13="","",'Mix Design'!I13) -> 
B14: MATERIAL CODE: | D14: =IF('Mix Design'!E14="","",'Mix Design'!E14) ->  | F14: CLASS: | H14: =IF('Mix Design'!I14="","",'Mix Design'!I14) -> 
B15: MATERIAL NAME: | D15: =IF('Mix Design'!E15="","",'Mix Design'!E15) -> 
B16: PRODUCER: | D16: =IF('Mix Design'!E16="","",'Mix Design'!E16) -> 
B17: AREA ENGINEER: | D17: =IF('Mix Design'!E17="","",'Mix Design'!E17) ->  | F17: PROJECT MANAGER: | H17: =IF('Mix Design'!I17="","",'Mix Design'!I17) -> 
B19: COURSE\LIFT: | D19: =IF('Mix Design'!E19="","",'Mix Design'!E19) ->  | E19: STATION: | F19: =IF('Mix Design'!G19="","",'Mix Design'!G19) ->  | G19: DIST. FROM CL: | I19: =IF('Mix Design'!L19="","",'Mix Design'!L19) -> 
C21: Batch Size, CY: | F21: Amount of Ice, Lbs.:
E23: CA 1 | F23: CA 2 | G23: IA 1 | H23: IA 2 | I23: FA 1 | J23: FA 2
B24: Free Moisture ( + ) or Absorption ( - ) (%)
B26: MEASUREMENT TOLERANCES -- Non-Volumetric Mixers
B27: Material | E27: Tolerance, (%) | F27: ="Batch Weight " & CONCATENATE("(lbs/ ",$D$21,"CY)") -> Batch Weight (lbs/ CY) | G27: ="Batch Volume " & CONCATENATE("(per ",$D$21,"CY)") -> Batch Volume (per CY) | H27: ="Allowable Batching Weight Range " &CONCATENATE("(lbs/ ",$D$21,"CY)") -> Allowable Batching Weight Range (lbs/ CY) | J27: ="Allowable Batching Volume Range " &CONCATENATE("(per ",$D$21,"CY)") -> Allowable Batching Volume Range (per CY)
B29: Cement, wt. | E29: -1 to +3 | F29: =IF(ISERROR(IF('Mix Proportions via ACI 211'!$J$54="Yes",'Mix Proportions via ACI 211'!$L$59*$D$21,'Mix Design'!$K$54*$D$21)),"",IF('Mix Proportions via ACI 211'!$J$54="Yes",'Mix Proportions via ACI 211'!$L$59*$D$21,'Mix Design'!$K$54*$D$21)) -> 0 | G29: =IF(ISERROR(IF('Mix Proportions via ACI 211'!$J$54="Yes",ROUND((('Mix Proportions via ACI 211'!$K$59/27)*$D$21),2),ROUND((('Mix Design'!$I$54/27)*$D$21),2))),"",IF('Mix Proportions via ACI 211'!$J$54="Yes",ROUND((('Mix Proportions via ACI 211'!$K$59/27)*$D$21),2),ROUND((('Mix Design'!$I$54/27)*$D$21),2))) -> 0 | H29: =IF(ISERROR(CONCATENATE(P29," - ",Q29)),"",CONCATENATE(P29," - ",Q29)) -> 0 - 0 | J29: NA | P29: =ROUND((N(F29)*0.99),1) -> 0 | Q29: =ROUND((N(F29)*1.03),1) -> 0
B30: Flyash, wt. | E30: -1 to +3 | F30: =IF(ISERROR(IF('Mix Proportions via ACI 211'!$J$54="Yes",'Mix Proportions via ACI 211'!$L$60*$D$21,'Mix Design'!$K$55*$D$21)),"",IF('Mix Proportions via ACI 211'!$J$54="Yes",'Mix Proportions via ACI 211'!$L$60*$D$21,'Mix Design'!$K$55*$D$21)) -> 0 | G30: =IF(ISERROR(IF('Mix Proportions via ACI 211'!$J$54="Yes",ROUND((('Mix Proportions via ACI 211'!$K$60/27)*$D$21),2),ROUND((('Mix Design'!$I$55/27)*$D$21),2))),"",IF('Mix Proportions via ACI 211'!$J$54="Yes",ROUND((('Mix Proportions via ACI 211'!$K$60/27)*$D$21),2),ROUND((('Mix Design'!$I$55/27)*$D$21),2))) -> 0 | H30: 0 - 0 | J30: NA | P30: 0 | Q30: 0
B31: GGBF slag, wt. | E31: -1 to +3 | F31: =IF(ISERROR(IF('Mix Proportions via ACI 211'!$J$54="Yes",'Mix Proportions via ACI 211'!$L$61*$D$21,'Mix Design'!$K$56*$D$21)),"",IF('Mix Proportions via ACI 211'!$J$54="Yes",'Mix Proportions via ACI 211'!$L$61*$D$21,'Mix Design'!$K$56*$D$21)) -> 0 | G31: =IF(ISERROR(IF('Mix Proportions via ACI 211'!$J$54="Yes",ROUND((('Mix Proportions via ACI 211'!$K$61/27)*$D$21),2),ROUND((('Mix Design'!$I$56/27)*$D$21),2))),"",IF('Mix Proportions via ACI 211'!$J$54="Yes",ROUND((('Mix Proportions via ACI 211'!$K$61/27)*$D$21),2),ROUND((('Mix Design'!$I$56/27)*$D$21),2))) -> 0 | H31: 0 - 0 | J31: NA | P31: 0 | Q31: 0
B32: Silica fume, wt. | E32: -1 to +3 | F32: =IF(ISERROR(IF('Mix Proportions via ACI 211'!$J$54="Yes",'Mix Proportions via ACI 211'!$L$62*$D$21,'Mix Design'!$K$57*$D$21)),"",IF('Mix Proportions via ACI 211'!$J$54="Yes",'Mix Proportions via ACI 211'!$L$62*$D$21,'Mix Design'!$K$57*$D$21)) -> 0 | G32: =IF(ISERROR(IF('Mix Proportions via ACI 211'!$J$54="Yes",ROUND((('Mix Proportions via ACI 211'!$K$62/27)*$D$21),2),ROUND((('Mix Design'!$I$57/27)*$D$21),2))),"",IF('Mix Proportions via ACI 211'!$J$54="Yes",ROUND((('Mix Proportions via ACI 211'!$K$62/27)*$D$21),2),ROUND((('Mix Design'!$I$57/27)*$D$21),2))) -> 0 | H32: 0 - 0 | J32: NA | P32: 0 | Q32: 0
B33: UFFA, wt. | E33: -1 to +3 | F33: =IF(ISERROR(IF('Mix Proportions via ACI 211'!$J$54="Yes",'Mix Proportions via ACI 211'!$L$63*$D$21,'Mix Design'!$K$58*$D$21)),"",IF('Mix Proportions via ACI 211'!$J$54="Yes",'Mix Proportions via ACI 211'!$L$63*$D$21,'Mix Design'!$K$58*$D$21)) -> 0 | G33: =IF(ISERROR(IF('Mix Proportions via ACI 211'!$J$54="Yes",ROUND((('Mix Proportions via ACI 211'!$K$63/27)*$D$21),2),ROUND((('Mix Design'!$I$58/27)*$D$21),2))),"",IF('Mix Proportions via ACI 211'!$J$54="Yes",ROUND((('Mix Proportions via ACI 211'!$K$63/27)*$D$21),2),ROUND((('Mix Design'!$I$58/27)*$D$21),2))) -> 0 | H33: 0 - 0 | J33: NA | P33: 0 | Q33: 0
B34: MFFA, wt. | E34: -1 to +3 | F34: =IF(ISERROR(IF('Mix Proportions via ACI 211'!$J$54="Yes",'Mix Proportions via ACI 211'!$L$64*$D$21,'Mix Design'!$K$59*$D$21)),"",IF('Mix Proportions via ACI 211'!$J$54="Yes",'Mix Proportions via ACI 211'!$L$64*$D$21,'Mix Design'!$K$59*$D$21)) -> 0 | G34: =IF(ISERROR(IF('Mix Proportions via ACI 211'!$J$54="Yes",ROUND((('Mix Proportions via ACI 211'!$K$64/27)*$D$21),2),ROUND((('Mix Design'!$I$59/27)*$D$21),2))),"",IF('Mix Proportions via ACI 211'!$J$54="Yes",ROUND((('Mix Proportions via ACI 211'!$K$64/27)*$D$21),2),ROUND((('Mix Design'!$I$59/27)*$D$21),2))) -> 0 | H34: 0 - 0 | J34: NA | P34: 0 | Q34: 0
B35: Metakaolin, wt. | E35: -1 to +3 | F35: =IF(ISERROR(IF('Mix Proportions via ACI 211'!$J$54="Yes",'Mix Proportions via ACI 211'!$L$65*$D$21,'Mix Design'!$K$60*$D$21)),"",IF('Mix Proportions via ACI 211'!$J$54="Yes",'Mix Proportions via ACI 211'!$L$65*$D$21,'Mix Design'!$K$60*$D$21)) -> 0 | G35: =IF(ISERROR(IF('Mix Proportions via ACI 211'!$J$54="Yes",ROUND((('Mix Proportions via ACI 211'!$K$65/27)*$D$21),2),ROUND((('Mix Design'!$I$60/27)*$D$21),2))),"",IF('Mix Proportions via ACI 211'!$J$54="Yes",ROUND((('Mix Proportions via ACI 211'!$K$65/27)*$D$21),2),ROUND((('Mix Design'!$I$60/27)*$D$21),2))) -> 0 | H35: 0 - 0 | J35: NA | P35: 0 | Q35: 0
B36: Other pozzolan, wt. | E36: -1 to +3 | F36: =IF(ISERROR(IF('Mix Proportions via ACI 211'!$J$54="Yes",'Mix Proportions via ACI 211'!$L$66*$D$21,'Mix Design'!$K$61*$D$21)),"",IF('Mix Proportions via ACI 211'!$J$54="Yes",'Mix Proportions via ACI 211'!$L$66*$D$21,'Mix Design'!$K$61*$D$21)) -> 0 | G36: =IF(ISERROR(IF('Mix Proportions via ACI 211'!$J$54="Yes",ROUND((('Mix Proportions via ACI 211'!$K$66/27)*$D$21),2),ROUND((('Mix Design'!$I$61/27)*$D$21),2))),"",IF('Mix Proportions via ACI 211'!$J$54="Yes",ROUND((('Mix Proportions via ACI 211'!$K$66/27)*$D$21),2),ROUND((('Mix Design'!$I$61/27)*$D$21),2))) -> 0 | H36: 0 - 0 | J36: NA | P36: 0 | Q36: 0
B37: Water, wt. or volume | E37: ±3 | F37: =IF(ISERROR(IF('Mix Proportions via ACI 211'!$J$54="Yes",L37,M37)),"",IF('Mix Proportions via ACI 211'!$J$54="Yes",L37,M37)) -> 0 | G37: =IF(ISERROR(CONCATENATE(O37," (gal.)")),"",CONCATENATE(O37," (gal.)")) -> 0 (gal.) | H37: 0 - 0 | J37: =IF(ISERROR(CONCATENATE(R37," - ",S37," (gal.)")),"",CONCATENATE(R37," - ",S37," (gal.)")) -> 0 - 0 (gal.) | L37: =ROUND((((N('Mix Proportions via ACI 211'!$L$57)-N('Mix Proportions via ACI 211'!$L$86)*E24/100-N('Mix Proportions via ACI 211'!$L$87)*F24/100-N('Mix Proportions via ACI 211'!$L$88)*G24/100-N('Mix Proportions via ACI 211'!$L$89)*H24/100-N('Mix Proportions via ACI 211'!$L$93)*I24/100-N('Mix Proportions via ACI 211'!$L$94)*J24/100-N('Mix Proportions via ACI 211'!O76))*$D$21)-G21),0) -> 0 | M37: =ROUND((((N('Mix Design'!$K$52)-N('Mix Design'!$K$78)*E24/100-N('Mix Design'!$K$79)*F24/100-N('Mix Design'!$K$80)*G24/100-N('Mix Design'!$K$81)*H24/100-N('Mix Design'!$K$82)*I24/100-N('Mix Design'!$K$83)*J24/100-N('Mix Proportions via ACI 211'!O76))*$D$21)-G21),0) -> 0 | O37: =IF('Mix Proportions via ACI 211'!$J$54="Yes",ROUND(((N(L37)/62.4)*7.48),2),ROUND(((N(M37)/62.4)*7.48),2)) -> 0 | P37: =ROUND((N(F37)*0.97),1) -> 0 | Q37: 0 | R37: =ROUND((N(O37)*0.97),2) -> 0 | S37: =ROUND((N(O37)*1.03),2) -> 0
B38: Fine aggregate 1, wt. | E38: ±2 | F38: =IF(ISERROR(IF('Mix Proportions via ACI 211'!$J$54="Yes",L38,M38)),"",IF('Mix Proportions via ACI 211'!$J$54="Yes",L38,M38)) -> 0 | G38: =IF(ISERROR(IF('Mix Proportions via ACI 211'!$J$54="Yes",ROUND((('Mix Proportions via ACI 211'!$K$93/27)*$D$21),2),ROUND((('Mix Design'!$I$82/27)*$D$21),2))),"",IF('Mix Proportions via ACI 211'!$J$54="Yes",ROUND((('Mix Proportions via ACI 211'!$K$93/27)*$D$21),2),ROUND((('Mix Design'!$I$82/27)*$D$21),2))) -> 0 | H38: 0 - 0 | J38: NA | L38: =IF(ISBLANK($I$24),ROUND(((N('Mix Proportions via ACI 211'!$L93)*(1+N($I$24)/100))*N($D$21)),0),ROUND(((N('Mix Proportions via ACI 211'!$L93)*(1+N($I$24)/100))*N($D$21)),0)) -> 0 | M38: =IF(ISBLANK($I$24),ROUND(((N('Mix Design'!$K$82)*(1+N($I$24)/100))*N($D$21)),0),ROUND(((N('Mix Design'!$K$82)*(1+N($I$24)/100))*N($D$21)),0)) -> 0 | P38: =ROUND((N(F38)*0.98),1) -> 0 | Q38: =ROUND((N(F38)*1.02),1) -> 0
B39: Fine aggregate 2, wt. | E39: ±2 | F39: =IF(ISERROR(IF('Mix Proportions via ACI 211'!$J$54="Yes",L39,M39)),"",IF('Mix Proportions via ACI 211'!$J$54="Yes",L39,M39)) -> 0 | G39: =IF(ISERROR(IF('Mix Proportions via ACI 211'!$J$54="Yes",ROUND((('Mix Proportions via ACI 211'!$K$94/27)*$D$21),2),ROUND((('Mix Design'!$I$83/27)*$D$21),2))),"",IF('Mix Proportions via ACI 211'!$J$54="Yes",ROUND((('Mix Proportions via ACI 211'!$K$94/27)*$D$21),2),ROUND((('Mix Design'!$I$83/27)*$D$21),2))) -> 0 | H39: 0 - 0 | J39: NA | L39: =IF(ISBLANK($J$24),ROUND(((N('Mix Proportions via ACI 211'!$L94)*(1+N($J$24)/100))*N($D$21)),0),ROUND(((N('Mix Proportions via ACI 211'!$L94)*(1+N($J$24)/100))*N($D$21)),0)) -> 0 | M39: =IF(ISBLANK($J$24),ROUND(((N('Mix Design'!$K$83)*(1+N($J$24)/100))*N($D$21)),0),ROUND(((N('Mix Design'!$K$83)*(1+N($J$24)/100))*N($D$21)),0)) -> 0 | P39: 0 | Q39: 0
B40: Coarse aggregate 1, wt. | E40: ±2 | F40: =IF(ISERROR(IF('Mix Proportions via ACI 211'!$J$54="Yes",L40,M40)),"",IF('Mix Proportions via ACI 211'!$J$54="Yes",L40,M40)) -> 0 | G40: =IF(ISERROR(IF('Mix Proportions via ACI 211'!$J$54="Yes",ROUND((('Mix Proportions via ACI 211'!$K$86/27)*$D$21),2),ROUND((('Mix Design'!$I$78/27)*$D$21),2))),"",IF('Mix Proportions via ACI 211'!$J$54="Yes",ROUND((('Mix Proportions via ACI 211'!$K$86/27)*$D$21),2),ROUND((('Mix Design'!$I$78/27)*$D$21),2))) -> 0 | H40: 0 - 0 | J40: NA | L40: =IF(ISBLANK($E$24),ROUND(((N('Mix Proportions via ACI 211'!$L86)*(1+N($E$24)/100))*N($D$21)),0),ROUND(((N('Mix Proportions via ACI 211'!$L86)*(1+N($E$24)/100))*N($D$21)),0)) -> 0 | M40: =IF(ISBLANK($E$24),ROUND(((N('Mix Design'!$K$78)*(1+N($E$24)/100))*N($D$21)),0),ROUND(((N('Mix Design'!$K$78)*(1+N($E$24)/100))*N($D$21)),0)) -> 0 | P40: 0 | Q40: 0
B41: Coarse aggregate 2, wt. | E41: ±2 | F41: =IF(ISERROR(IF('Mix Proportions via ACI 211'!$J$54="Yes",L41,M41)),"",IF('Mix Proportions via ACI 211'!$J$54="Yes",L41,M41)) -> 0 | G41: =IF(ISERROR(IF('Mix Proportions via ACI 211'!$J$54="Yes",ROUND((('Mix Proportions via ACI 211'!$K$87/27)*$D$21),2),ROUND((('Mix Design'!$I$80/27)*$D$21),2))),"",IF('Mix Proportions via ACI 211'!$J$54="Yes",ROUND((('Mix Proportions via ACI 211'!$K$87/27)*$D$21),2),ROUND((('Mix Design'!$I$80/27)*$D$21),2))) -> 0 | H41: 0 - 0 | J41: NA | L41: =IF(ISBLANK($F$24),ROUND(((N('Mix Proportions via ACI 211'!$L87)*(1+N($F$24)/100))*N($D$21)),0),ROUND(((N('Mix Proportions via ACI 211'!$L87)*(1+N($F$24)/100))*N($D$21)),0)) -> 0 | M41: =IF(ISBLANK($F$24),ROUND(((N('Mix Design'!$K$79)*(1+N($F$24)/100))*N($D$21)),0),ROUND(((N('Mix Design'!$K$79)*(1+N($F$24)/100))*N($D$21)),0)) -> 0 | P41: 0 | Q41: 0
B42: Intermediate aggregate 1, wt. | E42: ±2 | F42: =IF(ISERROR(IF('Mix Proportions via ACI 211'!$J$54="Yes",L42,M42)),"",IF('Mix Proportions via ACI 211'!$J$54="Yes",L42,M42)) -> 0 | G42: =IF(ISERROR(IF('Mix Proportions via ACI 211'!$J$54="Yes",ROUND((('Mix Proportions via ACI 211'!$K$88/27)*$D$21),2),ROUND((('Mix Design'!$I$80/27)*$D$21),2))),"",IF('Mix Proportions via ACI 211'!$J$54="Yes",ROUND((('Mix Proportions via ACI 211'!$K$88/27)*$D$21),2),ROUND((('Mix Design'!$I$80/27)*$D$21),2))) -> 0 | H42: 0 - 0 | J42: NA | L42: =IF(ISBLANK($G$24),ROUND(((N('Mix Proportions via ACI 211'!$L88)*(1+N($G$24)/100))*N($D$21)),0),ROUND(((N('Mix Proportions via ACI 211'!$L88)*(1+N($G$24)/100))*N($D$21)),0)) -> 0 | M42: =IF(ISBLANK($G$24),ROUND(((N('Mix Design'!$K$80)*(1+N($G$24)/100))*N($D$21)),0),ROUND(((N('Mix Design'!$K$80)*(1+N($G$24)/100))*N($D$21)),0)) -> 0 | P42: 0 | Q42: 0
B43: Intermediate aggregate 2, wt. | E43: ±2 | F43: =IF(ISERROR(IF('Mix Proportions via ACI 211'!$J$54="Yes",L43,M43)),"",IF('Mix Proportions via ACI 211'!$J$54="Yes",L43,M43)) -> 0 | G43: =IF(ISERROR(IF('Mix Proportions via ACI 211'!$J$54="Yes",ROUND((('Mix Proportions via ACI 211'!$K$89/27)*$D$21),2),ROUND((('Mix Design'!$I$81/27)*$D$21),2))),"",IF('Mix Proportions via ACI 211'!$J$54="Yes",ROUND((('Mix Proportions via ACI 211'!$K$89/27)*$D$21),2),ROUND((('Mix Design'!$I$81/27)*$D$21),2))) -> 0 | H43: 0 - 0 | J43: NA | L43: =IF(ISBLANK($H$24),ROUND(((N('Mix Proportions via ACI 211'!$L89)*(1+N($H$24)/100))*N($D$21)),0),ROUND(((N('Mix Proportions via ACI 211'!$L89)*(1+N($H$24)/100))*N($D$21)),0)) -> 0 | M43: =IF(ISBLANK($H$24),ROUND(((N('Mix Design'!$K$81)*(1+N($H$24)/100))*N($D$21)),0),ROUND(((N('Mix Design'!$K$81)*(1+N($H$24)/100))*N($D$21)),0)) -> 0 | P43: 0 | Q43: 0
B44: Air entraining admixture, volume | E44: ±3 | G44: =IF(ISERROR(CONCATENATE(O44," (oz.)")),"",CONCATENATE(O44," (oz.)")) ->  | J44: =IF(ISERROR(CONCATENATE(R44," - ",S44," (oz.)")),"",CONCATENATE(R44," - ",S44," (oz.)")) ->  | N44: =IF('Mix Proportions via ACI 211'!$J$54="Yes",ROUND((N('Mix Proportions via ACI 211'!$G67)),1),ROUND((N('Mix Design'!$H62*('Mix Design'!$K$53/100))),1)) ->  | O44: =ROUND((N(N44)*N($D$21)),1) ->  | R44: =ROUND((O44*0.97),1) ->  | S44: =ROUND((O44*1.03),1) -> 
B45: Set retarder, volume | E45: ±3 | N45: =IF('Mix Proportions via ACI 211'!$J$54="Yes",ROUND((N('Mix Proportions via ACI 211'!$G68)),1),ROUND((N('Mix Design'!$H63*('Mix Design'!$K$53/100))),1)) -> 
B46: Accelerator, volume | E46: ±3 | N46: =IF('Mix Proportions via ACI 211'!$J$54="Yes",ROUND((N('Mix Proportions via ACI 211'!$G69)),1),ROUND((N('Mix Design'!$H64*('Mix Design'!$K$53/100))),1)) -> 
B47: Water reducer, volume | E47: ±3 | N47: =IF('Mix Proportions via ACI 211'!$J$54="Yes",ROUND((N('Mix Proportions via ACI 211'!$G70)),1),ROUND((N('Mix Design'!$H65*('Mix Design'!$K$53/100))),1)) -> 
B48: High-range water reducer, volume | E48: ±3 | N48: =IF('Mix Proportions via ACI 211'!$J$54="Yes",ROUND((N('Mix Proportions via ACI 211'!$G71)),1),ROUND((N('Mix Design'!$H66*('Mix Design'!$K$53/100))),1)) -> 
B49: Water reducing retarder, volume | E49: ±3 | N49: =IF('Mix Proportions via ACI 211'!$J$54="Yes",ROUND((N('Mix Proportions via ACI 211'!$G72)),1),ROUND((N('Mix Design'!$H67*('Mix Design'!$K$53/100))),1)) -> 
B50: High-range water reducing retarder, volume | E50: ±3 | N50: =IF('Mix Proportions via ACI 211'!$J$54="Yes",ROUND((N('Mix Proportions via ACI 211'!$G73)),1),ROUND((N('Mix Design'!$H68*('Mix Design'!$K$53/100))),1)) -> 
B51: Lithium nitrate admixture, volume | E51: ±3 | N51: =IF('Mix Proportions via ACI 211'!$J$54="Yes",ROUND((N('Mix Proportions via ACI 211'!$G74)),1),ROUND((N('Mix Design'!$H69*('Mix Design'!$K$53/100))),1)) -> 
B52: Corrosion inhibitor, volume | E52: ±3 | N52: =IF('Mix Proportions via ACI 211'!$J$54="Yes",ROUND((N('Mix Proportions via ACI 211'!$G75)),1),ROUND((N('Mix Design'!$H70*('Mix Design'!$K$53/100))),1)) -> 
B53: Fibers, wt | E53: ±2 | F53: =IF(ISERROR(IF('Mix Proportions via ACI 211'!$J$54="Yes",'Mix Proportions via ACI 211'!$L$80*$D$21,'Mix Design'!$K$75*$D$21)),"",IF('Mix Proportions via ACI 211'!$J$54="Yes",'Mix Proportions via ACI 211'!$L$80*$D$21,'Mix Design'!$K$75*$D$21)) -> 0 | H53: =IF(ISERROR(CONCATENATE(P53," - ",Q53)),"",CONCATENATE(P53," - ",Q53)) -> 0 - 0 | J53: NA | P53: =ROUND((N(F53)*0.98),1) -> 0 | Q53: =ROUND((N(F53)*1.02),1) -> 0
B54: Other, wt | E54: ±2 | F54: =IF(ISERROR(IF('Mix Proportions via ACI 211'!$J$54="Yes",'Mix Proportions via ACI 211'!$L$81*$D$21,'Mix Design'!$K$76*$D$21)),"",IF('Mix Proportions via ACI 211'!$J$54="Yes",'Mix Proportions via ACI 211'!$L$81*$D$21,'Mix Design'!$K$76*$D$21)) -> 0 | H54: =IF(ISERROR(CONCATENATE(P54," - ",Q54)),"",CONCATENATE(P54," - ",Q54)) -> 0 - 0 | J54: NA | P54: =ROUND((N(F54)*0.98),1) -> 0 | Q54: =ROUND((N(F54)*1.02),1) -> 0
B56: MEASUREMENT TOLERANCES (CUMULATIVE WEIGHING) -- Non-Volumetric Mixers
B57: Material | E57: Tolerance, (%) | F57: ="Batch Weight " & CONCATENATE("(lbs/ ",$D$21,"CY)") -> Batch Weight (lbs/ CY) | G57: ="Batch Volume " & CONCATENATE("(per ",$D$21,"CY)") -> Batch Volume (per CY) | H57: ="Allowable Batching Weight Range " &CONCATENATE("(lbs/ ",$D$21,"CY)") -> Allowable Batching Weight Range (lbs/ CY) | J57: ="Allowable Batching Volume Range " &CONCATENATE("(per ",$D$21,"CY)") -> Allowable Batching Volume Range (per CY)
B59: Cement, wt. | E59: -1 to +3 | F59: =IF(ISERROR(IF('Mix Proportions via ACI 211'!$J$54="Yes",'Mix Proportions via ACI 211'!$L$59*$D$21,'Mix Design'!$K$54*$D$21)),"",IF('Mix Proportions via ACI 211'!$J$54="Yes",'Mix Proportions via ACI 211'!$L$59*$D$21,'Mix Design'!$K$54*$D$21)) -> 0 | G59: =IF(ISERROR(IF('Mix Proportions via ACI 211'!$J$54="Yes",ROUND((('Mix Proportions via ACI 211'!$K$59/27)*$D$21),2),ROUND((('Mix Design'!$I$54/27)*$D$21),2))),"",IF('Mix Proportions via ACI 211'!$J$54="Yes",ROUND((('Mix Proportions via ACI 211'!$K$59/27)*$D$21),2),ROUND((('Mix Design'!$I$54/27)*$D$21),2))) -> 0 | H59: =IF(ISERROR(CONCATENATE(P59," - ",Q59)),"",CONCATENATE(P59," - ",Q59)) -> 0 - 0 | J59: NA | P59: =ROUND((N(F59)*0.99),1) -> 0 | Q59: =ROUND((N(F59)*1.03),1) -> 0
B60: Flyash, wt. | E60: -1 to +3 | F60: =IF(ISERROR(IF('Mix Proportions via ACI 211'!$J$54="Yes",'Mix Proportions via ACI 211'!$L$60*$D$21,'Mix Design'!$K$55*$D$21)),"",IF('Mix Proportions via ACI 211'!$J$54="Yes",'Mix Proportions via ACI 211'!$L$60*$D$21,'Mix Design'!$K$55*$D$21)) -> 0 | G60: =IF(ISERROR(IF('Mix Proportions via ACI 211'!$J$54="Yes",ROUND((('Mix Proportions via ACI 211'!$K$60/27)*$D$21),2),ROUND((('Mix Design'!$I$55/27)*$D$21),2))),"",IF('Mix Proportions via ACI 211'!$J$54="Yes",ROUND((('Mix Proportions via ACI 211'!$K$60/27)*$D$21),2),ROUND((('Mix Design'!$I$55/27)*$D$21),2))) -> 0 | H60: 0 - 0 | J60: NA | P60: 0 | Q60: 0
B61: GGBF slag, wt. | E61: -1 to +3 | F61: =IF(ISERROR(IF('Mix Proportions via ACI 211'!$J$54="Yes",'Mix Proportions via ACI 211'!$L$61*$D$21,'Mix Design'!$K$56*$D$21)),"",IF('Mix Proportions via ACI 211'!$J$54="Yes",'Mix Proportions via ACI 211'!$L$61*$D$21,'Mix Design'!$K$56*$D$21)) -> 0 | G61: =IF(ISERROR(IF('Mix Proportions via ACI 211'!$J$54="Yes",ROUND((('Mix Proportions via ACI 211'!$K$61/27)*$D$21),2),ROUND((('Mix Design'!$I$56/27)*$D$21),2))),"",IF('Mix Proportions via ACI 211'!$J$54="Yes",ROUND((('Mix Proportions via ACI 211'!$K$61/27)*$D$21),2),ROUND((('Mix Design'!$I$56/27)*$D$21),2))) -> 0 | H61: 0 - 0 | J61: NA | P61: 0 | Q61: 0
B62: Silica fume, wt. | E62: -1 to +3 | F62: =IF(ISERROR(IF('Mix Proportions via ACI 211'!$J$54="Yes",'Mix Proportions via ACI 211'!$L$62*$D$21,'Mix Design'!$K$57*$D$21)),"",IF('Mix Proportions via ACI 211'!$J$54="Yes",'Mix Proportions via ACI 211'!$L$62*$D$21,'Mix Design'!$K$57*$D$21)) -> 0 | G62: =IF(ISERROR(IF('Mix Proportions via ACI 211'!$J$54="Yes",ROUND((('Mix Proportions via ACI 211'!$K$62/27)*$D$21),2),ROUND((('Mix Design'!$I$57/27)*$D$21),2))),"",IF('Mix Proportions via ACI 211'!$J$54="Yes",ROUND((('Mix Proportions via ACI 211'!$K$62/27)*$D$21),2),ROUND((('Mix Design'!$I$57/27)*$D$21),2))) -> 0 | H62: 0 - 0 | J62: NA | P62: 0 | Q62: 0
B63: UFFA, wt. | E63: -1 to +3 | F63: =IF(ISERROR(IF('Mix Proportions via ACI 211'!$J$54="Yes",'Mix Proportions via ACI 211'!$L$63*$D$21,'Mix Design'!$K$58*$D$21)),"",IF('Mix Proportions via ACI 211'!$J$54="Yes",'Mix Proportions via ACI 211'!$L$63*$D$21,'Mix Design'!$K$58*$D$21)) -> 0 | G63: =IF(ISERROR(IF('Mix Proportions via ACI 211'!$J$54="Yes",ROUND((('Mix Proportions via ACI 211'!$K$63/27)*$D$21),2),ROUND((('Mix Design'!$I$58/27)*$D$21),2))),"",IF('Mix Proportions via ACI 211'!$J$54="Yes",ROUND((('Mix Proportions via ACI 211'!$K$63/27)*$D$21),2),ROUND((('Mix Design'!$I$58/27)*$D$21),2))) -> 0 | H63: 0 - 0 | J63: NA | P63: 0 | Q63: 0
B64: MFFA, wt. | E64: -1 to +3 | F64: =IF(ISERROR(IF('Mix Proportions via ACI 211'!$J$54="Yes",'Mix Proportions via ACI 211'!$L$64*$D$21,'Mix Design'!$K$59*$D$21)),"",IF('Mix Proportions via ACI 211'!$J$54="Yes",'Mix Proportions via ACI 211'!$L$64*$D$21,'Mix Design'!$K$59*$D$21)) -> 0 | G64: =IF(ISERROR(IF('Mix Proportions via ACI 211'!$J$54="Yes",ROUND((('Mix Proportions via ACI 211'!$K$64/27)*$D$21),2),ROUND((('Mix Design'!$I$59/27)*$D$21),2))),"",IF('Mix Proportions via ACI 211'!$J$54="Yes",ROUND((('Mix Proportions via ACI 211'!$K$64/27)*$D$21),2),ROUND((('Mix Design'!$I$59/27)*$D$21),2))) -> 0 | H64: 0 - 0 | J64: NA | P64: 0 | Q64: 0
B65: Metakaolin, wt. | E65: -1 to +3 | F65: =IF(ISERROR(IF('Mix Proportions via ACI 211'!$J$54="Yes",'Mix Proportions via ACI 211'!$L$65*$D$21,'Mix Design'!$K$60*$D$21)),"",IF('Mix Proportions via ACI 211'!$J$54="Yes",'Mix Proportions via ACI 211'!$L$65*$D$21,'Mix Design'!$K$60*$D$21)) -> 0 | G65: =IF(ISERROR(IF('Mix Proportions via ACI 211'!$J$54="Yes",ROUND((('Mix Proportions via ACI 211'!$K$65/27)*$D$21),2),ROUND((('Mix Design'!$I$60/27)*$D$21),2))),"",IF('Mix Proportions via ACI 211'!$J$54="Yes",ROUND((('Mix Proportions via ACI 211'!$K$65/27)*$D$21),2),ROUND((('Mix Design'!$I$60/27)*$D$21),2))) -> 0 | H65: 0 - 0 | J65: NA | P65: 0 | Q65: 0
B66: Other pozzolan, wt. | E66: -1 to +3 | F66: =IF(ISERROR(IF('Mix Proportions via ACI 211'!$J$54="Yes",'Mix Proportions via ACI 211'!$L$66*$D$21,'Mix Design'!$K$61*$D$21)),"",IF('Mix Proportions via ACI 211'!$J$54="Yes",'Mix Proportions via ACI 211'!$L$66*$D$21,'Mix Design'!$K$61*$D$21)) -> 0 | G66: =IF(ISERROR(IF('Mix Proportions via ACI 211'!$J$54="Yes",ROUND((('Mix Proportions via ACI 211'!$K$66/27)*$D$21),2),ROUND((('Mix Design'!$I$61/27)*$D$21),2))),"",IF('Mix Proportions via ACI 211'!$J$54="Yes",ROUND((('Mix Proportions via ACI 211'!$K$66/27)*$D$21),2),ROUND((('Mix Design'!$I$61/27)*$D$21),2))) -> 0 | H66: 0 - 0 | J66: NA | P66: 0 | Q66: 0
B67: Water, wt. or volume | E67: ±3 | F67: =IF(ISERROR(IF('Mix Proportions via ACI 211'!$J$54="Yes",L67,M67)),"",IF('Mix Proportions via ACI 211'!$J$54="Yes",L67,M67)) -> 0 | G67: =IF(ISERROR(CONCATENATE(O67," (gal.)")),"",CONCATENATE(O67," (gal.)")) -> 0 (gal.) | H67: 0 - 0 | J67: =IF(ISERROR(CONCATENATE(R67," - ",S67," (gal.)")),"",CONCATENATE(R67," - ",S67," (gal.)")) -> 0 - 0 (gal.) | L67: =L37 -> 0 | M67: =M37 -> 0 | O67: =IF('Mix Proportions via ACI 211'!$J$54="Yes",ROUND(((N(L67)/62.4)*7.48),2),ROUND(((N(M67)/62.4)*7.48),2)) -> 0 | P67: =ROUND((N(F67)*0.97),1) -> 0 | Q67: 0 | R67: =ROUND((N(O67)*0.97),2) -> 0 | S67: =ROUND((N(O67)*1.03),2) -> 0
B68: Fine aggregate 1, wt. | E68: ±1 | F68: =IF(ISERROR(IF('Mix Proportions via ACI 211'!$J$54="Yes",L68,M68)),"",IF('Mix Proportions via ACI 211'!$J$54="Yes",L68,M68)) -> 0 | G68: =IF(ISERROR(IF('Mix Proportions via ACI 211'!$J$54="Yes",ROUND((('Mix Proportions via ACI 211'!$K$93/27)*$D$21),2),ROUND((('Mix Design'!$I$82/27)*$D$21),2))),"",IF('Mix Proportions via ACI 211'!$J$54="Yes",ROUND((('Mix Proportions via ACI 211'!$K$93/27)*$D$21),2),ROUND((('Mix Design'!$I$82/27)*$D$21),2))) -> 0 | H68: 0 - 0 | J68: NA | L68: =IF(ISBLANK($I$24),ROUND(((N('Mix Proportions via ACI 211'!$L$93)*(1+N($I$24)/100))*N($D$21)),0),ROUND(((N('Mix Proportions via ACI 211'!$L$93)*(1+N($I$24)/100))*N($D$21)),0)) -> 0 | M68: =IF(ISBLANK($I$24),ROUND(((N('Mix Design'!$K$82)*(1+N($I$24)/100))*N($D$21)),0),ROUND(((N('Mix Design'!$K$82)*(1+N($I$24)/100))*N($D$21)),0)) -> 0 | P68: =ROUND((N(F68)*0.99),1) -> 0 | Q68: =ROUND((N(F68)*1.01),1) -> 0
B69: Fine aggregate 2, wt. | E69: ±1 | F69: =IF(ISERROR(IF('Mix Proportions via ACI 211'!$J$54="Yes",L69,M69)),"",IF('Mix Proportions via ACI 211'!$J$54="Yes",L69,M69)) -> 0 | G69: =IF(ISERROR(IF('Mix Proportions via ACI 211'!$J$54="Yes",ROUND((('Mix Proportions via ACI 211'!$K$94/27)*$D$21),2),ROUND((('Mix Design'!$I$83/27)*$D$21),2))),"",IF('Mix Proportions via ACI 211'!$J$54="Yes",ROUND((('Mix Proportions via ACI 211'!$K$94/27)*$D$21),2),ROUND((('Mix Design'!$I$83/27)*$D$21),2))) -> 0 | H69: 0 - 0 | J69: NA | L69: =IF(ISBLANK($J$24),ROUND(((N('Mix Proportions via ACI 211'!$L$94)*(1+N($J$24)/100))*N($D$21)),0),ROUND(((N('Mix Proportions via ACI 211'!$L$94)*(1+N($J$24)/100))*N($D$21)),0)) -> 0 | M69: =IF(ISBLANK($J$24),ROUND(((N('Mix Design'!$K$83)*(1+N($J$24)/100))*N($D$21)),0),ROUND(((N('Mix Design'!$K$83)*(1+N($J$24)/100))*N($D$21)),0)) -> 0 | P69: 0 | Q69: 0
B70: Coarse aggregate 1, wt. | E70: ±1 | F70: =IF(ISERROR(IF('Mix Proportions via ACI 211'!$J$54="Yes",L70,M70)),"",IF('Mix Proportions via ACI 211'!$J$54="Yes",L70,M70)) -> 0 | G70: =IF(ISERROR(IF('Mix Proportions via ACI 211'!$J$54="Yes",ROUND((('Mix Proportions via ACI 211'!$K$86/27)*$D$21),2),ROUND((('Mix Design'!$I$78/27)*$D$21),2))),"",IF('Mix Proportions via ACI 211'!$J$54="Yes",ROUND((('Mix Proportions via ACI 211'!$K$86/27)*$D$21),2),ROUND((('Mix Design'!$I$78/27)*$D$21),2))) -> 0 | H70: 0 - 0 | J70: NA | L70: =IF(ISBLANK($E$24),ROUND(((N('Mix Proportions via ACI 211'!$L$86)*(1+N($E$24)/100))*N($D$21)),0),ROUND(((N('Mix Proportions via ACI 211'!$L$86)*(1+N($E$24)/100))*N($D$21)),0)) -> 0 | M70: =IF(ISBLANK($E$24),ROUND(((N('Mix Design'!$K$78)*(1+N($E$24)/100))*N($D$21)),0),ROUND(((N('Mix Design'!$K$78)*(1+N($E$24)/100))*N($D$21)),0)) -> 0 | P70: 0 | Q70: 0
B71: Coarse aggregate 2, wt. | E71: ±1 | F71: =IF(ISERROR(IF('Mix Proportions via ACI 211'!$J$54="Yes",L71,M71)),"",IF('Mix Proportions via ACI 211'!$J$54="Yes",L71,M71)) -> 0 | G71: =IF(ISERROR(IF('Mix Proportions via ACI 211'!$J$54="Yes",ROUND((('Mix Proportions via ACI 211'!$K$87/27)*$D$21),2),ROUND((('Mix Design'!$I$80/27)*$D$21),2))),"",IF('Mix Proportions via ACI 211'!$J$54="Yes",ROUND((('Mix Proportions via ACI 211'!$K$87/27)*$D$21),2),ROUND((('Mix Design'!$I$80/27)*$D$21),2))) -> 0 | H71: 0 - 0 | J71: NA | L71: =IF(ISBLANK($F$24),ROUND(((N('Mix Proportions via ACI 211'!$L$87)*(1+N($F$24)/100))*N($D$21)),0),ROUND(((N('Mix Proportions via ACI 211'!$L$87)*(1+N($F$24)/100))*N($D$21)),0)) -> 0 | M71: =IF(ISBLANK($F$24),ROUND(((N('Mix Design'!$K$79)*(1+N($F$24)/100))*N($D$21)),0),ROUND(((N('Mix Design'!$K$79)*(1+N($F$24)/100))*N($D$21)),0)) -> 0 | P71: 0 | Q71: 0
B72: Intermediate aggregate 1, wt. | E72: ±1 | F72: =IF(ISERROR(IF('Mix Proportions via ACI 211'!$J$54="Yes",L72,M72)),"",IF('Mix Proportions via ACI 211'!$J$54="Yes",L72,M72)) -> 0 | G72: =IF(ISERROR(IF('Mix Proportions via ACI 211'!$J$54="Yes",ROUND((('Mix Proportions via ACI 211'!$K$88/27)*$D$21),2),ROUND((('Mix Design'!$I$80/27)*$D$21),2))),"",IF('Mix Proportions via ACI 211'!$J$54="Yes",ROUND((('Mix Proportions via ACI 211'!$K$88/27)*$D$21),2),ROUND((('Mix Design'!$I$80/27)*$D$21),2))) -> 0 | H72: 0 - 0 | J72: NA | L72: =IF(ISBLANK($G$24),ROUND(((N('Mix Proportions via ACI 211'!$L$88)*(1+N($G$24)/100))*N(N($D$21))),0),ROUND(((N('Mix Proportions via ACI 211'!$L$88)*(1+N($G$24)/100))*N(N($D$21))),0)) -> 0 | M72: =IF(ISBLANK($G$24),ROUND(((N('Mix Design'!$K$80)*(1+N($G$24)/100))*N($D$21)),0),ROUND(((N('Mix Design'!$K$80)*(1+N($G$24)/100))*N($D$21)),0)) -> 0 | P72: 0 | Q72: 0
B73: Intermediate aggregate 2, wt. | E73: ±1 | F73: =IF(ISERROR(IF('Mix Proportions via ACI 211'!$J$54="Yes",L73,M73)),"",IF('Mix Proportions via ACI 211'!$J$54="Yes",L73,M73)) -> 0 | G73: =IF(ISERROR(IF('Mix Proportions via ACI 211'!$J$54="Yes",ROUND((('Mix Proportions via ACI 211'!$K$89/27)*$D$21),2),ROUND((('Mix Design'!$I$81/27)*$D$21),2))),"",IF('Mix Proportions via ACI 211'!$J$54="Yes",ROUND((('Mix Proportions via ACI 211'!$K$89/27)*$D$21),2),ROUND((('Mix Design'!$I$81/27)*$D$21),2))) -> 0 | H73: 0 - 0 | J73: NA | L73: =IF(ISBLANK($H$24),ROUND(((N('Mix Proportions via ACI 211'!$L$89)*(1+N($H$24)/100))*N($D$21)),0),ROUND(((N('Mix Proportions via ACI 211'!$L$89)*(1+N($H$24)/100))*N($D$21)),0)) -> 0 | M73: =IF(ISBLANK($H$24),ROUND(((N('Mix Design'!$K$81)*(1+N($H$24)/100))*N($D$21)),0),ROUND(((N('Mix Design'!$K$81)*(1+N($H$24)/100))*N($D$21)),0)) -> 0 | P73: 0 | Q73: 0
B74: Air entraining admixture, volume | E74: ±3 | G74: =IF(ISERROR(CONCATENATE(O74," (oz.)")),"",CONCATENATE(O74," (oz.)")) ->  | J74: =IF(ISERROR(CONCATENATE(R74," - ",S74," (oz.)")),"",CONCATENATE(R74," - ",S74," (oz.)")) ->  | N74: =IF('Mix Proportions via ACI 211'!$J$54="Yes",ROUND((N('Mix Proportions via ACI 211'!$G67)),1),ROUND((N('Mix Design'!$H62*('Mix Design'!$K$53/100))),1)) ->  | O74: =ROUND((N(N74)*N($D$21)),1) ->  | R74: =ROUND((O74*0.97),1) ->  | S74: =ROUND((O74*1.03),1) -> 
B75: Set retarder, volume | E75: ±3 | N75: =IF('Mix Proportions via ACI 211'!$J$54="Yes",ROUND((N('Mix Proportions via ACI 211'!$G68)),1),ROUND((N('Mix Design'!$H63*('Mix Design'!$K$53/100))),1)) -> 
B76: Accelerator, volume | E76: ±3 | N76: =IF('Mix Proportions via ACI 211'!$J$54="Yes",ROUND((N('Mix Proportions via ACI 211'!$G69)),1),ROUND((N('Mix Design'!$H64*('Mix Design'!$K$53/100))),1)) -> 
B77: Water reducer, volume | E77: ±3 | N77: =IF('Mix Proportions via ACI 211'!$J$54="Yes",ROUND((N('Mix Proportions via ACI 211'!$G70)),1),ROUND((N('Mix Design'!$H65*('Mix Design'!$K$53/100))),1)) -> 
B78: High-range water reducer, volume | E78: ±3 | N78: =IF('Mix Proportions via ACI 211'!$J$54="Yes",ROUND((N('Mix Proportions via ACI 211'!$G71)),1),ROUND((N('Mix Design'!$H66*('Mix Design'!$K$53/100))),1)) -> 
B79: Water reducing retarder, volume | E79: ±3 | N79: =IF('Mix Proportions via ACI 211'!$J$54="Yes",ROUND((N('Mix Proportions via ACI 211'!$G72)),1),ROUND((N('Mix Design'!$H67*('Mix Design'!$K$53/100))),1)) -> 
B80: High-range water reducing retarder, volume | E80: ±3 | N80: =IF('Mix Proportions via ACI 211'!$J$54="Yes",ROUND((N('Mix Proportions via ACI 211'!$G73)),1),ROUND((N('Mix Design'!$H68*('Mix Design'!$K$53/100))),1)) -> 
B81: Lithium nitrate admixture, volume | E81: ±3 | N81: =IF('Mix Proportions via ACI 211'!$J$54="Yes",ROUND((N('Mix Proportions via ACI 211'!$G74)),1),ROUND((N('Mix Design'!$H69*('Mix Design'!$K$53/100))),1)) -> 
B82: Corrosion inhibitor, volume | E82: ±3 | N82: =IF('Mix Proportions via ACI 211'!$J$54="Yes",ROUND((N('Mix Proportions via ACI 211'!$G75)),1),ROUND((N('Mix Design'!$H70*('Mix Design'!$K$53/100))),1)) -> 
B83: Fibers, wt | E83: ±2 | F83: =IF(ISERROR(IF('Mix Proportions via ACI 211'!$J$54="Yes",'Mix Proportions via ACI 211'!$L$80*$D$21,'Mix Design'!$K$75*$D$21)),"",IF('Mix Proportions via ACI 211'!$J$54="Yes",'Mix Proportions via ACI 211'!$L$80*$D$21,'Mix Design'!$K$75*$D$21)) -> 0 | H83: =IF(ISERROR(CONCATENATE(P83," - ",Q83)),"",CONCATENATE(P83," - ",Q83)) -> 0 - 0 | J83: NA | P83: =ROUND((N(F83)*0.98),1) -> 0 | Q83: =ROUND((N(F83)*1.02),1) -> 0
B84: Other, wt | E84: ±2 | F84: =IF(ISERROR(IF('Mix Proportions via ACI 211'!$J$54="Yes",'Mix Proportions via ACI 211'!$L$81*$D$21,'Mix Design'!$K$76*$D$21)),"",IF('Mix Proportions via ACI 211'!$J$54="Yes",'Mix Proportions via ACI 211'!$L$81*$D$21,'Mix Design'!$K$76*$D$21)) -> 0 | H84: =IF(ISERROR(CONCATENATE(P84," - ",Q84)),"",CONCATENATE(P84," - ",Q84)) -> 0 - 0 | J84: NA | P84: =ROUND((N(F84)*0.98),1) -> 0 | Q84: =ROUND((N(F84)*1.02),1) -> 0

Sheet Vol. Mixers Tolerances
A1: TxDOT Manuals > | C1: Item 421 | E1: Tex-409-A
B2: HELP
B3: TEXAS DEPARTMENT OF TRANSPORTATION
B5: HYDRAULIC CEMENT CONCRETE MIX DESIGN & CONTROL
B6: Vol. Mixers Tolerances
B8: SAMPLE ID | D8: =IF('Mix Design'!E8="","",'Mix Design'!E8) ->  | F8: SAMPLED DATE: | H8: =IF('Mix Design'!I8="","",'Mix Design'!I8) -> 
B9: TEST NUMBER: | D9: =IF('Mix Design'!E9="","",'Mix Design'!E9) ->  | F9: LETTING DATE: | H9: =IF('Mix Design'!I9="","",'Mix Design'!I9) -> 
B10: SAMPLE STATUS: | D10: =IF('Mix Design'!E10="","",'Mix Design'!E10) ->  | F10: CONTROLLING CSJ: | H10: =IF('Mix Design'!I10="","",'Mix Design'!I10) -> 
B11: COUNTY: | D11: =IF('Mix Design'!E11="","",'Mix Design'!E11) ->  | F11: SPEC YEAR: | H11: =IF('Mix Design'!I11="","",'Mix Design'!I11) -> 
B12: SAMPLED BY: | D12: =IF('Mix Design'!E12="","",'Mix Design'!E12) ->  | F12: SPEC ITEM: | H12: =IF('Mix Design'!I12="","",'Mix Design'!I12) -> 
B13: SAMPLE LOCATION: | D13: =IF('Mix Design'!E13="","",'Mix Design'!E13) ->  | F13: SPECIAL PROVISION: | H13: =IF('Mix Design'!I13="","",'Mix Design'!I13) -> 
B14: MATERIAL CODE: | D14: =IF('Mix Design'!E14="","",'Mix Design'!E14) ->  | F14: CLASS: | H14: =IF('Mix Design'!I14="","",'Mix Design'!I14) -> 
B15: MATERIAL NAME: | D15: =IF('Mix Design'!E15="","",'Mix Design'!E15) -> 
B16: PRODUCER: | D16: =IF('Mix Design'!E16="","",'Mix Design'!E16) -> 
B17: AREA ENGINEER: | D17: =IF('Mix Design'!E17="","",'Mix Design'!E17) ->  | F17: PROJECT MANAGER: | H17: =IF('Mix Design'!I17="","",'Mix Design'!I17) -> 
B19: COURSE\LIFT: | D19: =IF('Mix Design'!E19="","",'Mix Design'!E19) ->  | E19: STATION: | F19: =IF('Mix Design'!G19="","",'Mix Design'!G19) ->  | G19: DIST. FROM CL: | I19: =IF('Mix Design'!L19="","",'Mix Design'!L19) -> 
C21: Batch Size, CY: | F21: Amount of Ice, lbs:
E23: CA 1 | F23: CA 2 | G23: IA 1 | H23: IA 2 | I23: FA 1 | J23: FA 2
B24: Free Moisture ( + ) or Absorption ( - ) (%)
B26: MEASUREMENT TOLERANCES -- Volumetric Mixers
B27: Material | E27: Tolerance, (%) | F27: ="Batch Weight " & CONCATENATE("(lbs/ ",$E$21,"CY)") -> Batch Weight (lbs/ CY) | G27: ="Batch Volume " & CONCATENATE("(per ",$E$21,"CY)") -> Batch Volume (per CY) | H27: ="Allowable Batching Weight Range " &CONCATENATE("(lbs/ ",$E$21,"CY)") -> Allowable Batching Weight Range (lbs/ CY) | J27: ="Allowable Batching Volume Range " &CONCATENATE("(per ",$E$21,"CY)") -> Allowable Batching Volume Range (per CY)
B29: Cement, wt. | E29: 0 to +4 | F29: =IF(ISERROR(IF('Mix Proportions via ACI 211'!$J$54="Yes",'Mix Proportions via ACI 211'!$L$59*$E$21,'Mix Design'!$K$54*$E$21)),"",IF('Mix Proportions via ACI 211'!$J$54="Yes",'Mix Proportions via ACI 211'!$L$59*$E$21,'Mix Design'!$K$54*$E$21)) -> 0 | G29: =IF(ISERROR(IF('Mix Proportions via ACI 211'!$J$54="Yes",ROUND((('Mix Proportions via ACI 211'!$K$59/27)*$E$21),2),ROUND((('Mix Design'!$I$54/27)*$E$21),2))),"",IF('Mix Proportions via ACI 211'!$J$54="Yes",ROUND((('Mix Proportions via ACI 211'!$K$59/27)*$E$21),2),ROUND((('Mix Design'!$I$54/27)*$E$21),2))) -> 0 | H29: =IF(ISERROR(CONCATENATE(P29," - ",Q29)),"",CONCATENATE(P29," - ",Q29)) -> 0 - 0 | J29: NA | P29: =ROUND((N(F29)*1),0) -> 0 | Q29: =ROUND((N(F29)*1.04),1) -> 0
B30: Flyash, wt. | E30: 0 to +4 | F30: =IF(ISERROR(IF('Mix Proportions via ACI 211'!$J$54="Yes",'Mix Proportions via ACI 211'!$L$60*$E$21,'Mix Design'!$K$55*$E$21)),"",IF('Mix Proportions via ACI 211'!$J$54="Yes",'Mix Proportions via ACI 211'!$L$60*$E$21,'Mix Design'!$K$55*$E$21)) -> 0 | G30: =IF(ISERROR(IF('Mix Proportions via ACI 211'!$J$54="Yes",ROUND((('Mix Proportions via ACI 211'!$K$60/27)*$E$21),2),ROUND((('Mix Design'!$I$55/27)*$E$21),2))),"",IF('Mix Proportions via ACI 211'!$J$54="Yes",ROUND((('Mix Proportions via ACI 211'!$K$60/27)*$E$21),2),ROUND((('Mix Design'!$I$55/27)*$E$21),2))) -> 0 | H30: 0 - 0 | J30: NA | P30: 0 | Q30: 0
B31: GGBF slag, wt. | E31: 0 to +4 | F31: =IF(ISERROR(IF('Mix Proportions via ACI 211'!$J$54="Yes",'Mix Proportions via ACI 211'!$L$61*$E$21,'Mix Design'!$K$56*$E$21)),"",IF('Mix Proportions via ACI 211'!$J$54="Yes",'Mix Proportions via ACI 211'!$L$61*$E$21,'Mix Design'!$K$56*$E$21)) -> 0 | G31: =IF(ISERROR(IF('Mix Proportions via ACI 211'!$J$54="Yes",ROUND((('Mix Proportions via ACI 211'!$K$61/27)*$E$21),2),ROUND((('Mix Design'!$I$56/27)*$E$21),2))),"",IF('Mix Proportions via ACI 211'!$J$54="Yes",ROUND((('Mix Proportions via ACI 211'!$K$61/27)*$E$21),2),ROUND((('Mix Design'!$I$56/27)*$E$21),2))) -> 0 | H31: 0 - 0 | J31: NA | P31: 0 | Q31: 0
B32: Silica fume, wt. | E32: 0 to +4 | F32: =IF(ISERROR(IF('Mix Proportions via ACI 211'!$J$54="Yes",'Mix Proportions via ACI 211'!$L$62*$E$21,'Mix Design'!$K$57*$E$21)),"",IF('Mix Proportions via ACI 211'!$J$54="Yes",'Mix Proportions via ACI 211'!$L$62*$E$21,'Mix Design'!$K$57*$E$21)) -> 0 | G32: =IF(ISERROR(IF('Mix Proportions via ACI 211'!$J$54="Yes",ROUND((('Mix Proportions via ACI 211'!$K$62/27)*$E$21),2),ROUND((('Mix Design'!$I$57/27)*$E$21),2))),"",IF('Mix Proportions via ACI 211'!$J$54="Yes",ROUND((('Mix Proportions via ACI 211'!$K$62/27)*$E$21),2),ROUND((('Mix Design'!$I$57/27)*$E$21),2))) -> 0 | H32: 0 - 0 | J32: NA | P32: 0 | Q32: 0
B33: UFFA, wt. | E33: 0 to +4 | F33: =IF(ISERROR(IF('Mix Proportions via ACI 211'!$J$54="Yes",'Mix Proportions via ACI 211'!$L$63*$E$21,'Mix Design'!$K$58*$E$21)),"",IF('Mix Proportions via ACI 211'!$J$54="Yes",'Mix Proportions via ACI 211'!$L$63*$E$21,'Mix Design'!$K$58*$E$21)) -> 0 | G33: =IF(ISERROR(IF('Mix Proportions via ACI 211'!$J$54="Yes",ROUND((('Mix Proportions via ACI 211'!$K$63/27)*$E$21),2),ROUND((('Mix Design'!$I$58/27)*$E$21),2))),"",IF('Mix Proportions via ACI 211'!$J$54="Yes",ROUND((('Mix Proportions via ACI 211'!$K$63/27)*$E$21),2),ROUND((('Mix Design'!$I$58/27)*$E$21),2))) -> 0 | H33: 0 - 0 | J33: NA | P33: 0 | Q33: 0
B34: MFFA, wt. | E34: 0 to +4 | F34: =IF(ISERROR(IF('Mix Proportions via ACI 211'!$J$54="Yes",'Mix Proportions via ACI 211'!$L$64*$D$21,'Mix Design'!$K$59*$D$21)),"",IF('Mix Proportions via ACI 211'!$J$54="Yes",'Mix Proportions via ACI 211'!$L$64*$D$21,'Mix Design'!$K$59*$D$21)) -> 0 | G34: =IF(ISERROR(IF('Mix Proportions via ACI 211'!$J$54="Yes",ROUND((('Mix Proportions via ACI 211'!$K$64/27)*$D$21),2),ROUND((('Mix Design'!$I$59/27)*$D$21),2))),"",IF('Mix Proportions via ACI 211'!$J$54="Yes",ROUND((('Mix Proportions via ACI 211'!$K$64/27)*$D$21),2),ROUND((('Mix Design'!$I$59/27)*$D$21),2))) -> 0 | H34: 0 - 0 | J34: NA | P34: 0 | Q34: 0
B35: Metakaolin, wt. | E35: 0 to +4 | F35: =IF(ISERROR(IF('Mix Proportions via ACI 211'!$J$54="Yes",'Mix Proportions via ACI 211'!$L$65*$E$21,'Mix Design'!$K$60*$E$21)),"",IF('Mix Proportions via ACI 211'!$J$54="Yes",'Mix Proportions via ACI 211'!$L$65*$E$21,'Mix Design'!$K$60*$E$21)) -> 0 | G35: =IF(ISERROR(IF('Mix Proportions via ACI 211'!$J$54="Yes",ROUND((('Mix Proportions via ACI 211'!$K$65/27)*$E$21),2),ROUND((('Mix Design'!$I$60/27)*$E$21),2))),"",IF('Mix Proportions via ACI 211'!$J$54="Yes",ROUND((('Mix Proportions via ACI 211'!$K$65/27)*$E$21),2),ROUND((('Mix Design'!$I$60/27)*$E$21),2))) -> 0 | H35: 0 - 0 | J35: NA | P35: 0 | Q35: 0
B36: Other pozzolan, wt. | E36: 0 to +4 | F36: =IF(ISERROR(IF('Mix Proportions via ACI 211'!$J$54="Yes",'Mix Proportions via ACI 211'!$L$66*$E$21,'Mix Design'!$K$61*$E$21)),"",IF('Mix Proportions via ACI 211'!$J$54="Yes",'Mix Proportions via ACI 211'!$L$66*$E$21,'Mix Design'!$K$61*$E$21)) -> 0 | G36: =IF(ISERROR(IF('Mix Proportions via ACI 211'!$J$54="Yes",ROUND((('Mix Proportions via ACI 211'!$K$66/27)*$E$21),2),ROUND((('Mix Design'!$I$61/27)*$E$21),2))),"",IF('Mix Proportions via ACI 211'!$J$54="Yes",ROUND((('Mix Proportions via ACI 211'!$K$66/27)*$E$21),2),ROUND((('Mix Design'!$I$61/27)*$E$21),2))) -> 0 | H36: 0 - 0 | J36: NA | P36: 0 | Q36: 0
B37: Water, wt. or volume | E37: ±1 | F37: =IF(ISERROR(IF('Mix Proportions via ACI 211'!$J$54="Yes",L37,M37)),"",IF('Mix Proportions via ACI 211'!$J$54="Yes",L37,M37)) -> 0 | G37: =IF(ISERROR(CONCATENATE(O37," (gal.)")),"",CONCATENATE(O37," (gal.)")) -> 0 (gal.) | H37: 0 - 0 | J37: =IF(ISERROR(CONCATENATE(R37," - ",S37," (gal.)")),"",CONCATENATE(R37," - ",S37," (gal.)")) -> 0 - 0 (gal.) | L37: =ROUND((((N('Mix Proportions via ACI 211'!$L$57)-N('Mix Proportions via ACI 211'!$L$86)*N(E24/100)-N('Mix Proportions via ACI 211'!$L$87)*N(F24/100)-N('Mix Proportions via ACI 211'!$L$88)*N(G24/100)-N('Mix Proportions via ACI 211'!$L$89)*N(H24/100)-N('Mix Proportions via ACI 211'!$L$93)*N(I24/100)-N('Mix Proportions via ACI 211'!$L$94)*N(J24/100)-N('Mix Proportions via ACI 211'!O76))*N($E$21))-N(H21)),0) -> 0 | M37: =ROUND((((N('Mix Design'!$K$52)-N('Mix Design'!$K$78)*E24/100-N('Mix Design'!$K$79)*F24/100-N('Mix Design'!$K$80)*G24/100-N('Mix Design'!$K$81)*H24/100-N('Mix Design'!$K$82*I24/100)-N('Mix Design'!$K$83)*J24/100-N('Mix Proportions via ACI 211'!O76))*N($E$21))-N(H21)),0) -> 0 | O37: =IF('Mix Proportions via ACI 211'!$J$54="Yes",ROUND(((N(L37)/62.4)*7.48),2),ROUND(((N(M37)/62.4)*7.48),2)) -> 0 | P37: =ROUND((N(F37)*0.99),1) -> 0 | Q37: =ROUND((N(F37)*1.01),1) -> 0 | R37: =ROUND((N(O37)*0.97),2) -> 0 | S37: =ROUND((N(O37)*1.03),2) -> 0
B38: Fine aggregate 1, wt. | E38: ±2 | F38: =IF(ISERROR(IF('Mix Proportions via ACI 211'!$J$54="Yes",L38,M38)),"",IF('Mix Proportions via ACI 211'!$J$54="Yes",L38,M38)) -> 0 | G38: =IF(ISERROR(IF('Mix Proportions via ACI 211'!$J$54="Yes",ROUND((('Mix Proportions via ACI 211'!$K$93/27)*$E$21),2),ROUND((('Mix Design'!$I$82/27)*$E$21),2))),"",IF('Mix Proportions via ACI 211'!$J$54="Yes",ROUND((('Mix Proportions via ACI 211'!$K$93/27)*$E$21),2),ROUND((('Mix Design'!$I$82/27)*$E$21),2))) -> 0 | H38: 0 - 0 | J38: NA | L38: =IF(ISBLANK($I$24),ROUND(((N('Mix Proportions via ACI 211'!$L$93)*(1+N($I$24)/100))*N($E$21)),0),ROUND(((N('Mix Proportions via ACI 211'!$L$93)*(1+N($I$24)/100))*N($E$21)),0)) -> 0 | M38: =IF(ISBLANK($I$24),ROUND(((N('Mix Design'!$K$82)*(1+N($I$24)/100))*N($E$21)),0),ROUND(((N('Mix Design'!$K$82)*(1+N($I$24)/100))*N($E$21)),0)) -> 0 | P38: =ROUND((N(F38)*0.98),1) -> 0 | Q38: =ROUND((N(F38)*1.02),1) -> 0
B39: Fine aggregate 2, wt. | E39: ±2 | F39: =IF(ISERROR(IF('Mix Proportions via ACI 211'!$J$54="Yes",L39,M39)),"",IF('Mix Proportions via ACI 211'!$J$54="Yes",L39,M39)) -> 0 | G39: =IF(ISERROR(IF('Mix Proportions via ACI 211'!$J$54="Yes",ROUND((('Mix Proportions via ACI 211'!$K$94/27)*$E$21),2),ROUND((('Mix Design'!$I$83/27)*$E$21),2))),"",IF('Mix Proportions via ACI 211'!$J$54="Yes",ROUND((('Mix Proportions via ACI 211'!$K$94/27)*$E$21),2),ROUND((('Mix Design'!$I$83/27)*$E$21),2))) -> 0 | H39: 0 - 0 | J39: NA | L39: =IF(ISBLANK($J$24),ROUND(((N('Mix Proportions via ACI 211'!$L$94)*(1+N($J$24)/100))*N($E$21)),0),ROUND(((N('Mix Proportions via ACI 211'!$L$94)*(1+N($J$24)/100))*N($E$21)),0)) -> 0 | M39: =IF(ISBLANK($J$24),ROUND(((N('Mix Design'!$K$83)*(1+N($J$24)/100))*N($E$21)),0),ROUND(((N('Mix Design'!$K$83)*(1+N($J$24)/100))*N($E$21)),0)) -> 0 | P39: 0 | Q39: 0
B40: Coarse aggregate 1, wt. | E40: ±2 | F40: =IF(ISERROR(IF('Mix Proportions via ACI 211'!$J$54="Yes",L40,M40)),"",IF('Mix Proportions via ACI 211'!$J$54="Yes",L40,M40)) -> 0 | G40: =IF(ISERROR(IF('Mix Proportions via ACI 211'!$J$54="Yes",ROUND((('Mix Proportions via ACI 211'!$K$86/27)*$E$21),2),ROUND((('Mix Design'!$I$78/27)*$E$21),2))),"",IF('Mix Proportions via ACI 211'!$J$54="Yes",ROUND((('Mix Proportions via ACI 211'!$K$86/27)*$E$21),2),ROUND((('Mix Design'!$I$78/27)*$E$21),2))) -> 0 | H40: 0 - 0 | J40: NA | L40: =IF(ISBLANK($E$24),ROUND(((N('Mix Proportions via ACI 211'!$L$86)*(1+N($E$24)/100))*N($E$21)),0),ROUND(((N('Mix Proportions via ACI 211'!$L$86)*(1+N($E$24)/100))*N($E$21)),0)) -> 0 | M40: =IF(ISBLANK($E$24),ROUND(((N('Mix Design'!$K$78)*(1+N($E$24)/100))*N($E$21)),0),ROUND(((N('Mix Design'!$K$78)*(1+N($E$24)/100))*N($E$21)),0)) -> 0 | P40: 0 | Q40: 0
B41: Coarse aggregate 2, wt. | E41: ±2 | F41: =IF(ISERROR(IF('Mix Proportions via ACI 211'!$J$54="Yes",L41,M41)),"",IF('Mix Proportions via ACI 211'!$J$54="Yes",L41,M41)) -> 0 | G41: =IF(ISERROR(IF('Mix Proportions via ACI 211'!$J$54="Yes",ROUND((('Mix Proportions via ACI 211'!$K$87/27)*$E$21),2),ROUND((('Mix Design'!$I$80/27)*$E$21),2))),"",IF('Mix Proportions via ACI 211'!$J$54="Yes",ROUND((('Mix Proportions via ACI 211'!$K$87/27)*$E$21),2),ROUND((('Mix Design'!$I$80/27)*$E$21),2))) -> 0 | H41: 0 - 0 | J41: NA | L41: =IF(ISBLANK($F$24),ROUND(((N('Mix Proportions via ACI 211'!$L$87)*(1+N($F$24)/100))*N($E$21)),0),ROUND(((N('Mix Proportions via ACI 211'!$L$87)*(1+N($F$24)/100))*N($E$21)),0)) -> 0 | M41: =IF(ISBLANK($F$24),ROUND(((N('Mix Design'!$K$79)*(1+N($F$24)/100))*N($E$21)),0),ROUND(((N('Mix Design'!$K$79)*(1+N($F$24)/100))*N($E$21)),0)) -> 0 | P41: 0 | Q41: 0
B42: Intermediate aggregate 1, wt. | E42: ±2 | F42: =IF(ISERROR(IF('Mix Proportions via ACI 211'!$J$54="Yes",L42,M42)),"",IF('Mix Proportions via ACI 211'!$J$54="Yes",L42,M42)) -> 0 | G42: =IF(ISERROR(IF('Mix Proportions via ACI 211'!$J$54="Yes",ROUND((('Mix Proportions via ACI 211'!$K$88/27)*$E$21),2),ROUND((('Mix Design'!$I$80/27)*$E$21),2))),"",IF('Mix Proportions via ACI 211'!$J$54="Yes",ROUND((('Mix Proportions via ACI 211'!$K$88/27)*$E$21),2),ROUND((('Mix Design'!$I$80/27)*$E$21),2))) -> 0 | H42: 0 - 0 | J42: NA | L42: =IF(ISBLANK($G$24),ROUND(((N('Mix Proportions via ACI 211'!$L$88)*(1+N($G$24)/100))*N($E$21)),0),ROUND(((N('Mix Proportions via ACI 211'!$L$88)*(1+N($G$24)/100))*N($E$21)),0)) -> 0 | M42: =IF(ISBLANK($G$24),ROUND(((N('Mix Design'!$K$80)*(1+N($G$24)/100))*N($E$21)),0),ROUND(((N('Mix Design'!$K$80)*(1+N($G$24)/100))*N($E$21)),0)) -> 0 | P42: 0 | Q42: 0
B43: Intermediate aggregate 2, wt. | E43: ±2 | F43: =IF(ISERROR(IF('Mix Proportions via ACI 211'!$J$54="Yes",L43,M43)),"",IF('Mix Proportions via ACI 211'!$J$54="Yes",L43,M43)) -> 0 | G43: =IF(ISERROR(IF('Mix Proportions via ACI 211'!$J$54="Yes",ROUND((('Mix Proportions via ACI 211'!$K$89/27)*$E$21),2),ROUND((('Mix Design'!$I$81/27)*$E$21),2))),"",IF('Mix Proportions via ACI 211'!$J$54="Yes",ROUND((('Mix Proportions via ACI 211'!$K$89/27)*$E$21),2),ROUND((('Mix Design'!$I$81/27)*$E$21),2))) -> 0 | H43: 0 - 0 | J43: NA | L43: =IF(ISBLANK($H$24),ROUND(((N('Mix Proportions via ACI 211'!$L$89)*(1+N($H$24)/100))*N($E$21)),0),ROUND(((N('Mix Proportions via ACI 211'!$L$89)*(1+N($H$24)/100))*N($E$21)),0)) -> 0 | M43: =IF(ISBLANK($H$24),ROUND(((N('Mix Design'!$K$81)*(1+N($H$24)/100))*N($E$21)),0),ROUND(((N('Mix Design'!$K$81)*(1+N($H$24)/100))*N($E$21)),0)) -> 0 | P43: 0 | Q43: 0
B44: Air entraining admixture, volume | E44: ±3 | G44: =IF(ISERROR(CONCATENATE(O44," (oz.)")),"",CONCATENATE(O44," (oz.)")) ->  | J44: =IF(ISERROR(CONCATENATE(R44," - ",S44," (oz.)")),"",CONCATENATE(R44," - ",S44," (oz.)")) ->  | N44: =IF('Mix Proportions via ACI 211'!$J$54="Yes",ROUND((N('Mix Proportions via ACI 211'!$G67)),1),ROUND((N('Mix Design'!$H62*('Mix Design'!$K$53/100))),1)) ->  | O44: =ROUND((N44*N($E$21)),1) ->  | R44: =ROUND((O44*0.97),1) ->  | S44: =ROUND((O44*1.03),1) -> 
B45: Set retarder, volume | E45: ±3 | N45: =IF('Mix Proportions via ACI 211'!$J$54="Yes",ROUND((N('Mix Proportions via ACI 211'!$G68)),1),ROUND((N('Mix Design'!$H63*('Mix Design'!$K$53/100))),1)) -> 
B46: Accelerator, volume | E46: ±3 | N46: =IF('Mix Proportions via ACI 211'!$J$54="Yes",ROUND((N('Mix Proportions via ACI 211'!$G69)),1),ROUND((N('Mix Design'!$H64*('Mix Design'!$K$53/100))),1)) -> 
B47: Water reducer, volume | E47: ±3 | N47: =IF('Mix Proportions via ACI 211'!$J$54="Yes",ROUND((N('Mix Proportions via ACI 211'!$G70)),1),ROUND((N('Mix Design'!$H65*('Mix Design'!$K$53/100))),1)) -> 
B48: High-range water reducer, volume | E48: ±3 | N48: =IF('Mix Proportions via ACI 211'!$J$54="Yes",ROUND((N('Mix Proportions via ACI 211'!$G71)),1),ROUND((N('Mix Design'!$H66*('Mix Design'!$K$53/100))),1)) -> 
B49: Water reducing retarder, volume | E49: ±3 | N49: =IF('Mix Proportions via ACI 211'!$J$54="Yes",ROUND((N('Mix Proportions via ACI 211'!$G72)),1),ROUND((N('Mix Design'!$H67*('Mix Design'!$K$53/100))),1)) -> 
B50: High-range water reducing retarder, volume | E50: ±3 | N50: =IF('Mix Proportions via ACI 211'!$J$54="Yes",ROUND((N('Mix Proportions via ACI 211'!$G73)),1),ROUND((N('Mix Design'!$H68*('Mix Design'!$K$53/100))),1)) -> 
B51: Lithium nitrate admixture, volume | E51: ±3 | N51: =IF('Mix Proportions via ACI 211'!$J$54="Yes",ROUND((N('Mix Proportions via ACI 211'!$G74)),1),ROUND((N('Mix Design'!$H69*('Mix Design'!$K$53/100))),1)) -> 
B52: Corrosion inhibitor, volume | E52: ±3 | N52: =IF('Mix Proportions via ACI 211'!$J$54="Yes",ROUND((N('Mix Proportions via ACI 211'!$G75)),1),ROUND((N('Mix Design'!$H70*('Mix Design'!$K$53/100))),1)) -> 
B53: Fibers, wt | E53: ±2 | F53: =IF(ISERROR(IF('Mix Proportions via ACI 211'!$J$54="Yes",'Mix Proportions via ACI 211'!$L$80*$E$21,'Mix Design'!$K$75*$E$21)),"",IF('Mix Proportions via ACI 211'!$J$54="Yes",'Mix Proportions via ACI 211'!$L$80*$E$21,'Mix Design'!$K$75*$E$21)) -> 0 | H53: =IF(ISERROR(CONCATENATE(P53," - ",Q53)),"",CONCATENATE(P53," - ",Q53)) -> 0 - 0 | J53: NA | P53: =ROUND((N(F53)*0.98),0) -> 0 | Q53: =ROUND((N(F53)*1.02),1) -> 0
B54: Other, wt | E54: ±2 | F54: =IF(ISERROR(IF('Mix Proportions via ACI 211'!$J$54="Yes",'Mix Proportions via ACI 211'!$L$81*$E$21,'Mix Design'!$K$76*$E$21)),"",IF('Mix Proportions via ACI 211'!$J$54="Yes",'Mix Proportions via ACI 211'!$L$81*$E$21,'Mix Design'!$K$76*$E$21)) -> 0 | H54: =IF(ISERROR(CONCATENATE(P54," - ",Q54)),"",CONCATENATE(P54," - ",Q54)) -> 0 - 0 | J54: NA | P54: =ROUND((N(F54)*0.98),0) -> 0 | Q54: =ROUND((N(F54)*1.02),1) -> 0

Sheet Producer Data
B1: TxDOT Manuals > | E1: Return to Mix Design
C2: HELP
C3: TEXAS DEPARTMENT OF TRANSPORTATION | L3: 16
L4: 1
C5: HYDRAULIC CEMENT CONCRETE MIX DESIGN & CONTROL | L5: Tx417.xls::38117.490382
C6: Producer Data
C8: SAMPLE ID | E8: =IF('Mix Design'!E8="","",'Mix Design'!E8) ->  | G8: SAMPLED DATE: | I8: =IF('Mix Design'!I8="","",'Mix Design'!I8) -> 
C9: TEST NUMBER: | E9: =IF('Mix Design'!E9="","",'Mix Design'!E9) ->  | G9: LETTING DATE: | I9: =IF('Mix Design'!I9="","",'Mix Design'!I9) -> 
C10: SAMPLE STATUS: | E10: =IF('Mix Design'!E10="","",'Mix Design'!E10) ->  | G10: CONTROLLING CSJ: | I10: =IF('Mix Design'!I10="","",'Mix Design'!I10) -> 
C11: COUNTY: | E11: =IF('Mix Design'!E11="","",'Mix Design'!E11) ->  | G11: SPEC YEAR: | I11: =IF('Mix Design'!I11="","",'Mix Design'!I11) -> 
C12: SAMPLED BY: | E12: =IF('Mix Design'!E12="","",'Mix Design'!E12) ->  | G12: SPEC ITEM: | I12: =IF('Mix Design'!I12="","",'Mix Design'!I12) -> 
C13: SAMPLE LOCATION: | E13: =IF('Mix Design'!E13="","",'Mix Design'!E13) ->  | G13: SPECIAL PROVISION: | I13: =IF('Mix Design'!I13="","",'Mix Design'!I13) -> 
C14: MATERIAL CODE: | E14: =IF('Mix Design'!E14="","",'Mix Design'!E14) ->  | G14: CLASS: | I14: =IF('Mix Design'!I14="","",'Mix Design'!I14) -> 
C15: MATERIAL NAME: | E15: =IF('Mix Design'!E15="","",'Mix Design'!E15) -> 
C16: PRODUCER: | E16: =IF('Mix Design'!E16="","",'Mix Design'!E16) -> 
C17: AREA ENGINEER: | E17: =IF('Mix Design'!E17="","",'Mix Design'!E17) ->  | G17: PROJECT MANAGER: | I17: =IF('Mix Design'!I17="","",'Mix Design'!I17) -> 
C19: COURSE\LIFT: | E19: =IF('Mix Design'!E19="","",'Mix Design'!E19) ->  | F19: STATION: | G19: =IF('Mix Design'!G19="","",'Mix Design'!G19) ->  | H19: DIST. FROM CL: | J19: =IF('Mix Design'!L19="","",'Mix Design'!L19) -> 
C21: If the Producer's standard deviation is unknown, please enter data below to calculate.
C22: A | E22: B | G22: C | I22: D
C23: Date | D23: Compressive Strength, (psi) | E23: Date | F23: Compressive Strength, (psi) | G23: Date | H23: Compressive Strength, (psi) | I23: Date | J23: Compressive Strength, (psi)
B25: 1
B26: 2
B27: 3
B28: 4
B29: 5
B30: 6
B31: 7
B32: 8
B33: 9
B34: 10
B35: 11
B36: 12
B37: 13
B38: 14
B39: 15
B40: 16
B41: 17
B42: 18
B43: 19
B44: 20
B45: 21
B46: 22
B47: 23
B48: 24
B49: 25
H50: Standard Deviation: | J50: =IF(ISERROR(STDEV(D25:D49,F25:F49,H25:H49,J25:J49)),"",STDEV(D25:D49,F25:F49,H25:H49,J25:J49)) -> 
H51: Number of Tests: | J51: =IF(COUNTBLANK(C25:J49)=200,"",COUNT(D25:D49,F25:F49,H25:H49,J25:J49)) -> 

Sheet Effects of Air on Yield
A1: TxDOT Manuals >
B2: HELP
B3: TEXAS DEPARTMENT OF TRANSPORTATION | K3: 16
K4: 1
B5: HYDRAULIC CEMENT CONCRETE MIX DESIGN & CONTROL | K5: Tx417.xls::38117.490382
B6: Effects of Various Air Contents on Design Yield
B8: SAMPLE ID | D8: =IF('Mix Design'!E8="","",'Mix Design'!E8) ->  | F8: SAMPLED DATE: | H8: =IF('Mix Design'!I8="","",'Mix Design'!I8) -> 
B9: TEST NUMBER: | D9: =IF('Mix Design'!E9="","",'Mix Design'!E9) ->  | F9: LETTING DATE: | H9: =IF('Mix Design'!I9="","",'Mix Design'!I9) -> 
B10: SAMPLE STATUS: | D10: =IF('Mix Design'!E10="","",'Mix Design'!E10) ->  | F10: CONTROLLING CSJ: | H10: =IF('Mix Design'!I10="","",'Mix Design'!I10) -> 
B11: COUNTY: | D11: =IF('Mix Design'!E11="","",'Mix Design'!E11) ->  | F11: SPEC YEAR: | H11: =IF('Mix Design'!I11="","",'Mix Design'!I11) -> 
B12: SAMPLED BY: | D12: =IF('Mix Design'!E12="","",'Mix Design'!E12) ->  | F12: SPEC ITEM: | H12: =IF('Mix Design'!I12="","",'Mix Design'!I12) -> 
B13: SAMPLE LOCATION: | D13: =IF('Mix Design'!E13="","",'Mix Design'!E13) ->  | F13: SPECIAL PROVISION: | H13: =IF('Mix Design'!I13="","",'Mix Design'!I13) -> 
B14: MATERIAL CODE: | D14: =IF('Mix Design'!E14="","",'Mix Design'!E14) ->  | F14: CLASS: | H14: =IF('Mix Design'!I14="","",'Mix Design'!I14) -> 
B15: MATERIAL NAME: | D15: =IF('Mix Design'!E15="","",'Mix Design'!E15) -> 
B16: PRODUCER: | D16: =IF('Mix Design'!E16="","",'Mix Design'!E16) -> 
B17: AREA ENGINEER: | D17: =IF('Mix Design'!E17="","",'Mix Design'!E17) ->  | F17: PROJECT MANAGER: | H17: =IF('Mix Design'!I17="","",'Mix Design'!I17) -> 
B19: COURSE\LIFT: | D19: =IF('Mix Design'!E19="","",'Mix Design'!E19) ->  | E19: STATION: | F19: =IF('Mix Design'!G19="","",'Mix Design'!G19) ->  | G19: DIST. FROM CL: | I19: =IF('Mix Design'!L19="","",'Mix Design'!L19) -> 
B21: Informational Only
D23: Air Content, (%) | E23: Volume of Air (ft3) | F23: Total Weight / CY (lbs.) | G23: Design Yield (lb/ft3) | K23: Remaining Volume for Fines | L23: Fine Aggregate 1 | M23: Fine Aggregate 2 | N23: Fine Aggregate 1 | O23: Fine Aggregate 2
E24: (ft3) | F24: (lb) | G24: (lb/ft3)
D25: 0 | E25: =IF(ISERROR(ROUND((27*(D25/100)),2)),"",ROUND((27*(D25/100)),2)) -> 0 | F25: =IF(ISERROR(ROUND((N('Mix Proportions via ACI 211'!$L$57)+SUM('Mix Proportions via ACI 211'!$L$59:$L$66)+SUM('Mix Proportions via ACI 211'!$L$80:$L$81)+SUM('Mix Proportions via ACI 211'!$L$86:$L$89)+SUM(N25:O25)),0)),"",ROUND((N('Mix Proportions via ACI 211'!$L$57)+SUM('Mix Proportions via ACI 211'!$L$59:$L$66)+SUM('Mix Proportions via ACI 211'!$L$80:$L$81)+SUM('Mix Proportions via ACI 211'!$L$86:$L$89)+SUM(N25:O25)),0)) -> 0 | G25: =IF(ISERROR(IF(ISERROR(ROUND((F25/27),1)),"",ROUND((F25/27),1))),"",IF(ISERROR(ROUND((F25/27),1)),"",ROUND((F25/27),1))) -> 0 | K25: =27-(N('Mix Proportions via ACI 211'!$K$76)+SUM('Mix Proportions via ACI 211'!$K$86:$K$89)+E25) -> 27 | L25: =K25*(N('Mix Proportions via ACI 211'!$F$93)/100) -> 0 | M25: =K25*(N('Mix Proportions via ACI 211'!$F$94)/100) -> 0 | N25: =ROUND(((N('Mix Proportions via ACI 211'!$G$93)*62.4)*L25),0) -> 0 | O25: =ROUND(((N('Mix Proportions via ACI 211'!$G$94)*62.4)*M25),0) -> 0
D26: 1 | E26: 0.27 | F26: =IF(ISERROR(ROUND((N('Mix Proportions via ACI 211'!$L$57)+SUM('Mix Proportions via ACI 211'!$L$59:$L$66)+SUM('Mix Proportions via ACI 211'!$L$80:$L$81)+SUM('Mix Proportions via ACI 211'!$L$86:$L$89)+SUM(N26:O26)),0)),"",ROUND((N('Mix Proportions via ACI 211'!$L$57)+SUM('Mix Proportions via ACI 211'!$L$59:$L$66)+SUM('Mix Proportions via ACI 211'!$L$80:$L$81)+SUM('Mix Proportions via ACI 211'!$L$86:$L$89)+SUM(N26:O26)),0)) -> 0 | G26: 0 | K26: =27-(N('Mix Proportions via ACI 211'!$K$76)+SUM('Mix Proportions via ACI 211'!$K$86:$K$89)+E26) -> 26.73 | L26: =K26*(N('Mix Proportions via ACI 211'!$F$93)/100) -> 0 | M26: =K26*(N('Mix Proportions via ACI 211'!$F$94)/100) -> 0 | N26: =ROUND(((N('Mix Proportions via ACI 211'!$G$93)*62.4)*L26),0) -> 0 | O26: =ROUND(((N('Mix Proportions via ACI 211'!$G$94)*62.4)*M26),0) -> 0
D27: 2 | E27: 0.54 | F27: =IF(ISERROR(ROUND((N('Mix Proportions via ACI 211'!$L$57)+SUM('Mix Proportions via ACI 211'!$L$59:$L$66)+SUM('Mix Proportions via ACI 211'!$L$80:$L$81)+SUM('Mix Proportions via ACI 211'!$L$86:$L$89)+SUM(N27:O27)),0)),"",ROUND((N('Mix Proportions via ACI 211'!$L$57)+SUM('Mix Proportions via ACI 211'!$L$59:$L$66)+SUM('Mix Proportions via ACI 211'!$L$80:$L$81)+SUM('Mix Proportions via ACI 211'!$L$86:$L$89)+SUM(N27:O27)),0)) -> 0 | G27: 0 | K27: =27-(N('Mix Proportions via ACI 211'!$K$76)+SUM('Mix Proportions via ACI 211'!$K$86:$K$89)+E27) -> 26.46 | L27: =K27*(N('Mix Proportions via ACI 211'!$F$93)/100) -> 0 | M27: =K27*(N('Mix Proportions via ACI 211'!$F$94)/100) -> 0 | N27: =ROUND(((N('Mix Proportions via ACI 211'!$G$93)*62.4)*L27),0) -> 0 | O27: =ROUND(((N('Mix Proportions via ACI 211'!$G$94)*62.4)*M27),0) -> 0
D28: 3 | E28: 0.81 | F28: =IF(ISERROR(ROUND((N('Mix Proportions via ACI 211'!$L$57)+SUM('Mix Proportions via ACI 211'!$L$59:$L$66)+SUM('Mix Proportions via ACI 211'!$L$80:$L$81)+SUM('Mix Proportions via ACI 211'!$L$86:$L$89)+SUM(N28:O28)),0)),"",ROUND((N('Mix Proportions via ACI 211'!$L$57)+SUM('Mix Proportions via ACI 211'!$L$59:$L$66)+SUM('Mix Proportions via ACI 211'!$L$80:$L$81)+SUM('Mix Proportions via ACI 211'!$L$86:$L$89)+SUM(N28:O28)),0)) -> 0 | G28: 0 | K28: =27-(N('Mix Proportions via ACI 211'!$K$76)+SUM('Mix Proportions via ACI 211'!$K$86:$K$89)+E28) -> 26.19 | L28: =K28*(N('Mix Proportions via ACI 211'!$F$93)/100) -> 0 | M28: =K28*(N('Mix Proportions via ACI 211'!$F$94)/100) -> 0 | N28: =ROUND(((N('Mix Proportions via ACI 211'!$G$93)*62.4)*L28),0) -> 0 | O28: =ROUND(((N('Mix Proportions via ACI 211'!$G$94)*62.4)*M28),0) -> 0
D29: 4 | E29: 1.08 | F29: =IF(ISERROR(ROUND((N('Mix Proportions via ACI 211'!$L$57)+SUM('Mix Proportions via ACI 211'!$L$59:$L$66)+SUM('Mix Proportions via ACI 211'!$L$80:$L$81)+SUM('Mix Proportions via ACI 211'!$L$86:$L$89)+SUM(N29:O29)),0)),"",ROUND((N('Mix Proportions via ACI 211'!$L$57)+SUM('Mix Proportions via ACI 211'!$L$59:$L$66)+SUM('Mix Proportions via ACI 211'!$L$80:$L$81)+SUM('Mix Proportions via ACI 211'!$L$86:$L$89)+SUM(N29:O29)),0)) -> 0 | G29: 0 | K29: =27-(N('Mix Proportions via ACI 211'!$K$76)+SUM('Mix Proportions via ACI 211'!$K$86:$K$89)+E29) -> 25.92 | L29: =K29*(N('Mix Proportions via ACI 211'!$F$93)/100) -> 0 | M29: =K29*(N('Mix Proportions via ACI 211'!$F$94)/100) -> 0 | N29: =ROUND(((N('Mix Proportions via ACI 211'!$G$93)*62.4)*L29),0) -> 0 | O29: =ROUND(((N('Mix Proportions via ACI 211'!$G$94)*62.4)*M29),0) -> 0
D30: 5 | E30: 1.35 | F30: =IF(ISERROR(ROUND((N('Mix Proportions via ACI 211'!$L$57)+SUM('Mix Proportions via ACI 211'!$L$59:$L$66)+SUM('Mix Proportions via ACI 211'!$L$80:$L$81)+SUM('Mix Proportions via ACI 211'!$L$86:$L$89)+SUM(N30:O30)),0)),"",ROUND((N('Mix Proportions via ACI 211'!$L$57)+SUM('Mix Proportions via ACI 211'!$L$59:$L$66)+SUM('Mix Proportions via ACI 211'!$L$80:$L$81)+SUM('Mix Proportions via ACI 211'!$L$86:$L$89)+SUM(N30:O30)),0)) -> 0 | G30: 0 | K30: =27-(N('Mix Proportions via ACI 211'!$K$76)+SUM('Mix Proportions via ACI 211'!$K$86:$K$89)+E30) -> 25.65 | L30: =K30*(N('Mix Proportions via ACI 211'!$F$93)/100) -> 0 | M30: =K30*(N('Mix Proportions via ACI 211'!$F$94)/100) -> 0 | N30: =ROUND(((N('Mix Proportions via ACI 211'!$G$93)*62.4)*L30),0) -> 0 | O30: =ROUND(((N('Mix Proportions via ACI 211'!$G$94)*62.4)*M30),0) -> 0
D31: 6 | E31: 1.62 | F31: =IF(ISERROR(ROUND((N('Mix Proportions via ACI 211'!$L$57)+SUM('Mix Proportions via ACI 211'!$L$59:$L$66)+SUM('Mix Proportions via ACI 211'!$L$80:$L$81)+SUM('Mix Proportions via ACI 211'!$L$86:$L$89)+SUM(N31:O31)),0)),"",ROUND((N('Mix Proportions via ACI 211'!$L$57)+SUM('Mix Proportions via ACI 211'!$L$59:$L$66)+SUM('Mix Proportions via ACI 211'!$L$80:$L$81)+SUM('Mix Proportions via ACI 211'!$L$86:$L$89)+SUM(N31:O31)),0)) -> 0 | G31: 0 | K31: =27-(N('Mix Proportions via ACI 211'!$K$76)+SUM('Mix Proportions via ACI 211'!$K$86:$K$89)+E31) -> 25.38 | L31: =K31*(N('Mix Proportions via ACI 211'!$F$93)/100) -> 0 | M31: =K31*(N('Mix Proportions via ACI 211'!$F$94)/100) -> 0 | N31: =ROUND(((N('Mix Proportions via ACI 211'!$G$93)*62.4)*L31),0) -> 0 | O31: =ROUND(((N('Mix Proportions via ACI 211'!$G$94)*62.4)*M31),0) -> 0
D32: 7 | E32: 1.89 | F32: =IF(ISERROR(ROUND((N('Mix Proportions via ACI 211'!$L$57)+SUM('Mix Proportions via ACI 211'!$L$59:$L$66)+SUM('Mix Proportions via ACI 211'!$L$80:$L$81)+SUM('Mix Proportions via ACI 211'!$L$86:$L$89)+SUM(N32:O32)),0)),"",ROUND((N('Mix Proportions via ACI 211'!$L$57)+SUM('Mix Proportions via ACI 211'!$L$59:$L$66)+SUM('Mix Proportions via ACI 211'!$L$80:$L$81)+SUM('Mix Proportions via ACI 211'!$L$86:$L$89)+SUM(N32:O32)),0)) -> 0 | G32: 0 | K32: =27-(N('Mix Proportions via ACI 211'!$K$76)+SUM('Mix Proportions via ACI 211'!$K$86:$K$89)+E32) -> 25.11 | L32: =K32*(N('Mix Proportions via ACI 211'!$F$93)/100) -> 0 | M32: =K32*(N('Mix Proportions via ACI 211'!$F$94)/100) -> 0 | N32: =ROUND(((N('Mix Proportions via ACI 211'!$G$93)*62.4)*L32),0) -> 0 | O32: =ROUND(((N('Mix Proportions via ACI 211'!$G$94)*62.4)*M32),0) -> 0
D33: 8 | E33: 2.16 | F33: =IF(ISERROR(ROUND((N('Mix Proportions via ACI 211'!$L$57)+SUM('Mix Proportions via ACI 211'!$L$59:$L$66)+SUM('Mix Proportions via ACI 211'!$L$80:$L$81)+SUM('Mix Proportions via ACI 211'!$L$86:$L$89)+SUM(N33:O33)),0)),"",ROUND((N('Mix Proportions via ACI 211'!$L$57)+SUM('Mix Proportions via ACI 211'!$L$59:$L$66)+SUM('Mix Proportions via ACI 211'!$L$80:$L$81)+SUM('Mix Proportions via ACI 211'!$L$86:$L$89)+SUM(N33:O33)),0)) -> 0 | G33: 0 | K33: =27-(N('Mix Proportions via ACI 211'!$K$76)+SUM('Mix Proportions via ACI 211'!$K$86:$K$89)+E33) -> 24.84 | L33: =K33*(N('Mix Proportions via ACI 211'!$F$93)/100) -> 0 | M33: =K33*(N('Mix Proportions via ACI 211'!$F$94)/100) -> 0 | N33: =ROUND(((N('Mix Proportions via ACI 211'!$G$93)*62.4)*L33),0) -> 0 | O33: =ROUND(((N('Mix Proportions via ACI 211'!$G$94)*62.4)*M33),0) -> 0
D34: 9 | E34: 2.43 | F34: =IF(ISERROR(ROUND((N('Mix Proportions via ACI 211'!$L$57)+SUM('Mix Proportions via ACI 211'!$L$59:$L$66)+SUM('Mix Proportions via ACI 211'!$L$80:$L$81)+SUM('Mix Proportions via ACI 211'!$L$86:$L$89)+SUM(N34:O34)),0)),"",ROUND((N('Mix Proportions via ACI 211'!$L$57)+SUM('Mix Proportions via ACI 211'!$L$59:$L$66)+SUM('Mix Proportions via ACI 211'!$L$80:$L$81)+SUM('Mix Proportions via ACI 211'!$L$86:$L$89)+SUM(N34:O34)),0)) -> 0 | G34: 0 | K34: =27-(N('Mix Proportions via ACI 211'!$K$76)+SUM('Mix Proportions via ACI 211'!$K$86:$K$89)+E34) -> 24.57 | L34: =K34*(N('Mix Proportions via ACI 211'!$F$93)/100) -> 0 | M34: =K34*(N('Mix Proportions via ACI 211'!$F$94)/100) -> 0 | N34: =ROUND(((N('Mix Proportions via ACI 211'!$G$93)*62.4)*L34),0) -> 0 | O34: =ROUND(((N('Mix Proportions via ACI 211'!$G$94)*62.4)*M34),0) -> 0
D35: Calculations based on Mix Proportions via ACI 211

Sheet 2004, Item 421 Info
A1: Return to Mix Design | C1: Item 421 | D1: Item 421 Special Provisions
A2: 2004 Texas Standard Specifications
A3: Item 421
A5: Table 5
A6: Concrete Classes
A7: Class of Concrete | B7: Design Strength, Min. 28-day f'c (psi) | C7: Maximum W/C Ratio1 | D7: Coarse Aggregate Grades2,3 | E7: General Usage4
A8: A | B8: 3000 | C8: 0.6 | D8: 1-4, 8 | E8: Inlets, manholes, curb, gutter, curb & gutter, conc. retards, sidewalks, driveways, backup walls, anchors
A9: B | B9: 2000 | C9: 0.6 | D9: 2-7 | E9: Riprap, small roadside signs, and anchors
A10: C5 | B10: 3600 | C10: 0.45 | D10: 1-6 | E10: Drilled shafts, bridge substructure, bridge railing, culverts except top slab of direct traffic culverts, headwalls, wing walls, approach slabs, concrete traffic barrier (cast-in-place)
A11: C(HPC)5 | B11: 3600 | C11: 0.45 | D11: 1-6 | E11: As shown on the plans
A12: D | B12: 1500 | C12: 0.6 | D12: 2-7 | E12: Riprap
A13: E | B13: 3000 | C13: 0.5 | D13: 2-5 | E13: Seal concrete
A14: F5 | B14: Note 6 | C14: 0.45 | D14: 2-5 | E14: Railroad structures; occasionally for bridge piers, columns, or bents
A15: F(HPC)5 | B15: Note 6 | C15: 0.45 | D15: 2-5 | E15: As shown on the plans
A16: H5 | B16: Note 6 | C16: 0.45 | D16: 3-6 | E16: Prestressed concrete beams, boxes, piling, and concrete traffic barrier (precast)
A17: H(HPC)5 | B17: Note 6 | C17: 0.45 | D17: 3-6 | E17: As shown on the plans
A18: S5 | B18: 4000 | C18: 0.45 | D18: 2-5 | E18: Bridge slabs, top slabs of direct traffic culverts
A19: S(HPC)5 | B19: 4000 | C19: 0.45 | D19: 2-5 | E19: As shown on the plans
A20: P | B20: See Item 360 | C20: 0.45 | D20: 2-3 | E20: Concrete pavement
A21: DC5 | B21: 5500 | C21: 0.4 | D21: 6 | E21: Dense conc. overlay
A22: CO5 | B22: 4600 | C22: 0.4 | D22: 6 | E22: Conc. overlay
A23: LMC5 | B23: 4000 | C23: 0.4 | D23: 6-8 | E23: Latex-modified concrete overlay
A24: SS5 | B24: Note 7 | C24: 0.45 | D24: 4-6 | E24: Slurry displacement shafts, underwater drilled shafts
A25: K5 | B25: Note 6 | C25: 0.45 | D25: Note 6 | E25: Note 6
A26: HES | B26: Note 6 | C26: 0.45 | D26: Note 6 | E26: Note 6
A27: 1. Maxium water-cement or water-cementitious ratio by weight.
A28: 2. Unless otherwise permitted, do not use Grade 1 coarse aggregate except in massive foundations with 4-in. minimum clear spacing between reinforcing steel bars. Do not use Grade 1 aggregate in drilled shafts.
A29: 3. Unless otherwise approved, use Grade 8 aggregate in extruded curbs.
A30: 4. For information only.
A31: 5. Structural concrete classes.
A32: 6. As shown on the plans or specified.
A33: 7. Use a minimum cementitious material content of 650 lb/cy of concrete. Do not apply Table 6 over design requirements to Class SS concrete.
A35: Table 8
A36: Slump Requirements
A37: Concrete Designation | D37: Recommended Design and Placement Slump, in. | F37: Maximum Acceptable Placement Slump, in.
A38: Drilled shafts | D38: See Item 416 | F38: See Item 416
A39: Thin walled section (9 in. or less) | D39: 4 | F39: 6.5
A40: Approach slabs, concrete overlays, caps, columns, piers, wall sections (over 9 in.) | D40: 3 | F40: 5
A41: Bridge slabs | D41: 4 | F41: 5.5
A42: Prestressed concrete members1 | D42: 4 | F42: 6.5
A43: Concrete traffic barrier, concrete bridge railing | D43: 4 | F43: 6.5
A44: Dense concrete overlay | D44: 0.75 | F44: 2
A45: Latex-modified conc. for bridge deck overlays | D45: 3 | F45: 7.5
A46: Concrete placed underwater | D46: 6 | F46: 8.5
A47: Concrete pavement (slip-formed) | D47: 1.5 | F47: 3
A48: Concrete pavement (formed) | D48: 4 | F48: 6.5
A49: Riprap, cub, gutter, slip-formed, and extruded concrete | D49: As approved | F49: As approved
A50: 1. If a high-range water reducer (HRWR) is used, maximum acceptable placement slump will be 9 in.
A54: 421.4.A.6
A55: Mix Design Options
A56: For structural concrete identified in Table 5 and any other class of concrete designed using more than 520 lb. of cementitious material per cubic yard, use one of the mix design Options 1-8 shown below, unless otherwise shown on the plans.
A57: For concrete classes not identified as structural concrete in Table 5 and designed using less than 520 lb. of cementititious material per cubic yard, use one of the mix design Options 1-8 shown below, except that Class C fly ash may be used instead of Class F fly ash for Options 1, 3, and 4 unless sulfate-resistant concrete is required.
A58: Do not use mix design options 6 or 7 when High Performance Concrete (HPC) is required. Option 8 may be used when HPC is required provided: a minimum of 20% of the cement is replaced with a Class C fly ash; Tex-440-A, "Initial Time of Set of Fresh Concrete" is performed during mix design verification; the additional requirements for permeability are met; and the concrete is not required to be sulfate-resistant.
A59: Option 1 | B59: Replace 20 to 35% of the cement with Class F fly ash.
A60: Option 2 | B60: Replace 35 to 50% of the cement with GGBFS or MFFA.
A61: Option 3 | B61: Replace 35 to 50% of the cement with a combination of Class F fly ash, GGBFS, MFFA, UFFA, metakaolin, or silica fume. However, no more than 35% may be fly ash, and no more than 10% may be silica fume.
A62: Option 4 | B62: Use Type IP or Type IS cement. (Up to 10% of a Type IP or Type IS cement may be replaced with Class F fly ash, GGBFS, or silica fume.)
A63: Option 5 | B63: Replace 35 to 50% of the cement with a combination of Class C fly ash and at least 6% of silica fume, UFFA, or metakaolin. However, no more than 35% may be Class C fly ash, and nor more than 10% may be silica fume.
A64: Option 6 | B64: Use lithium nitrate admixture at a minimum dosage determined by testing conducted in accordance with Tex-471-A, "Lithium Dosage Determination Using Accelerated Mortar Bar Testing." Before use of the mix, provide an annual certified test report signed and sealed by a licensed professional engineer, from a laboratory on the Department's List of Approved Lithium Testing Laboratories, certied by the Construction Division as being capable of testing according to Tex-471-A, "Lithium Dosage Determination Using Accelerated Mortar Bar Testing."
A65: Option 7 | B65: When using hydraulic cement only, ensure that the total alkali contribution from the cement in the concrete does not exceed 3.50 lb. per cubic yard of concrete when calculated as follows:
B66: lb. alkali per cu. yd. = | D66: (lb. cement per cu. yd.) x (% Na2O equivalent in cement)
D67: 100
B68: In the above calculation, use the maximum cement alkali content reported on the cement mill certificate.
B69: Do not use Option 7 when any of the aggregates in the concrete are listed on the Department's List of Aggregate Sources Excluded from Option 7 ASR Mitigation.
A70: Option 8 | B70: For any deviations from Options 1-5, perform annual testing on both coarse, intermediate, and fine aggregate separately in accordance with ASTM C 1567. Before use of the mix, provide a certified test report signed and sealed by a licensed professional engineer, from a laboratory on the Department's List of Approved ASTM C 1260 Laboratories, demonstrating that the ASTM C 1567 test result for each aggregate does not exceed 0.10% expansion at 14 days.
B71: Do not use Option 8 when any of the aggregates in the concrete are listed on the Department's List of Aggregate Sources Excluded from Option 8 ASR Mitigation. When HPC is required, provide a certified test report signed and sealed by a licensed professional engineer demonstrating that the AASHTO T 277 test results indicate the permeability of the concrete is less than 1,500 coulombs tested immediately after either of the following curing schedules:
B72: ● | C72: Moist cure specimens 56 days at 73°F.
B73: ● | C73: Moist cure specimens 7 days at 73°F followed by 21 days at 100°F.

Sheet RX (hidden)
A1: 1103 | B1: =SampleId -> 0 | C1: =TestNumber -> 0
A2: Fld_nbr | B2: Value | C2: Desc_1 | D2: Desc_2 | E2: Desc_3 | F2: Desc_4 | G2: Desc_5 | H2: Desc_6 | I2: Desc_7
A3: 1 | B3: =IF('Mix Design'!$B$106="","",'Mix Design'!$B$106) ->  | C3: =IF('Mix Design'!$B$105="","",'Mix Design'!$B$105) -> Remarks:
A4: 2 | B4: =IF('Mix Design'!$E$19="","",'Mix Design'!$E$19) ->  | C4: =IF('Mix Design'!$B$19="","",'Mix Design'!$B$19) -> COURSE\LIFT:
A5: 3 | B5: =IF('Mix Design'!$I$14="","",'Mix Design'!$I$14) ->  | C5: =IF('Mix Design'!$H$14="","",'Mix Design'!$H$14) -> CLASS:
A6: 4 | B6: =IF('Mix Design'!$D$21="","",'Mix Design'!$D$21) ->  | C6: =IF('Mix Design'!$B$6="","",'Mix Design'!$B$6) -> Mix Design | D6: =IF('Mix Design'!$B$21="","",'Mix Design'!$B$21) -> Plant:
A7: 5 | B7: =IF('Mix Design'!$G$21="","",'Mix Design'!$G$21) ->  | C7: =IF('Mix Design'!$B$6="","",'Mix Design'!$B$6) -> Mix Design | D7: =IF('Mix Design'!$F$21="","",'Mix Design'!$F$21) -> Design #:
A8: 6 | B8: =IF('Mix Design'!$K$21="","",'Mix Design'!$K$21) ->  | C8: =IF('Mix Design'!$B$6="","",'Mix Design'!$B$6) -> Mix Design | D8: =IF('Mix Design'!$I$21="","",'Mix Design'!$I$21) -> Date:
A9: 7 | B9: =IF('Mix Design'!$F$25="","",'Mix Design'!$F$25) ->  | C9: =IF('Mix Design'!$B$6="","",'Mix Design'!$B$6) -> Mix Design | D9: =IF('Mix Design'!$B$24="","",'Mix Design'!$B$24) -> PROJECT SUMMARY | E9: =IF('Mix Design'!$B$25="","",'Mix Design'!$B$25) -> Design Strength, Min. 28-day f'c (psi):
A10: 8 | B10: =IF('Mix Design'!$G$25="","",'Mix Design'!$G$25) ->  | C10: =IF('Mix Design'!$B$6="","",'Mix Design'!$B$6) -> Mix Design | D10: =IF('Mix Design'!$B$24="","",'Mix Design'!$B$24) -> PROJECT SUMMARY | E10: =IF('Mix Design'!$B$25="","",'Mix Design'!$B$25) -> Design Strength, Min. 28-day f'c (psi):
A11: 9 | B11: =IF('Mix Design'!$F$26="","",'Mix Design'!$F$26) ->  | C11: =IF('Mix Design'!$B$6="","",'Mix Design'!$B$6) -> Mix Design | D11: =IF('Mix Design'!$B$24="","",'Mix Design'!$B$24) -> PROJECT SUMMARY | E11: =IF('Mix Design'!$B$26="","",'Mix Design'!$B$26) -> Maximum W/C Ratio:
A12: 10 | B12: =IF('Mix Design'!$G$26="","",'Mix Design'!$G$26) ->  | C12: =IF('Mix Design'!$B$6="","",'Mix Design'!$B$6) -> Mix Design | D12: =IF('Mix Design'!$B$24="","",'Mix Design'!$B$24) -> PROJECT SUMMARY | E12: =IF('Mix Design'!$B$26="","",'Mix Design'!$B$26) -> Maximum W/C Ratio:
A13: 11 | B13: =IF('Mix Design'!$F$27="","",'Mix Design'!$F$27) ->  | C13: =IF('Mix Design'!$B$6="","",'Mix Design'!$B$6) -> Mix Design | D13: =IF('Mix Design'!$B$24="","",'Mix Design'!$B$24) -> PROJECT SUMMARY | E13: =IF('Mix Design'!$B$27="","",'Mix Design'!$B$27) -> Max. Nominal Aggregate Size (inches):
A14: 12 | B14: =IF('Mix Design'!$G$27="","",'Mix Design'!$G$27) ->  | C14: =IF('Mix Design'!$B$6="","",'Mix Design'!$B$6) -> Mix Design | D14: =IF('Mix Design'!$B$24="","",'Mix Design'!$B$24) -> PROJECT SUMMARY | E14: =IF('Mix Design'!$B$27="","",'Mix Design'!$B$27) -> Max. Nominal Aggregate Size (inches):
A15: 13 | B15: =IF('Mix Design'!$F$28="","",'Mix Design'!$F$28) ->  | C15: =IF('Mix Design'!$B$6="","",'Mix Design'!$B$6) -> Mix Design | D15: =IF('Mix Design'!$B$24="","",'Mix Design'!$B$24) -> PROJECT SUMMARY | E15: =IF('Mix Design'!$B$28="","",'Mix Design'!$B$28) -> Min. Nominal Aggregate Size (inches):
A16: 14 | B16: =IF('Mix Design'!$G$28="","",'Mix Design'!$G$28) ->  | C16: =IF('Mix Design'!$B$6="","",'Mix Design'!$B$6) -> Mix Design | D16: =IF('Mix Design'!$B$24="","",'Mix Design'!$B$24) -> PROJECT SUMMARY | E16: =IF('Mix Design'!$B$28="","",'Mix Design'!$B$28) -> Min. Nominal Aggregate Size (inches):
A17: 15 | B17: =IF('Mix Design'!$F$29="","",'Mix Design'!$F$29) ->  | C17: =IF('Mix Design'!$B$6="","",'Mix Design'!$B$6) -> Mix Design | D17: =IF('Mix Design'!$B$24="","",'Mix Design'!$B$24) -> PROJECT SUMMARY | E17: =IF('Mix Design'!$B$29="","",'Mix Design'!$B$29) -> Nominal Maximum Aggregate Size, (inches):
A18: 16 | B18: =IF('Mix Design'!$F$30="","",'Mix Design'!$F$30) ->  | C18: =IF('Mix Design'!$B$6="","",'Mix Design'!$B$6) -> Mix Design | D18: =IF('Mix Design'!$B$24="","",'Mix Design'!$B$24) -> PROJECT SUMMARY | E18: =IF('Mix Design'!$D$30="","",'Mix Design'!$D$30) -> Initial Slump, (inches):
A19: 17 | B19: =IF('Mix Design'!$F$31="","",'Mix Design'!$F$31) ->  | C19: =IF('Mix Design'!$B$6="","",'Mix Design'!$B$6) -> Mix Design | D19: =IF('Mix Design'!$B$24="","",'Mix Design'!$B$24) -> PROJECT SUMMARY | E19: =IF('Mix Design'!$B$31="","",'Mix Design'!$B$31) -> Optimized Gradation Design:
A20: 18 | B20: =IF('Mix Design'!$M$25="","",'Mix Design'!$M$25) ->  | C20: =IF('Mix Design'!$B$6="","",'Mix Design'!$B$6) -> Mix Design | D20: =IF('Mix Design'!$J$24="","",'Mix Design'!$J$24) -> SELECTING AIR-ENTRAINMENT | E20: =IF('Mix Design'!$J$25="","",'Mix Design'!$J$25) -> Air-Entrained:
A21: 19 | B21: =IF('Mix Design'!$M$26="","",'Mix Design'!$M$26) ->  | C21: =IF('Mix Design'!$B$6="","",'Mix Design'!$B$6) -> Mix Design | D21: =IF('Mix Design'!$J$24="","",'Mix Design'!$J$24) -> SELECTING AIR-ENTRAINMENT | E21: =IF('Mix Design'!$J$26="","",'Mix Design'!$J$26) -> Pavement:
A22: 20 | B22: =IF('Mix Design'!$M$27="","",'Mix Design'!$M$27) ->  | C22: =IF('Mix Design'!$B$6="","",'Mix Design'!$B$6) -> Mix Design | D22: =IF('Mix Design'!$J$24="","",'Mix Design'!$J$24) -> SELECTING AIR-ENTRAINMENT | E22: =IF('Mix Design'!$J$27="","",'Mix Design'!$J$27) -> Reduce air content by 1%, based on strength above 5,000 psi?:
A23: 21 | B23: =IF('Mix Design'!$M$29="","",'Mix Design'!$M$29) ->  | C23: =IF('Mix Design'!$B$6="","",'Mix Design'!$B$6) -> Mix Design | D23: =IF('Mix Design'!$J$24="","",'Mix Design'!$J$24) -> SELECTING AIR-ENTRAINMENT | E23: =IF('Mix Design'!$J$29="","",'Mix Design'!$J$29) -> Specified total air content, %:
A24: 22 | B24: =IF('Mix Design'!$M$30="","",'Mix Design'!$M$30) ->  | C24: =IF('Mix Design'!$B$6="","",'Mix Design'!$B$6) -> Mix Design | D24: =IF('Mix Design'!$J$24="","",'Mix Design'!$J$24) -> SELECTING AIR-ENTRAINMENT | E24: =IF('Mix Design'!$J$30="","",'Mix Design'!$J$30) -> Plan note air content, %:
A25: 23 | B25: =IF('Mix Design'!$M$31="","",'Mix Design'!$M$31) -> 0 | C25: =IF('Mix Design'!$B$6="","",'Mix Design'!$B$6) -> Mix Design | D25: =IF('Mix Design'!$J$24="","",'Mix Design'!$J$24) -> SELECTING AIR-ENTRAINMENT | E25: =IF('Mix Design'!$J$31="","",'Mix Design'!$J$31) -> Approximate entrapped air content, % :
A26: 24 | B26: =IF('Mix Design'!$M$32="","",'Mix Design'!$M$32) ->  | C26: =IF('Mix Design'!$B$6="","",'Mix Design'!$B$6) -> Mix Design | D26: =IF('Mix Design'!$J$24="","",'Mix Design'!$J$24) -> SELECTING AIR-ENTRAINMENT | E26: =IF('Mix Design'!$J$32="","",'Mix Design'!$J$32) -> Entrapped air content different from above, % :
A27: 25 | B27: =IF('Mix Design'!$H$34="","",'Mix Design'!$H$34) ->  | C27: =IF('Mix Design'!$B$6="","",'Mix Design'!$B$6) -> Mix Design | D27: =IF('Mix Design'!$B$33="","",'Mix Design'!$B$33) -> SELECTING TARGET STRENGTH | E27: =IF('Mix Design'!$B$34="","",'Mix Design'!$B$34) -> Min. 28-day compressive strength based on class of concrete f 'c min., (psi):
A28: 26 | B28: =IF('Mix Design'!$H$35="","",'Mix Design'!$H$35) ->  | C28: =IF('Mix Design'!$B$6="","",'Mix Design'!$B$6) -> Mix Design | D28: =IF('Mix Design'!$B$33="","",'Mix Design'!$B$33) -> SELECTING TARGET STRENGTH | E28: =IF('Mix Design'!$B$35="","",'Mix Design'!$B$35) -> Specified minimum 28-day compressive strength f 'c min., (psi):
A29: 27 | B29: =IF('Mix Design'!$H$36="","",'Mix Design'!$H$36) ->  | C29: =IF('Mix Design'!$B$6="","",'Mix Design'!$B$6) -> Mix Design | D29: =IF('Mix Design'!$B$33="","",'Mix Design'!$B$33) -> SELECTING TARGET STRENGTH | E29: =IF('Mix Design'!$B$36="","",'Mix Design'!$B$36) -> Maximum of preceding 2 rows f 'c*, (psi):
A30: 28 | B30: =IF('Mix Design'!$H$37="","",'Mix Design'!$H$37) ->  | C30: =IF('Mix Design'!$B$6="","",'Mix Design'!$B$6) -> Mix Design | D30: =IF('Mix Design'!$B$33="","",'Mix Design'!$B$33) -> SELECTING TARGET STRENGTH | E30: =IF('Mix Design'!$B$37="","",'Mix Design'!$B$37) -> Producer's standard deviation (index of producer's precision), S (psi):
A31: 29 | B31: =IF('Mix Design'!$H$38="","",'Mix Design'!$H$38) ->  | C31: =IF('Mix Design'!$B$6="","",'Mix Design'!$B$6) -> Mix Design | D31: =IF('Mix Design'!$B$33="","",'Mix Design'!$B$33) -> SELECTING TARGET STRENGTH | E31: =IF('Mix Design'!$B$38="","",'Mix Design'!$B$38) -> Producer's standard deviation from inputted data, S (psi):
A32: 30 | B32: =IF('Mix Design'!$H$39="","",'Mix Design'!$H$39) ->  | C32: =IF('Mix Design'!$B$6="","",'Mix Design'!$B$6) -> Mix Design | D32: =IF('Mix Design'!$B$33="","",'Mix Design'!$B$33) -> SELECTING TARGET STRENGTH | E32: =IF('Mix Design'!$B$39="","",'Mix Design'!$B$39) -> Producer Data
A33: 31 | B33: =IF('Mix Design'!$H$40="","",'Mix Design'!$H$40) ->  | C33: =IF('Mix Design'!$B$6="","",'Mix Design'!$B$6) -> Mix Design | D33: =IF('Mix Design'!$B$33="","",'Mix Design'!$B$33) -> SELECTING TARGET STRENGTH | E33: =IF('Mix Design'!$B$40="","",'Mix Design'!$B$40) -> Number of tests from inputted data:
A34: 32 | B34: =IF('Mix Design'!$H$41="","",'Mix Design'!$H$41) ->  | C34: =IF('Mix Design'!$B$6="","",'Mix Design'!$B$6) -> Mix Design | D34: =IF('Mix Design'!$B$33="","",'Mix Design'!$B$33) -> SELECTING TARGET STRENGTH | E34: =IF('Mix Design'!$B$41="","",'Mix Design'!$B$41) -> Over design amount, A (psi):
A35: 33 | B35: =IF('Mix Design'!$H$42="","",'Mix Design'!$H$42) ->  | C35: =IF('Mix Design'!$B$6="","",'Mix Design'!$B$6) -> Mix Design | D35: =IF('Mix Design'!$B$33="","",'Mix Design'!$B$33) -> SELECTING TARGET STRENGTH | E35: =IF('Mix Design'!$B$42="","",'Mix Design'!$B$42) -> Mix design target strength, f 'cr = f'c* + A, f 'cr, (psi):
A36: 34 | B36: =IF('Mix Design'!$M$37="","",'Mix Design'!$M$37) ->  | C36: =IF('Mix Design'!$B$6="","",'Mix Design'!$B$6) -> Mix Design | D36: =IF('Mix Design'!$J$35="","",'Mix Design'!$J$35) -> SELECTING MIX DESIGN OPTION | E36: =IF('Mix Design'!$J$37="","",'Mix Design'!$J$37) -> Mix Design Option:
A37: 35 | B37: =IF('Mix Design'!$M$38="","",'Mix Design'!$M$38) ->  | C37: =IF('Mix Design'!$B$6="","",'Mix Design'!$B$6) -> Mix Design | D37: =IF('Mix Design'!$J$35="","",'Mix Design'!$J$35) -> SELECTING MIX DESIGN OPTION | E37: =IF('Mix Design'!$J$38="","",'Mix Design'!$J$38) -> Max. % NA2O equivalent in cement
A38: 36 | B38: =IF('Mix Design'!$M$39="","",'Mix Design'!$M$39) ->  | C38: =IF('Mix Design'!$B$6="","",'Mix Design'!$B$6) -> Mix Design | D38: =IF('Mix Design'!$J$35="","",'Mix Design'!$J$35) -> SELECTING MIX DESIGN OPTION | E38: =IF('Mix Design'!$J$39="","",'Mix Design'!$J$39) -> lb. alkali per cu. yd.
A39: 37 | B39: =IF('Mix Design'!$M$40="","",'Mix Design'!$M$40) ->  | C39: =IF('Mix Design'!$B$6="","",'Mix Design'!$B$6) -> Mix Design | D39: =IF('Mix Design'!$J$35="","",'Mix Design'!$J$35) -> SELECTING MIX DESIGN OPTION | E39: =IF('Mix Design'!$J$40="","",'Mix Design'!$J$40) -> ASTM C 1567 % Expansion:
A40: 38 | B40: =IF('Mix Design'!$M$41="","",'Mix Design'!$M$41) ->  | C40: =IF('Mix Design'!$B$6="","",'Mix Design'!$B$6) -> Mix Design | D40: =IF('Mix Design'!$J$35="","",'Mix Design'!$J$35) -> SELECTING MIX DESIGN OPTION | E40: =IF('Mix Design'!$J$41="","",'Mix Design'!$J$41) -> Approved Lab Used?:
A41: 39 | B41: =IF('Mix Design'!$H$45="","",'Mix Design'!$H$45) ->  | C41: =IF('Mix Design'!$B$6="","",'Mix Design'!$B$6) -> Mix Design | D41: =IF('Mix Design'!$B$44="","",'Mix Design'!$B$44) -> SELECTING W/C OR W/CM | E41: =IF('Mix Design'!$B$45="","",'Mix Design'!$B$45) -> Maximum w/c or w/cm based on class of concrete:
A42: 40 | B42: =IF('Mix Design'!$H$46="","",'Mix Design'!$H$46) ->  | C42: =IF('Mix Design'!$B$6="","",'Mix Design'!$B$6) -> Mix Design | D42: =IF('Mix Design'!$B$44="","",'Mix Design'!$B$44) -> SELECTING W/C OR W/CM | E42: =IF('Mix Design'!$B$46="","",'Mix Design'!$B$46) -> Specified maximum w/c or w/cm:
A43: 41 | B43: =IF('Mix Design'!$H$47="","",'Mix Design'!$H$47) ->  | C43: =IF('Mix Design'!$B$6="","",'Mix Design'!$B$6) -> Mix Design | D43: =IF('Mix Design'!$B$44="","",'Mix Design'!$B$44) -> SELECTING W/C OR W/CM | E43: =IF('Mix Design'!$B$47="","",'Mix Design'!$B$47) -> Mix Design w/c or w/cm = minimum value from preceding 2 rows:
A44: 42 | B44: =IF('Mix Design'!$H$48="","",'Mix Design'!$H$48) ->  | C44: =IF('Mix Design'!$B$6="","",'Mix Design'!$B$6) -> Mix Design | D44: =IF('Mix Design'!$B$44="","",'Mix Design'!$B$44) -> SELECTING W/C OR W/CM | E44: =IF('Mix Design'!$B$48="","",'Mix Design'!$B$48) -> Max. cementitious material content ,lbs/CY: (should be 700 lbs/CY unless otherwise specified or approved)
A45: 43 | B45: =IF('Mix Design'!$F$52="","",'Mix Design'!$F$52) ->  | C45: =IF('Mix Design'!$B$6="","",'Mix Design'!$B$6) -> Mix Design | D45: =IF('Mix Design'!$B$52="","",'Mix Design'!$B$52) -> Paste | E45: =IF('Mix Design'!$C$52="","",'Mix Design'!$C$52) -> Basic Water Demand: | F45: =IF('Mix Design'!$F$51="","",'Mix Design'!$F$51) -> Producer/Source
A46: 44 | B46: =IF('Mix Design'!$I$52="","",'Mix Design'!$I$52) ->  | C46: =IF('Mix Design'!$B$6="","",'Mix Design'!$B$6) -> Mix Design | D46: =IF('Mix Design'!$B$52="","",'Mix Design'!$B$52) -> Paste | E46: =IF('Mix Design'!$C$52="","",'Mix Design'!$C$52) -> Basic Water Demand: | F46: =IF('Mix Design'!$I$51="","",'Mix Design'!$I$51) -> Absolute Vol. (ft3)
A47: 45 | B47: =IF('Mix Design'!$K$52="","",'Mix Design'!$K$52) ->  | C47: =IF('Mix Design'!$B$6="","",'Mix Design'!$B$6) -> Mix Design | D47: =IF('Mix Design'!$B$52="","",'Mix Design'!$B$52) -> Paste | E47: =IF('Mix Design'!$C$52="","",'Mix Design'!$C$52) -> Basic Water Demand: | F47: =IF('Mix Design'!$K$51="","",'Mix Design'!$K$51) -> SSD† Weight (lbs/CY)
A48: 46 | B48: =IF('Mix Design'!$K$53="","",'Mix Design'!$K$53) ->  | C48: =IF('Mix Design'!$B$6="","",'Mix Design'!$B$6) -> Mix Design | D48: =IF('Mix Design'!$B$52="","",'Mix Design'!$B$52) -> Paste | E48: =IF('Mix Design'!$C$53="","",'Mix Design'!$C$53) -> Total Cementitious: | F48: =IF('Mix Design'!$K$51="","",'Mix Design'!$K$51) -> SSD† Weight (lbs/CY)
A49: 47 | B49: =IF('Mix Design'!$E$54="","",'Mix Design'!$E$54) ->  | C49: =IF('Mix Design'!$B$6="","",'Mix Design'!$B$6) -> Mix Design | D49: =IF('Mix Design'!$B$52="","",'Mix Design'!$B$52) -> Paste | E49: =IF('Mix Design'!$C$54="","",'Mix Design'!$C$54) -> Portland Cement: | F49: =IF('Mix Design'!$E$51="","",'Mix Design'!$E$51) -> Type/Class/ Grade
A50: 48 | B50: =IF('Mix Design'!$F$54="","",'Mix Design'!$F$54) ->  | C50: =IF('Mix Design'!$B$6="","",'Mix Design'!$B$6) -> Mix Design | D50: =IF('Mix Design'!$B$52="","",'Mix Design'!$B$52) -> Paste | E50: =IF('Mix Design'!$C$54="","",'Mix Design'!$C$54) -> Portland Cement: | F50: =IF('Mix Design'!$F$51="","",'Mix Design'!$F$51) -> Producer/Source
A51: 49 | B51: =IF('Mix Design'!$I$54="","",'Mix Design'!$I$54) ->  | C51: =IF('Mix Design'!$B$6="","",'Mix Design'!$B$6) -> Mix Design | D51: =IF('Mix Design'!$B$52="","",'Mix Design'!$B$52) -> Paste | E51: =IF('Mix Design'!$C$54="","",'Mix Design'!$C$54) -> Portland Cement: | F51: =IF('Mix Design'!$I$51="","",'Mix Design'!$I$51) -> Absolute Vol. (ft3)
A52: 50 | B52: =IF('Mix Design'!$K$54="","",'Mix Design'!$K$54) ->  | C52: =IF('Mix Design'!$B$6="","",'Mix Design'!$B$6) -> Mix Design | D52: =IF('Mix Design'!$B$52="","",'Mix Design'!$B$52) -> Paste | E52: =IF('Mix Design'!$C$54="","",'Mix Design'!$C$54) -> Portland Cement: | F52: =IF('Mix Design'!$K$51="","",'Mix Design'!$K$51) -> SSD† Weight (lbs/CY)
A53: 51 | B53: =IF('Mix Design'!$E$55="","",'Mix Design'!$E$55) ->  | C53: =IF('Mix Design'!$B$6="","",'Mix Design'!$B$6) -> Mix Design | D53: =IF('Mix Design'!$B$52="","",'Mix Design'!$B$52) -> Paste | E53: =IF('Mix Design'!$C$55="","",'Mix Design'!$C$55) -> Flyash: | F53: =IF('Mix Design'!$E$51="","",'Mix Design'!$E$51) -> Type/Class/ Grade
A54: 52 | B54: =IF('Mix Design'!$F$55="","",'Mix Design'!$F$55) ->  | C54: =IF('Mix Design'!$B$6="","",'Mix Design'!$B$6) -> Mix Design | D54: =IF('Mix Design'!$B$52="","",'Mix Design'!$B$52) -> Paste | E54: =IF('Mix Design'!$C$55="","",'Mix Design'!$C$55) -> Flyash: | F54: =IF('Mix Design'!$F$51="","",'Mix Design'!$F$51) -> Producer/Source
A55: 53 | B55: =IF('Mix Design'!$I$55="","",'Mix Design'!$I$55) ->  | C55: =IF('Mix Design'!$B$6="","",'Mix Design'!$B$6) -> Mix Design | D55: =IF('Mix Design'!$B$52="","",'Mix Design'!$B$52) -> Paste | E55: =IF('Mix Design'!$C$55="","",'Mix Design'!$C$55) -> Flyash: | F55: =IF('Mix Design'!$I$51="","",'Mix Design'!$I$51) -> Absolute Vol. (ft3)
A56: 54 | B56: =IF('Mix Design'!$K$55="","",'Mix Design'!$K$55) ->  | C56: =IF('Mix Design'!$B$6="","",'Mix Design'!$B$6) -> Mix Design | D56: =IF('Mix Design'!$B$52="","",'Mix Design'!$B$52) -> Paste | E56: =IF('Mix Design'!$C$55="","",'Mix Design'!$C$55) -> Flyash: | F56: =IF('Mix Design'!$K$51="","",'Mix Design'!$K$51) -> SSD† Weight (lbs/CY)
A57: 55 | B57: =IF('Mix Design'!$F$56="","",'Mix Design'!$F$56) ->  | C57: =IF('Mix Design'!$B$6="","",'Mix Design'!$B$6) -> Mix Design | D57: =IF('Mix Design'!$B$52="","",'Mix Design'!$B$52) -> Paste | E57: =IF('Mix Design'!$C$56="","",'Mix Design'!$C$56) -> GGBF Slag: | F57: =IF('Mix Design'!$F$51="","",'Mix Design'!$F$51) -> Producer/Source
A58: 56 | B58: =IF('Mix Design'!$I$56="","",'Mix Design'!$I$56) ->  | C58: =IF('Mix Design'!$B$6="","",'Mix Design'!$B$6) -> Mix Design | D58: =IF('Mix Design'!$B$52="","",'Mix Design'!$B$52) -> Paste | E58: =IF('Mix Design'!$C$56="","",'Mix Design'!$C$56) -> GGBF Slag: | F58: =IF('Mix Design'!$I$51="","",'Mix Design'!$I$51) -> Absolute Vol. (ft3)
A59: 57 | B59: =IF('Mix Design'!$K$56="","",'Mix Design'!$K$56) ->  | C59: =IF('Mix Design'!$B$6="","",'Mix Design'!$B$6) -> Mix Design | D59: =IF('Mix Design'!$B$52="","",'Mix Design'!$B$52) -> Paste | E59: =IF('Mix Design'!$C$56="","",'Mix Design'!$C$56) -> GGBF Slag: | F59: =IF('Mix Design'!$K$51="","",'Mix Design'!$K$51) -> SSD† Weight (lbs/CY)
A60: 58 | B60: =IF('Mix Design'!$F$57="","",'Mix Design'!$F$57) ->  | C60: =IF('Mix Design'!$B$6="","",'Mix Design'!$B$6) -> Mix Design | D60: =IF('Mix Design'!$B$52="","",'Mix Design'!$B$52) -> Paste | E60: =IF('Mix Design'!$C$57="","",'Mix Design'!$C$57) -> Silica Fume: | F60: =IF('Mix Design'!$F$51="","",'Mix Design'!$F$51) -> Producer/Source
A61: 59 | B61: =IF('Mix Design'!$I$57="","",'Mix Design'!$I$57) ->  | C61: =IF('Mix Design'!$B$6="","",'Mix Design'!$B$6) -> Mix Design | D61: =IF('Mix Design'!$B$52="","",'Mix Design'!$B$52) -> Paste | E61: =IF('Mix Design'!$C$57="","",'Mix Design'!$C$57) -> Silica Fume: | F61: =IF('Mix Design'!$I$51="","",'Mix Design'!$I$51) -> Absolute Vol. (ft3)
A62: 60 | B62: =IF('Mix Design'!$K$57="","",'Mix Design'!$K$57) ->  | C62: =IF('Mix Design'!$B$6="","",'Mix Design'!$B$6) -> Mix Design | D62: =IF('Mix Design'!$B$52="","",'Mix Design'!$B$52) -> Paste | E62: =IF('Mix Design'!$C$57="","",'Mix Design'!$C$57) -> Silica Fume: | F62: =IF('Mix Design'!$K$51="","",'Mix Design'!$K$51) -> SSD† Weight (lbs/CY)
A63: 61 | B63: =IF('Mix Design'!$F$58="","",'Mix Design'!$F$58) ->  | C63: =IF('Mix Design'!$B$6="","",'Mix Design'!$B$6) -> Mix Design | D63: =IF('Mix Design'!$B$52="","",'Mix Design'!$B$52) -> Paste | E63: =IF('Mix Design'!$C$58="","",'Mix Design'!$C$58) -> UFFA: | F63: =IF('Mix Design'!$F$51="","",'Mix Design'!$F$51) -> Producer/Source
A64: 62 | B64: =IF('Mix Design'!$I$58="","",'Mix Design'!$I$58) ->  | C64: =IF('Mix Design'!$B$6="","",'Mix Design'!$B$6) -> Mix Design | D64: =IF('Mix Design'!$B$52="","",'Mix Design'!$B$52) -> Paste | E64: =IF('Mix Design'!$C$58="","",'Mix Design'!$C$58) -> UFFA: | F64: =IF('Mix Design'!$I$51="","",'Mix Design'!$I$51) -> Absolute Vol. (ft3)
A65: 63 | B65: =IF('Mix Design'!$K$58="","",'Mix Design'!$K$58) ->  | C65: =IF('Mix Design'!$B$6="","",'Mix Design'!$B$6) -> Mix Design | D65: =IF('Mix Design'!$B$52="","",'Mix Design'!$B$52) -> Paste | E65: =IF('Mix Design'!$C$58="","",'Mix Design'!$C$58) -> UFFA: | F65: =IF('Mix Design'!$K$51="","",'Mix Design'!$K$51) -> SSD† Weight (lbs/CY)
A66: 64 | B66: =IF('Mix Design'!$F$59="","",'Mix Design'!$F$59) ->  | C66: =IF('Mix Design'!$B$6="","",'Mix Design'!$B$6) -> Mix Design | D66: =IF('Mix Design'!$B$52="","",'Mix Design'!$B$52) -> Paste | E66: =IF('Mix Design'!$C$59="","",'Mix Design'!$C$59) -> MFFA: | F66: =IF('Mix Design'!$F$51="","",'Mix Design'!$F$51) -> Producer/Source
A67: 65 | B67: =IF('Mix Design'!$I$59="","",'Mix Design'!$I$59) ->  | C67: =IF('Mix Design'!$B$6="","",'Mix Design'!$B$6) -> Mix Design | D67: =IF('Mix Design'!$B$52="","",'Mix Design'!$B$52) -> Paste | E67: =IF('Mix Design'!$C$59="","",'Mix Design'!$C$59) -> MFFA: | F67: =IF('Mix Design'!$I$51="","",'Mix Design'!$I$51) -> Absolute Vol. (ft3)
A68: 66 | B68: =IF('Mix Design'!$K$59="","",'Mix Design'!$K$59) ->  | C68: =IF('Mix Design'!$B$6="","",'Mix Design'!$B$6) -> Mix Design | D68: =IF('Mix Design'!$B$52="","",'Mix Design'!$B$52) -> Paste | E68: =IF('Mix Design'!$C$59="","",'Mix Design'!$C$59) -> MFFA: | F68: =IF('Mix Design'!$K$51="","",'Mix Design'!$K$51) -> SSD† Weight (lbs/CY)
A69: 67 | B69: =IF('Mix Design'!$F$60="","",'Mix Design'!$F$60) ->  | C69: =IF('Mix Design'!$B$6="","",'Mix Design'!$B$6) -> Mix Design | D69: =IF('Mix Design'!$B$52="","",'Mix Design'!$B$52) -> Paste | E69: =IF('Mix Design'!$C$60="","",'Mix Design'!$C$60) -> Metakaolin: | F69: =IF('Mix Design'!$F$51="","",'Mix Design'!$F$51) -> Producer/Source
A70: 68 | B70: =IF('Mix Design'!$I$60="","",'Mix Design'!$I$60) ->  | C70: =IF('Mix Design'!$B$6="","",'Mix Design'!$B$6) -> Mix Design | D70: =IF('Mix Design'!$B$52="","",'Mix Design'!$B$52) -> Paste | E70: =IF('Mix Design'!$C$60="","",'Mix Design'!$C$60) -> Metakaolin: | F70: =IF('Mix Design'!$I$51="","",'Mix Design'!$I$51) -> Absolute Vol. (ft3)
A71: 69 | B71: =IF('Mix Design'!$K$60="","",'Mix Design'!$K$60) ->  | C71: =IF('Mix Design'!$B$6="","",'Mix Design'!$B$6) -> Mix Design | D71: =IF('Mix Design'!$B$52="","",'Mix Design'!$B$52) -> Paste | E71: =IF('Mix Design'!$C$60="","",'Mix Design'!$C$60) -> Metakaolin: | F71: =IF('Mix Design'!$K$51="","",'Mix Design'!$K$51) -> SSD† Weight (lbs/CY)
A72: 70 | B72: =IF('Mix Design'!$F$61="","",'Mix Design'!$F$61) ->  | C72: =IF('Mix Design'!$B$6="","",'Mix Design'!$B$6) -> Mix Design | D72: =IF('Mix Design'!$B$52="","",'Mix Design'!$B$52) -> Paste | E72: =IF('Mix Design'!$C$61="","",'Mix Design'!$C$61) -> Other Pozzolan: | F72: =IF('Mix Design'!$F$51="","",'Mix Design'!$F$51) -> Producer/Source
A73: 71 | B73: =IF('Mix Design'!$I$61="","",'Mix Design'!$I$61) ->  | C73: =IF('Mix Design'!$B$6="","",'Mix Design'!$B$6) -> Mix Design | D73: =IF('Mix Design'!$B$52="","",'Mix Design'!$B$52) -> Paste | E73: =IF('Mix Design'!$C$61="","",'Mix Design'!$C$61) -> Other Pozzolan: | F73: =IF('Mix Design'!$I$51="","",'Mix Design'!$I$51) -> Absolute Vol. (ft3)
A74: 72 | B74: =IF('Mix Design'!$K$61="","",'Mix Design'!$K$61) ->  | C74: =IF('Mix Design'!$B$6="","",'Mix Design'!$B$6) -> Mix Design | D74: =IF('Mix Design'!$B$52="","",'Mix Design'!$B$52) -> Paste | E74: =IF('Mix Design'!$C$61="","",'Mix Design'!$C$61) -> Other Pozzolan: | F74: =IF('Mix Design'!$K$51="","",'Mix Design'!$K$51) -> SSD† Weight (lbs/CY)
A75: 73 | B75: =IF('Mix Design'!$F$62="","",'Mix Design'!$F$62) ->  | C75: =IF('Mix Design'!$B$6="","",'Mix Design'!$B$6) -> Mix Design | D75: =IF('Mix Design'!$B$52="","",'Mix Design'!$B$52) -> Paste | E75: =IF('Mix Design'!$C$62="","",'Mix Design'!$C$62) -> Air entraining admixture: | F75: =IF('Mix Design'!$F$51="","",'Mix Design'!$F$51) -> Producer/Source
A76: 74 | B76: =IF('Mix Design'!$H$62="","",'Mix Design'!$H$62) ->  | C76: =IF('Mix Design'!$B$6="","",'Mix Design'!$B$6) -> Mix Design | D76: =IF('Mix Design'!$B$52="","",'Mix Design'!$B$52) -> Paste | E76: =IF('Mix Design'!$C$62="","",'Mix Design'!$C$62) -> Air entraining admixture: | F76: =IF('Mix Design'!$H$51="","",'Mix Design'!$H$51) -> % or Dosage*
A77: 75 | B77: =IF('Mix Design'!$F$63="","",'Mix Design'!$F$63) ->  | C77: =IF('Mix Design'!$B$6="","",'Mix Design'!$B$6) -> Mix Design | D77: =IF('Mix Design'!$B$52="","",'Mix Design'!$B$52) -> Paste | E77: =IF('Mix Design'!$C$63="","",'Mix Design'!$C$63) -> Set retarder: | F77: =IF('Mix Design'!$F$51="","",'Mix Design'!$F$51) -> Producer/Source
A78: 76 | B78: =IF('Mix Design'!$H$63="","",'Mix Design'!$H$63) ->  | C78: =IF('Mix Design'!$B$6="","",'Mix Design'!$B$6) -> Mix Design | D78: =IF('Mix Design'!$B$52="","",'Mix Design'!$B$52) -> Paste | E78: =IF('Mix Design'!$C$63="","",'Mix Design'!$C$63) -> Set retarder: | F78: =IF('Mix Design'!$H$51="","",'Mix Design'!$H$51) -> % or Dosage*
A79: 77 | B79: =IF('Mix Design'!$F$64="","",'Mix Design'!$F$64) ->  | C79: =IF('Mix Design'!$B$6="","",'Mix Design'!$B$6) -> Mix Design | D79: =IF('Mix Design'!$B$52="","",'Mix Design'!$B$52) -> Paste | E79: =IF('Mix Design'!$C$64="","",'Mix Design'!$C$64) -> Accelerator: | F79: =IF('Mix Design'!$F$51="","",'Mix Design'!$F$51) -> Producer/Source
A80: 78 | B80: =IF('Mix Design'!$H$64="","",'Mix Design'!$H$64) ->  | C80: =IF('Mix Design'!$B$6="","",'Mix Design'!$B$6) -> Mix Design | D80: =IF('Mix Design'!$B$52="","",'Mix Design'!$B$52) -> Paste | E80: =IF('Mix Design'!$C$64="","",'Mix Design'!$C$64) -> Accelerator: | F80: =IF('Mix Design'!$H$51="","",'Mix Design'!$H$51) -> % or Dosage*
A81: 79 | B81: =IF('Mix Design'!$F$65="","",'Mix Design'!$F$65) ->  | C81: =IF('Mix Design'!$B$6="","",'Mix Design'!$B$6) -> Mix Design | D81: =IF('Mix Design'!$B$52="","",'Mix Design'!$B$52) -> Paste | E81: =IF('Mix Design'!$C$65="","",'Mix Design'!$C$65) -> Water Reducer: | F81: =IF('Mix Design'!$F$51="","",'Mix Design'!$F$51) -> Producer/Source
A82: 80 | B82: =IF('Mix Design'!$H$65="","",'Mix Design'!$H$65) ->  | C82: =IF('Mix Design'!$B$6="","",'Mix Design'!$B$6) -> Mix Design | D82: =IF('Mix Design'!$B$52="","",'Mix Design'!$B$52) -> Paste | E82: =IF('Mix Design'!$C$65="","",'Mix Design'!$C$65) -> Water Reducer: | F82: =IF('Mix Design'!$H$51="","",'Mix Design'!$H$51) -> % or Dosage*
A83: 81 | B83: =IF('Mix Design'!$F$66="","",'Mix Design'!$F$66) ->  | C83: =IF('Mix Design'!$B$6="","",'Mix Design'!$B$6) -> Mix Design | D83: =IF('Mix Design'!$B$52="","",'Mix Design'!$B$52) -> Paste | E83: =IF('Mix Design'!$C$66="","",'Mix Design'!$C$66) -> High-Range Water Reducer: | F83: =IF('Mix Design'!$F$51="","",'Mix Design'!$F$51) -> Producer/Source
A84: 82 | B84: =IF('Mix Design'!$H$66="","",'Mix Design'!$H$66) ->  | C84: =IF('Mix Design'!$B$6="","",'Mix Design'!$B$6) -> Mix Design | D84: =IF('Mix Design'!$B$52="","",'Mix Design'!$B$52) -> Paste | E84: =IF('Mix Design'!$C$66="","",'Mix Design'!$C$66) -> High-Range Water Reducer: | F84: =IF('Mix Design'!$H$51="","",'Mix Design'!$H$51) -> % or Dosage*
A85: 83 | B85: =IF('Mix Design'!$F$67="","",'Mix Design'!$F$67) ->  | C85: =IF('Mix Design'!$B$6="","",'Mix Design'!$B$6) -> Mix Design | D85: =IF('Mix Design'!$B$52="","",'Mix Design'!$B$52) -> Paste | E85: =IF('Mix Design'!$C$67="","",'Mix Design'!$C$67) -> Water Reducing Retarder: | F85: =IF('Mix Design'!$F$51="","",'Mix Design'!$F$51) -> Producer/Source
A86: 84 | B86: =IF('Mix Design'!$H$67="","",'Mix Design'!$H$67) ->  | C86: =IF('Mix Design'!$B$6="","",'Mix Design'!$B$6) -> Mix Design | D86: =IF('Mix Design'!$B$52="","",'Mix Design'!$B$52) -> Paste | E86: =IF('Mix Design'!$C$67="","",'Mix Design'!$C$67) -> Water Reducing Retarder: | F86: =IF('Mix Design'!$H$51="","",'Mix Design'!$H$51) -> % or Dosage*
A87: 85 | B87: =IF('Mix Design'!$F$68="","",'Mix Design'!$F$68) ->  | C87: =IF('Mix Design'!$B$6="","",'Mix Design'!$B$6) -> Mix Design | D87: =IF('Mix Design'!$B$52="","",'Mix Design'!$B$52) -> Paste | E87: =IF('Mix Design'!$C$68="","",'Mix Design'!$C$68) -> High-Range Water Reducing Retarder: | F87: =IF('Mix Design'!$F$51="","",'Mix Design'!$F$51) -> Producer/Source
A88: 86 | B88: =IF('Mix Design'!$H$68="","",'Mix Design'!$H$68) ->  | C88: =IF('Mix Design'!$B$6="","",'Mix Design'!$B$6) -> Mix Design | D88: =IF('Mix Design'!$B$52="","",'Mix Design'!$B$52) -> Paste | E88: =IF('Mix Design'!$C$68="","",'Mix Design'!$C$68) -> High-Range Water Reducing Retarder: | F88: =IF('Mix Design'!$H$51="","",'Mix Design'!$H$51) -> % or Dosage*
A89: 87 | B89: =IF('Mix Design'!$F$69="","",'Mix Design'!$F$69) ->  | C89: =IF('Mix Design'!$B$6="","",'Mix Design'!$B$6) -> Mix Design | D89: =IF('Mix Design'!$B$52="","",'Mix Design'!$B$52) -> Paste | E89: =IF('Mix Design'!$C$69="","",'Mix Design'!$C$69) -> Lithium Nitrate Admixture: | F89: =IF('Mix Design'!$F$51="","",'Mix Design'!$F$51) -> Producer/Source
A90: 88 | B90: =IF('Mix Design'!$H$69="","",'Mix Design'!$H$69) ->  | C90: =IF('Mix Design'!$B$6="","",'Mix Design'!$B$6) -> Mix Design | D90: =IF('Mix Design'!$B$52="","",'Mix Design'!$B$52) -> Paste | E90: =IF('Mix Design'!$C$69="","",'Mix Design'!$C$69) -> Lithium Nitrate Admixture: | F90: =IF('Mix Design'!$H$51="","",'Mix Design'!$H$51) -> % or Dosage*
A91: 89 | B91: =IF('Mix Design'!$F$70="","",'Mix Design'!$F$70) ->  | C91: =IF('Mix Design'!$B$6="","",'Mix Design'!$B$6) -> Mix Design | D91: =IF('Mix Design'!$B$52="","",'Mix Design'!$B$52) -> Paste | E91: =IF('Mix Design'!$C$70="","",'Mix Design'!$C$70) -> Corrosion Inhibitor: | F91: =IF('Mix Design'!$F$51="","",'Mix Design'!$F$51) -> Producer/Source
A92: 90 | B92: =IF('Mix Design'!$H$70="","",'Mix Design'!$H$70) ->  | C92: =IF('Mix Design'!$B$6="","",'Mix Design'!$B$6) -> Mix Design | D92: =IF('Mix Design'!$B$52="","",'Mix Design'!$B$52) -> Paste | E92: =IF('Mix Design'!$C$70="","",'Mix Design'!$C$70) -> Corrosion Inhibitor: | F92: =IF('Mix Design'!$H$51="","",'Mix Design'!$H$51) -> % or Dosage*
A93: 91 | B93: =IF('Mix Design'!$I$71="","",'Mix Design'!$I$71) -> 0 | C93: =IF('Mix Design'!$B$6="","",'Mix Design'!$B$6) -> Mix Design | D93: =IF('Mix Design'!$B$52="","",'Mix Design'!$B$52) -> Paste | E93: =IF('Mix Design'!$C$71="","",'Mix Design'!$C$71) -> Paste Volume = Total (water + cm): | F93: =IF('Mix Design'!$I$51="","",'Mix Design'!$I$51) -> Absolute Vol. (ft3)
A94: 92 | B94: =IF('Mix Design'!$H$72="","",'Mix Design'!$H$72) -> 0 | C94: =IF('Mix Design'!$B$6="","",'Mix Design'!$B$6) -> Mix Design | D94: =IF('Mix Design'!$B$72="","",'Mix Design'!$B$72) -> Air | E94: =IF('Mix Design'!$C$72="","",'Mix Design'!$C$72) -> Entrapped air: | F94: =IF('Mix Design'!$H$51="","",'Mix Design'!$H$51) -> % or Dosage*
A95: 93 | B95: =IF('Mix Design'!$I$72="","",'Mix Design'!$I$72) -> 0 | C95: =IF('Mix Design'!$B$6="","",'Mix Design'!$B$6) -> Mix Design | D95: =IF('Mix Design'!$B$72="","",'Mix Design'!$B$72) -> Air | E95: =IF('Mix Design'!$C$72="","",'Mix Design'!$C$72) -> Entrapped air: | F95: =IF('Mix Design'!$I$51="","",'Mix Design'!$I$51) -> Absolute Vol. (ft3)
A96: 94 | B96: =IF('Mix Design'!$H$73="","",'Mix Design'!$H$73) ->  | C96: =IF('Mix Design'!$B$6="","",'Mix Design'!$B$6) -> Mix Design | D96: =IF('Mix Design'!$B$72="","",'Mix Design'!$B$72) -> Air | E96: =IF('Mix Design'!$C$73="","",'Mix Design'!$C$73) -> Target Total Air Content: | F96: =IF('Mix Design'!$H$51="","",'Mix Design'!$H$51) -> % or Dosage*
A97: 95 | B97: =IF('Mix Design'!$I$73="","",'Mix Design'!$I$73) ->  | C97: =IF('Mix Design'!$B$6="","",'Mix Design'!$B$6) -> Mix Design | D97: =IF('Mix Design'!$B$72="","",'Mix Design'!$B$72) -> Air | E97: =IF('Mix Design'!$C$73="","",'Mix Design'!$C$73) -> Target Total Air Content: | F97: =IF('Mix Design'!$I$51="","",'Mix Design'!$I$51) -> Absolute Vol. (ft3)
A98: 96 | B98: =IF('Mix Design'!$I$74="","",'Mix Design'!$I$74) ->  | C98: =IF('Mix Design'!$B$6="","",'Mix Design'!$B$6) -> Mix Design | D98: =IF('Mix Design'!$B$72="","",'Mix Design'!$B$72) -> Air | E98: =IF('Mix Design'!$C$74="","",'Mix Design'!$C$74) -> Air + Paste Volume: | F98: =IF('Mix Design'!$I$51="","",'Mix Design'!$I$51) -> Absolute Vol. (ft3)
A99: 97 | B99: =IF('Mix Design'!$F$75="","",'Mix Design'!$F$75) ->  | C99: =IF('Mix Design'!$B$6="","",'Mix Design'!$B$6) -> Mix Design | D99: =IF('Mix Design'!$B$75="","",'Mix Design'!$B$75) -> Other | E99: =IF('Mix Design'!$C$75="","",'Mix Design'!$C$75) -> Fibers: | F99: =IF('Mix Design'!$F$51="","",'Mix Design'!$F$51) -> Producer/Source
A100: 98 | B100: =IF('Mix Design'!$I$75="","",'Mix Design'!$I$75) ->  | C100: =IF('Mix Design'!$B$6="","",'Mix Design'!$B$6) -> Mix Design | D100: =IF('Mix Design'!$B$75="","",'Mix Design'!$B$75) -> Other | E100: =IF('Mix Design'!$C$75="","",'Mix Design'!$C$75) -> Fibers: | F100: =IF('Mix Design'!$I$51="","",'Mix Design'!$I$51) -> Absolute Vol. (ft3)
A101: 99 | B101: =IF('Mix Design'!$K$75="","",'Mix Design'!$K$75) ->  | C101: =IF('Mix Design'!$B$6="","",'Mix Design'!$B$6) -> Mix Design | D101: =IF('Mix Design'!$B$75="","",'Mix Design'!$B$75) -> Other | E101: =IF('Mix Design'!$C$75="","",'Mix Design'!$C$75) -> Fibers: | F101: =IF('Mix Design'!$K$51="","",'Mix Design'!$K$51) -> SSD† Weight (lbs/CY)
A102: 100 | B102: =IF('Mix Design'!$C$76="","",'Mix Design'!$C$76) ->  | C102: =IF('Mix Design'!$B$6="","",'Mix Design'!$B$6) -> Mix Design | D102: =IF('Mix Design'!$B$75="","",'Mix Design'!$B$75) -> Other | E102: =IF('Mix Design'!$B$75="","",'Mix Design'!$B$75) -> Other | F102: =IF('Mix Design'!$C$51="","",'Mix Design'!$C$51) -> Mix Component
A103: 101 | B103: =IF('Mix Design'!$F$76="","",'Mix Design'!$F$76) ->  | C103: =IF('Mix Design'!$B$6="","",'Mix Design'!$B$6) -> Mix Design | D103: =IF('Mix Design'!$B$75="","",'Mix Design'!$B$75) -> Other | E103: =IF('Mix Design'!$C$76="","",'Mix Design'!$C$76) ->  | F103: =IF('Mix Design'!$F$51="","",'Mix Design'!$F$51) -> Producer/Source
A104: 102 | B104: =IF('Mix Design'!$I$76="","",'Mix Design'!$I$76) ->  | C104: =IF('Mix Design'!$B$6="","",'Mix Design'!$B$6) -> Mix Design | D104: =IF('Mix Design'!$B$75="","",'Mix Design'!$B$75) -> Other | E104: =IF('Mix Design'!$C$76="","",'Mix Design'!$C$76) ->  | F104: =IF('Mix Design'!$I$51="","",'Mix Design'!$I$51) -> Absolute Vol. (ft3)
A105: 103 | B105: =IF('Mix Design'!$K$76="","",'Mix Design'!$K$76) ->  | C105: =IF('Mix Design'!$B$6="","",'Mix Design'!$B$6) -> Mix Design | D105: =IF('Mix Design'!$B$75="","",'Mix Design'!$B$75) -> Other | E105: =IF('Mix Design'!$C$76="","",'Mix Design'!$C$76) ->  | F105: =IF('Mix Design'!$K$51="","",'Mix Design'!$K$51) -> SSD† Weight (lbs/CY)
A106: 104 | B106: =IF('Mix Design'!$I$77="","",'Mix Design'!$I$77) ->  | C106: =IF('Mix Design'!$B$6="","",'Mix Design'!$B$6) -> Mix Design | D106: =IF('Mix Design'!$B$77="","",'Mix Design'!$B$77) -> Non Optimized Aggregates | E106: =IF('Mix Design'!$C$77="","",'Mix Design'!$C$77) -> Total Aggregate Volume: | F106: =IF('Mix Design'!$I$51="","",'Mix Design'!$I$51) -> Absolute Vol. (ft3)
A107: 105 | B107: =IF('Mix Design'!$K$77="","",'Mix Design'!$K$77) ->  | C107: =IF('Mix Design'!$B$6="","",'Mix Design'!$B$6) -> Mix Design | D107: =IF('Mix Design'!$B$77="","",'Mix Design'!$B$77) -> Non Optimized Aggregates | E107: =IF('Mix Design'!$C$77="","",'Mix Design'!$C$77) -> Total Aggregate Volume: | F107: =IF('Mix Design'!$K$51="","",'Mix Design'!$K$51) -> SSD† Weight (lbs/CY)
A108: 106 | B108: =IF('Mix Design'!$E$78="","",'Mix Design'!$E$78) ->  | C108: =IF('Mix Design'!$B$6="","",'Mix Design'!$B$6) -> Mix Design | D108: =IF('Mix Design'!$B$77="","",'Mix Design'!$B$77) -> Non Optimized Aggregates | E108: =IF('Mix Design'!$C$78="","",'Mix Design'!$C$78) -> Coarse Aggregate 1: | F108: =IF('Mix Design'!$E$51="","",'Mix Design'!$E$51) -> Type/Class/ Grade
A109: 107 | B109: =IF('Mix Design'!$F$78="","",'Mix Design'!$F$78) ->  | C109: =IF('Mix Design'!$B$6="","",'Mix Design'!$B$6) -> Mix Design | D109: =IF('Mix Design'!$B$77="","",'Mix Design'!$B$77) -> Non Optimized Aggregates | E109: =IF('Mix Design'!$C$78="","",'Mix Design'!$C$78) -> Coarse Aggregate 1: | F109: =IF('Mix Design'!$F$51="","",'Mix Design'!$F$51) -> Producer/Source
A110: 108 | B110: =IF('Mix Design'!$I$78="","",'Mix Design'!$I$78) ->  | C110: =IF('Mix Design'!$B$6="","",'Mix Design'!$B$6) -> Mix Design | D110: =IF('Mix Design'!$B$77="","",'Mix Design'!$B$77) -> Non Optimized Aggregates | E110: =IF('Mix Design'!$C$78="","",'Mix Design'!$C$78) -> Coarse Aggregate 1: | F110: =IF('Mix Design'!$I$51="","",'Mix Design'!$I$51) -> Absolute Vol. (ft3)
A111: 109 | B111: =IF('Mix Design'!$K$78="","",'Mix Design'!$K$78) ->  | C111: =IF('Mix Design'!$B$6="","",'Mix Design'!$B$6) -> Mix Design | D111: =IF('Mix Design'!$B$77="","",'Mix Design'!$B$77) -> Non Optimized Aggregates | E111: =IF('Mix Design'!$C$78="","",'Mix Design'!$C$78) -> Coarse Aggregate 1: | F111: =IF('Mix Design'!$K$51="","",'Mix Design'!$K$51) -> SSD† Weight (lbs/CY)
A112: 110 | B112: =IF('Mix Design'!$E$79="","",'Mix Design'!$E$79) ->  | C112: =IF('Mix Design'!$B$6="","",'Mix Design'!$B$6) -> Mix Design | D112: =IF('Mix Design'!$B$77="","",'Mix Design'!$B$77) -> Non Optimized Aggregates | E112: =IF('Mix Design'!$C$79="","",'Mix Design'!$C$79) -> Coarse Aggregate 2: | F112: =IF('Mix Design'!$E$51="","",'Mix Design'!$E$51) -> Type/Class/ Grade
A113: 111 | B113: =IF('Mix Design'!$F$79="","",'Mix Design'!$F$79) ->  | C113: =IF('Mix Design'!$B$6="","",'Mix Design'!$B$6) -> Mix Design | D113: =IF('Mix Design'!$B$77="","",'Mix Design'!$B$77) -> Non Optimized Aggregates | E113: =IF('Mix Design'!$C$79="","",'Mix Design'!$C$79) -> Coarse Aggregate 2: | F113: =IF('Mix Design'!$F$51="","",'Mix Design'!$F$51) -> Producer/Source
A114: 112 | B114: =IF('Mix Design'!$I$79="","",'Mix Design'!$I$79) ->  | C114: =IF('Mix Design'!$B$6="","",'Mix Design'!$B$6) -> Mix Design | D114: =IF('Mix Design'!$B$77="","",'Mix Design'!$B$77) -> Non Optimized Aggregates | E114: =IF('Mix Design'!$C$79="","",'Mix Design'!$C$79) -> Coarse Aggregate 2: | F114: =IF('Mix Design'!$I$51="","",'Mix Design'!$I$51) -> Absolute Vol. (ft3)
A115: 113 | B115: =IF('Mix Design'!$K$79="","",'Mix Design'!$K$79) ->  | C115: =IF('Mix Design'!$B$6="","",'Mix Design'!$B$6) -> Mix Design | D115: =IF('Mix Design'!$B$77="","",'Mix Design'!$B$77) -> Non Optimized Aggregates | E115: =IF('Mix Design'!$C$79="","",'Mix Design'!$C$79) -> Coarse Aggregate 2: | F115: =IF('Mix Design'!$K$51="","",'Mix Design'!$K$51) -> SSD† Weight (lbs/CY)
A116: 114 | B116: =IF('Mix Design'!$F$80="","",'Mix Design'!$F$80) ->  | C116: =IF('Mix Design'!$B$6="","",'Mix Design'!$B$6) -> Mix Design | D116: =IF('Mix Design'!$B$77="","",'Mix Design'!$B$77) -> Non Optimized Aggregates | E116: =IF('Mix Design'!$C$80="","",'Mix Design'!$C$80) -> Intermediate Aggregate 1: | F116: =IF('Mix Design'!$F$51="","",'Mix Design'!$F$51) -> Producer/Source
A117: 115 | B117: =IF('Mix Design'!$I$80="","",'Mix Design'!$I$80) ->  | C117: =IF('Mix Design'!$B$6="","",'Mix Design'!$B$6) -> Mix Design | D117: =IF('Mix Design'!$B$77="","",'Mix Design'!$B$77) -> Non Optimized Aggregates | E117: =IF('Mix Design'!$C$80="","",'Mix Design'!$C$80) -> Intermediate Aggregate 1: | F117: =IF('Mix Design'!$I$51="","",'Mix Design'!$I$51) -> Absolute Vol. (ft3)
A118: 116 | B118: =IF('Mix Design'!$K$80="","",'Mix Design'!$K$80) ->  | C118: =IF('Mix Design'!$B$6="","",'Mix Design'!$B$6) -> Mix Design | D118: =IF('Mix Design'!$B$77="","",'Mix Design'!$B$77) -> Non Optimized Aggregates | E118: =IF('Mix Design'!$C$80="","",'Mix Design'!$C$80) -> Intermediate Aggregate 1: | F118: =IF('Mix Design'!$K$51="","",'Mix Design'!$K$51) -> SSD† Weight (lbs/CY)
A119: 117 | B119: =IF('Mix Design'!$F$81="","",'Mix Design'!$F$81) ->  | C119: =IF('Mix Design'!$B$6="","",'Mix Design'!$B$6) -> Mix Design | D119: =IF('Mix Design'!$B$77="","",'Mix Design'!$B$77) -> Non Optimized Aggregates | E119: =IF('Mix Design'!$C$81="","",'Mix Design'!$C$81) -> Intermediate Aggregate 2: | F119: =IF('Mix Design'!$F$51="","",'Mix Design'!$F$51) -> Producer/Source
A120: 118 | B120: =IF('Mix Design'!$I$81="","",'Mix Design'!$I$81) ->  | C120: =IF('Mix Design'!$B$6="","",'Mix Design'!$B$6) -> Mix Design | D120: =IF('Mix Design'!$B$77="","",'Mix Design'!$B$77) -> Non Optimized Aggregates | E120: =IF('Mix Design'!$C$81="","",'Mix Design'!$C$81) -> Intermediate Aggregate 2: | F120: =IF('Mix Design'!$I$51="","",'Mix Design'!$I$51) -> Absolute Vol. (ft3)
A121: 119 | B121: =IF('Mix Design'!$K$81="","",'Mix Design'!$K$81) ->  | C121: =IF('Mix Design'!$B$6="","",'Mix Design'!$B$6) -> Mix Design | D121: =IF('Mix Design'!$B$77="","",'Mix Design'!$B$77) -> Non Optimized Aggregates | E121: =IF('Mix Design'!$C$81="","",'Mix Design'!$C$81) -> Intermediate Aggregate 2: | F121: =IF('Mix Design'!$K$51="","",'Mix Design'!$K$51) -> SSD† Weight (lbs/CY)
A122: 120 | B122: =IF('Mix Design'!$F$82="","",'Mix Design'!$F$82) ->  | C122: =IF('Mix Design'!$B$6="","",'Mix Design'!$B$6) -> Mix Design | D122: =IF('Mix Design'!$B$77="","",'Mix Design'!$B$77) -> Non Optimized Aggregates | E122: =IF('Mix Design'!$C$82="","",'Mix Design'!$C$82) -> Fine Aggregate 1: | F122: =IF('Mix Design'!$F$51="","",'Mix Design'!$F$51) -> Producer/Source
A123: 121 | B123: =IF('Mix Design'!$I$82="","",'Mix Design'!$I$82) ->  | C123: =IF('Mix Design'!$B$6="","",'Mix Design'!$B$6) -> Mix Design | D123: =IF('Mix Design'!$B$77="","",'Mix Design'!$B$77) -> Non Optimized Aggregates | E123: =IF('Mix Design'!$C$82="","",'Mix Design'!$C$82) -> Fine Aggregate 1: | F123: =IF('Mix Design'!$I$51="","",'Mix Design'!$I$51) -> Absolute Vol. (ft3)
A124: 122 | B124: =IF('Mix Design'!$K$82="","",'Mix Design'!$K$82) ->  | C124: =IF('Mix Design'!$B$6="","",'Mix Design'!$B$6) -> Mix Design | D124: =IF('Mix Design'!$B$77="","",'Mix Design'!$B$77) -> Non Optimized Aggregates | E124: =IF('Mix Design'!$C$82="","",'Mix Design'!$C$82) -> Fine Aggregate 1: | F124: =IF('Mix Design'!$K$51="","",'Mix Design'!$K$51) -> SSD† Weight (lbs/CY)
A125: 123 | B125: =IF('Mix Design'!$F$83="","",'Mix Design'!$F$83) ->  | C125: =IF('Mix Design'!$B$6="","",'Mix Design'!$B$6) -> Mix Design | D125: =IF('Mix Design'!$B$77="","",'Mix Design'!$B$77) -> Non Optimized Aggregates | E125: =IF('Mix Design'!$C$83="","",'Mix Design'!$C$83) -> Fine Aggregate 2: | F125: =IF('Mix Design'!$F$51="","",'Mix Design'!$F$51) -> Producer/Source
A126: 124 | B126: =IF('Mix Design'!$I$83="","",'Mix Design'!$I$83) ->  | C126: =IF('Mix Design'!$B$6="","",'Mix Design'!$B$6) -> Mix Design | D126: =IF('Mix Design'!$B$77="","",'Mix Design'!$B$77) -> Non Optimized Aggregates | E126: =IF('Mix Design'!$C$83="","",'Mix Design'!$C$83) -> Fine Aggregate 2: | F126: =IF('Mix Design'!$I$51="","",'Mix Design'!$I$51) -> Absolute Vol. (ft3)
A127: 125 | B127: =IF('Mix Design'!$K$83="","",'Mix Design'!$K$83) ->  | C127: =IF('Mix Design'!$B$6="","",'Mix Design'!$B$6) -> Mix Design | D127: =IF('Mix Design'!$B$77="","",'Mix Design'!$B$77) -> Non Optimized Aggregates | E127: =IF('Mix Design'!$C$83="","",'Mix Design'!$C$83) -> Fine Aggregate 2: | F127: =IF('Mix Design'!$K$51="","",'Mix Design'!$K$51) -> SSD† Weight (lbs/CY)
A128: 126 | B128: =IF('Mix Design'!$H$84="","",'Mix Design'!$H$84) -> 0 | C128: =IF('Mix Design'!$B$6="","",'Mix Design'!$B$6) -> Mix Design | D128: =IF('Mix Design'!$B$77="","",'Mix Design'!$B$77) -> Non Optimized Aggregates | E128: =IF('Mix Design'!$C$77="","",'Mix Design'!$C$77) -> Total Aggregate Volume: | F128: =IF('Mix Design'!$H$51="","",'Mix Design'!$H$51) -> % or Dosage*
A129: 127 | B129: =IF('Mix Design'!$I$84="","",'Mix Design'!$I$84) ->  | C129: =IF('Mix Design'!$B$6="","",'Mix Design'!$B$6) -> Mix Design | D129: =IF('Mix Design'!$B$77="","",'Mix Design'!$B$77) -> Non Optimized Aggregates | E129: =IF('Mix Design'!$C$77="","",'Mix Design'!$C$77) -> Total Aggregate Volume: | F129: =IF('Mix Design'!$I$51="","",'Mix Design'!$I$51) -> Absolute Vol. (ft3)
A130: 128 | B130: =IF('Mix Design'!$K$84="","",'Mix Design'!$K$84) -> 0 | C130: =IF('Mix Design'!$B$6="","",'Mix Design'!$B$6) -> Mix Design | D130: =IF('Mix Design'!$B$77="","",'Mix Design'!$B$77) -> Non Optimized Aggregates | E130: =IF('Mix Design'!$C$77="","",'Mix Design'!$C$77) -> Total Aggregate Volume: | F130: =IF('Mix Design'!$K$51="","",'Mix Design'!$K$51) -> SSD† Weight (lbs/CY)
A131: 129 | B131: =IF('Mix Design'!$E$85="","",'Mix Design'!$E$85) ->  | C131: =IF('Mix Design'!$B$6="","",'Mix Design'!$B$6) -> Mix Design | D131: =IF('Mix Design'!$B$84="","",'Mix Design'!$B$84) -> Optimized Aggregates | E131: =IF('Mix Design'!$C$85="","",'Mix Design'!$C$85) -> Coarse Aggregate 1: | F131: =IF('Mix Design'!$E$51="","",'Mix Design'!$E$51) -> Type/Class/ Grade
A132: 130 | B132: =IF('Mix Design'!$F$85="","",'Mix Design'!$F$85) ->  | C132: =IF('Mix Design'!$B$6="","",'Mix Design'!$B$6) -> Mix Design | D132: =IF('Mix Design'!$B$84="","",'Mix Design'!$B$84) -> Optimized Aggregates | E132: =IF('Mix Design'!$C$85="","",'Mix Design'!$C$85) -> Coarse Aggregate 1: | F132: =IF('Mix Design'!$F$51="","",'Mix Design'!$F$51) -> Producer/Source
A133: 131 | B133: =IF('Mix Design'!$H$85="","",'Mix Design'!$H$85) ->  | C133: =IF('Mix Design'!$B$6="","",'Mix Design'!$B$6) -> Mix Design | D133: =IF('Mix Design'!$B$84="","",'Mix Design'!$B$84) -> Optimized Aggregates | E133: =IF('Mix Design'!$C$85="","",'Mix Design'!$C$85) -> Coarse Aggregate 1: | F133: =IF('Mix Design'!$H$51="","",'Mix Design'!$H$51) -> % or Dosage*
A134: 132 | B134: =IF('Mix Design'!$I$85="","",'Mix Design'!$I$85) ->  | C134: =IF('Mix Design'!$B$6="","",'Mix Design'!$B$6) -> Mix Design | D134: =IF('Mix Design'!$B$84="","",'Mix Design'!$B$84) -> Optimized Aggregates | E134: =IF('Mix Design'!$C$85="","",'Mix Design'!$C$85) -> Coarse Aggregate 1: | F134: =IF('Mix Design'!$I$51="","",'Mix Design'!$I$51) -> Absolute Vol. (ft3)
A135: 133 | B135: =IF('Mix Design'!$K$85="","",'Mix Design'!$K$85) ->  | C135: =IF('Mix Design'!$B$6="","",'Mix Design'!$B$6) -> Mix Design | D135: =IF('Mix Design'!$B$84="","",'Mix Design'!$B$84) -> Optimized Aggregates | E135: =IF('Mix Design'!$C$85="","",'Mix Design'!$C$85) -> Coarse Aggregate 1: | F135: =IF('Mix Design'!$K$51="","",'Mix Design'!$K$51) -> SSD† Weight (lbs/CY)
A136: 134 | B136: =IF('Mix Design'!$E$86="","",'Mix Design'!$E$86) ->  | C136: =IF('Mix Design'!$B$6="","",'Mix Design'!$B$6) -> Mix Design | D136: =IF('Mix Design'!$B$84="","",'Mix Design'!$B$84) -> Optimized Aggregates | E136: =IF('Mix Design'!$C$86="","",'Mix Design'!$C$86) -> Coarse Aggregate 2: | F136: =IF('Mix Design'!$E$51="","",'Mix Design'!$E$51) -> Type/Class/ Grade
A137: 135 | B137: =IF('Mix Design'!$F$86="","",'Mix Design'!$F$86) ->  | C137: =IF('Mix Design'!$B$6="","",'Mix Design'!$B$6) -> Mix Design | D137: =IF('Mix Design'!$B$84="","",'Mix Design'!$B$84) -> Optimized Aggregates | E137: =IF('Mix Design'!$C$86="","",'Mix Design'!$C$86) -> Coarse Aggregate 2: | F137: =IF('Mix Design'!$F$51="","",'Mix Design'!$F$51) -> Producer/Source
A138: 136 | B138: =IF('Mix Design'!$H$86="","",'Mix Design'!$H$86) ->  | C138: =IF('Mix Design'!$B$6="","",'Mix Design'!$B$6) -> Mix Design | D138: =IF('Mix Design'!$B$84="","",'Mix Design'!$B$84) -> Optimized Aggregates | E138: =IF('Mix Design'!$C$86="","",'Mix Design'!$C$86) -> Coarse Aggregate 2: | F138: =IF('Mix Design'!$H$51="","",'Mix Design'!$H$51) -> % or Dosage*
A139: 137 | B139: =IF('Mix Design'!$I$86="","",'Mix Design'!$I$86) ->  | C139: =IF('Mix Design'!$B$6="","",'Mix Design'!$B$6) -> Mix Design | D139: =IF('Mix Design'!$B$84="","",'Mix Design'!$B$84) -> Optimized Aggregates | E139: =IF('Mix Design'!$C$86="","",'Mix Design'!$C$86) -> Coarse Aggregate 2: | F139: =IF('Mix Design'!$I$51="","",'Mix Design'!$I$51) -> Absolute Vol. (ft3)
A140: 138 | B140: =IF('Mix Design'!$K$86="","",'Mix Design'!$K$86) ->  | C140: =IF('Mix Design'!$B$6="","",'Mix Design'!$B$6) -> Mix Design | D140: =IF('Mix Design'!$B$84="","",'Mix Design'!$B$84) -> Optimized Aggregates | E140: =IF('Mix Design'!$C$86="","",'Mix Design'!$C$86) -> Coarse Aggregate 2: | F140: =IF('Mix Design'!$K$51="","",'Mix Design'!$K$51) -> SSD† Weight (lbs/CY)
A141: 139 | B141: =IF('Mix Design'!$F$87="","",'Mix Design'!$F$87) ->  | C141: =IF('Mix Design'!$B$6="","",'Mix Design'!$B$6) -> Mix Design | D141: =IF('Mix Design'!$B$84="","",'Mix Design'!$B$84) -> Optimized Aggregates | E141: =IF('Mix Design'!$C$87="","",'Mix Design'!$C$87) -> Intermediate Aggregate 1: | F141: =IF('Mix Design'!$F$51="","",'Mix Design'!$F$51) -> Producer/Source
A142: 140 | B142: =IF('Mix Design'!$H$87="","",'Mix Design'!$H$87) ->  | C142: =IF('Mix Design'!$B$6="","",'Mix Design'!$B$6) -> Mix Design | D142: =IF('Mix Design'!$B$84="","",'Mix Design'!$B$84) -> Optimized Aggregates | E142: =IF('Mix Design'!$C$87="","",'Mix Design'!$C$87) -> Intermediate Aggregate 1: | F142: =IF('Mix Design'!$H$51="","",'Mix Design'!$H$51) -> % or Dosage*
A143: 141 | B143: =IF('Mix Design'!$I$87="","",'Mix Design'!$I$87) ->  | C143: =IF('Mix Design'!$B$6="","",'Mix Design'!$B$6) -> Mix Design | D143: =IF('Mix Design'!$B$84="","",'Mix Design'!$B$84) -> Optimized Aggregates | E143: =IF('Mix Design'!$C$87="","",'Mix Design'!$C$87) -> Intermediate Aggregate 1: | F143: =IF('Mix Design'!$I$51="","",'Mix Design'!$I$51) -> Absolute Vol. (ft3)
A144: 142 | B144: =IF('Mix Design'!$K$87="","",'Mix Design'!$K$87) ->  | C144: =IF('Mix Design'!$B$6="","",'Mix Design'!$B$6) -> Mix Design | D144: =IF('Mix Design'!$B$84="","",'Mix Design'!$B$84) -> Optimized Aggregates | E144: =IF('Mix Design'!$C$87="","",'Mix Design'!$C$87) -> Intermediate Aggregate 1: | F144: =IF('Mix Design'!$K$51="","",'Mix Design'!$K$51) -> SSD† Weight (lbs/CY)
A145: 143 | B145: =IF('Mix Design'!$F$88="","",'Mix Design'!$F$88) ->  | C145: =IF('Mix Design'!$B$6="","",'Mix Design'!$B$6) -> Mix Design | D145: =IF('Mix Design'!$B$84="","",'Mix Design'!$B$84) -> Optimized Aggregates | E145: =IF('Mix Design'!$C$88="","",'Mix Design'!$C$88) -> Intermediate Aggregate 2: | F145: =IF('Mix Design'!$F$51="","",'Mix Design'!$F$51) -> Producer/Source
A146: 144 | B146: =IF('Mix Design'!$H$88="","",'Mix Design'!$H$88) ->  | C146: =IF('Mix Design'!$B$6="","",'Mix Design'!$B$6) -> Mix Design | D146: =IF('Mix Design'!$B$84="","",'Mix Design'!$B$84) -> Optimized Aggregates | E146: =IF('Mix Design'!$C$88="","",'Mix Design'!$C$88) -> Intermediate Aggregate 2: | F146: =IF('Mix Design'!$H$51="","",'Mix Design'!$H$51) -> % or Dosage*
A147: 145 | B147: =IF('Mix Design'!$I$88="","",'Mix Design'!$I$88) ->  | C147: =IF('Mix Design'!$B$6="","",'Mix Design'!$B$6) -> Mix Design | D147: =IF('Mix Design'!$B$84="","",'Mix Design'!$B$84) -> Optimized Aggregates | E147: =IF('Mix Design'!$C$88="","",'Mix Design'!$C$88) -> Intermediate Aggregate 2: | F147: =IF('Mix Design'!$I$51="","",'Mix Design'!$I$51) -> Absolute Vol. (ft3)
A148: 146 | B148: =IF('Mix Design'!$K$88="","",'Mix Design'!$K$88) ->  | C148: =IF('Mix Design'!$B$6="","",'Mix Design'!$B$6) -> Mix Design | D148: =IF('Mix Design'!$B$84="","",'Mix Design'!$B$84) -> Optimized Aggregates | E148: =IF('Mix Design'!$C$88="","",'Mix Design'!$C$88) -> Intermediate Aggregate 2: | F148: =IF('Mix Design'!$K$51="","",'Mix Design'!$K$51) -> SSD† Weight (lbs/CY)
A149: 147 | B149: =IF('Mix Design'!$F$89="","",'Mix Design'!$F$89) ->  | C149: =IF('Mix Design'!$B$6="","",'Mix Design'!$B$6) -> Mix Design | D149: =IF('Mix Design'!$B$84="","",'Mix Design'!$B$84) -> Optimized Aggregates | E149: =IF('Mix Design'!$C$89="","",'Mix Design'!$C$89) -> Fine Aggregate 1: | F149: =IF('Mix Design'!$F$51="","",'Mix Design'!$F$51) -> Producer/Source
A150: 148 | B150: =IF('Mix Design'!$H$89="","",'Mix Design'!$H$89) ->  | C150: =IF('Mix Design'!$B$6="","",'Mix Design'!$B$6) -> Mix Design | D150: =IF('Mix Design'!$B$84="","",'Mix Design'!$B$84) -> Optimized Aggregates | E150: =IF('Mix Design'!$C$89="","",'Mix Design'!$C$89) -> Fine Aggregate 1: | F150: =IF('Mix Design'!$H$51="","",'Mix Design'!$H$51) -> % or Dosage*
A151: 149 | B151: =IF('Mix Design'!$I$89="","",'Mix Design'!$I$89) ->  | C151: =IF('Mix Design'!$B$6="","",'Mix Design'!$B$6) -> Mix Design | D151: =IF('Mix Design'!$B$84="","",'Mix Design'!$B$84) -> Optimized Aggregates | E151: =IF('Mix Design'!$C$89="","",'Mix Design'!$C$89) -> Fine Aggregate 1: | F151: =IF('Mix Design'!$I$51="","",'Mix Design'!$I$51) -> Absolute Vol. (ft3)
A152: 150 | B152: =IF('Mix Design'!$K$89="","",'Mix Design'!$K$89) ->  | C152: =IF('Mix Design'!$B$6="","",'Mix Design'!$B$6) -> Mix Design | D152: =IF('Mix Design'!$B$84="","",'Mix Design'!$B$84) -> Optimized Aggregates | E152: =IF('Mix Design'!$C$89="","",'Mix Design'!$C$89) -> Fine Aggregate 1: | F152: =IF('Mix Design'!$K$51="","",'Mix Design'!$K$51) -> SSD† Weight (lbs/CY)
A153: 151 | B153: =IF('Mix Design'!$F$90="","",'Mix Design'!$F$90) ->  | C153: =IF('Mix Design'!$B$6="","",'Mix Design'!$B$6) -> Mix Design | D153: =IF('Mix Design'!$B$84="","",'Mix Design'!$B$84) -> Optimized Aggregates | E153: =IF('Mix Design'!$C$90="","",'Mix Design'!$C$90) -> Fine Aggregate 2: | F153: =IF('Mix Design'!$F$51="","",'Mix Design'!$F$51) -> Producer/Source
A154: 152 | B154: =IF('Mix Design'!$H$90="","",'Mix Design'!$H$90) ->  | C154: =IF('Mix Design'!$B$6="","",'Mix Design'!$B$6) -> Mix Design | D154: =IF('Mix Design'!$B$84="","",'Mix Design'!$B$84) -> Optimized Aggregates | E154: =IF('Mix Design'!$C$90="","",'Mix Design'!$C$90) -> Fine Aggregate 2: | F154: =IF('Mix Design'!$H$51="","",'Mix Design'!$H$51) -> % or Dosage*
A155: 153 | B155: =IF('Mix Design'!$I$90="","",'Mix Design'!$I$90) ->  | C155: =IF('Mix Design'!$B$6="","",'Mix Design'!$B$6) -> Mix Design | D155: =IF('Mix Design'!$B$84="","",'Mix Design'!$B$84) -> Optimized Aggregates | E155: =IF('Mix Design'!$C$90="","",'Mix Design'!$C$90) -> Fine Aggregate 2: | F155: =IF('Mix Design'!$I$51="","",'Mix Design'!$I$51) -> Absolute Vol. (ft3)
A156: 154 | B156: =IF('Mix Design'!$K$90="","",'Mix Design'!$K$90) ->  | C156: =IF('Mix Design'!$B$6="","",'Mix Design'!$B$6) -> Mix Design | D156: =IF('Mix Design'!$B$84="","",'Mix Design'!$B$84) -> Optimized Aggregates | E156: =IF('Mix Design'!$C$90="","",'Mix Design'!$C$90) -> Fine Aggregate 2: | F156: =IF('Mix Design'!$K$51="","",'Mix Design'!$K$51) -> SSD† Weight (lbs/CY)
A157: 155 | B157: =IF('Mix Design'!$K$93="","",'Mix Design'!$K$93) -> 0 | C157: =IF('Mix Design'!$B$6="","",'Mix Design'!$B$6) -> Mix Design | D157: =IF('Mix Design'!$B$84="","",'Mix Design'!$B$84) -> Optimized Aggregates | E157: =IF('Mix Design'!$C$93="","",'Mix Design'!$C$93) -> Total Weight / CY:
A158: 156 | B158: =IF('Mix Design'!$H$94="","",'Mix Design'!$H$94) ->  | C158: =IF('Mix Design'!$B$6="","",'Mix Design'!$B$6) -> Mix Design | D158: =IF('Mix Design'!$C$94="","",'Mix Design'!$C$94) -> Size of Truck:
A159: 157 | B159: =IF('Mix Design'!$K$95="","",'Mix Design'!$K$95) -> 0 | C159: =IF('Mix Design'!$B$6="","",'Mix Design'!$B$6) -> Mix Design | D159: =IF('Mix Design'!$C$95="","",'Mix Design'!$C$95) -> Est. Total Weight / Truck:
A160: 158 | B160: =IF('Mix Design'!$I$96="","",'Mix Design'!$I$96) -> 0 | C160: =IF('Mix Design'!$B$6="","",'Mix Design'!$B$6) -> Mix Design | D160: =IF('Mix Design'!$C$96="","",'Mix Design'!$C$96) -> Total Absolute Volume:
A161: 159 | B161: =IF('Mix Design'!$L$97="","",'Mix Design'!$L$97) ->  | C161: =IF('Mix Design'!$B$6="","",'Mix Design'!$B$6) -> Mix Design | D161: =IF('Mix Design'!$C$97="","",'Mix Design'!$C$97) -> Theoretical Weight of Concrete Computed on an Air-Free Basis**:
A162: 160 | B162: =IF('Mix Design'!$L$98="","",'Mix Design'!$L$98) ->  | C162: =IF('Mix Design'!$B$6="","",'Mix Design'!$B$6) -> Mix Design | D162: =IF('Mix Design'!$C$98="","",'Mix Design'!$C$98) -> Design Yield (Unit Weight):
A163: 161 | B163: =IF('Matl Properties'!$C$24="","",'Matl Properties'!$C$24) ->  | C163: =IF('Matl Properties'!$B$6="","",'Matl Properties'!$B$6) -> Material Properties | D163: =IF('Matl Properties'!$B$21="","",'Matl Properties'!$B$21) -> AGGREGATE PROPERTIES (FROM LABORATORY TESTING) | E163: =IF('Matl Properties'!$B$24="","",'Matl Properties'!$B$24) -> Coarse Aggregate 1: | F163: =IF('Matl Properties'!$C$22="","",'Matl Properties'!$C$22) -> Specific Gravity (SSD)
A164: 162 | B164: =IF('Matl Properties'!$D$24="","",'Matl Properties'!$D$24) ->  | C164: =IF('Matl Properties'!$B$6="","",'Matl Properties'!$B$6) -> Material Properties | D164: =IF('Matl Properties'!$B$21="","",'Matl Properties'!$B$21) -> AGGREGATE PROPERTIES (FROM LABORATORY TESTING) | E164: =IF('Matl Properties'!$B$24="","",'Matl Properties'!$B$24) -> Coarse Aggregate 1: | F164: =IF('Matl Properties'!$D$22="","",'Matl Properties'!$D$22) -> Rodded Unit Weight (UDRY)
A165: 163 | B165: =IF('Matl Properties'!$G$24="","",'Matl Properties'!$G$24) ->  | C165: =IF('Matl Properties'!$B$6="","",'Matl Properties'!$B$6) -> Material Properties | D165: =IF('Matl Properties'!$B$21="","",'Matl Properties'!$B$21) -> AGGREGATE PROPERTIES (FROM LABORATORY TESTING) | E165: =IF('Matl Properties'!$B$24="","",'Matl Properties'!$B$24) -> Coarse Aggregate 1: | F165: =IF('Matl Properties'!$G$22="","",'Matl Properties'!$G$22) -> Absorption (%)
A166: 164 | B166: =IF('Matl Properties'!$C$25="","",'Matl Properties'!$C$25) ->  | C166: =IF('Matl Properties'!$B$6="","",'Matl Properties'!$B$6) -> Material Properties | D166: =IF('Matl Properties'!$B$21="","",'Matl Properties'!$B$21) -> AGGREGATE PROPERTIES (FROM LABORATORY TESTING) | E166: =IF('Matl Properties'!$B$25="","",'Matl Properties'!$B$25) -> Coarse Aggregate 2: | F166: =IF('Matl Properties'!$C$22="","",'Matl Properties'!$C$22) -> Specific Gravity (SSD)
A167: 165 | B167: =IF('Matl Properties'!$D$25="","",'Matl Properties'!$D$25) ->  | C167: =IF('Matl Properties'!$B$6="","",'Matl Properties'!$B$6) -> Material Properties | D167: =IF('Matl Properties'!$B$21="","",'Matl Properties'!$B$21) -> AGGREGATE PROPERTIES (FROM LABORATORY TESTING) | E167: =IF('Matl Properties'!$B$25="","",'Matl Properties'!$B$25) -> Coarse Aggregate 2: | F167: =IF('Matl Properties'!$D$22="","",'Matl Properties'!$D$22) -> Rodded Unit Weight (UDRY)
A168: 166 | B168: =IF('Matl Properties'!$G$25="","",'Matl Properties'!$G$25) ->  | C168: =IF('Matl Properties'!$B$6="","",'Matl Properties'!$B$6) -> Material Properties | D168: =IF('Matl Properties'!$B$21="","",'Matl Properties'!$B$21) -> AGGREGATE PROPERTIES (FROM LABORATORY TESTING) | E168: =IF('Matl Properties'!$B$25="","",'Matl Properties'!$B$25) -> Coarse Aggregate 2: | F168: =IF('Matl Properties'!$G$22="","",'Matl Properties'!$G$22) -> Absorption (%)
A169: 167 | B169: =IF('Matl Properties'!$C$26="","",'Matl Properties'!$C$26) ->  | C169: =IF('Matl Properties'!$B$6="","",'Matl Properties'!$B$6) -> Material Properties | D169: =IF('Matl Properties'!$B$21="","",'Matl Properties'!$B$21) -> AGGREGATE PROPERTIES (FROM LABORATORY TESTING) | E169: =IF('Matl Properties'!$B$26="","",'Matl Properties'!$B$26) -> Intermediate Aggregate 1: | F169: =IF('Matl Properties'!$C$22="","",'Matl Properties'!$C$22) -> Specific Gravity (SSD)
A170: 168 | B170: =IF('Matl Properties'!$D$26="","",'Matl Properties'!$D$26) ->  | C170: =IF('Matl Properties'!$B$6="","",'Matl Properties'!$B$6) -> Material Properties | D170: =IF('Matl Properties'!$B$21="","",'Matl Properties'!$B$21) -> AGGREGATE PROPERTIES (FROM LABORATORY TESTING) | E170: =IF('Matl Properties'!$B$26="","",'Matl Properties'!$B$26) -> Intermediate Aggregate 1: | F170: =IF('Matl Properties'!$D$22="","",'Matl Properties'!$D$22) -> Rodded Unit Weight (UDRY)
A171: 169 | B171: =IF('Matl Properties'!$G$26="","",'Matl Properties'!$G$26) ->  | C171: =IF('Matl Properties'!$B$6="","",'Matl Properties'!$B$6) -> Material Properties | D171: =IF('Matl Properties'!$B$21="","",'Matl Properties'!$B$21) -> AGGREGATE PROPERTIES (FROM LABORATORY TESTING) | E171: =IF('Matl Properties'!$B$26="","",'Matl Properties'!$B$26) -> Intermediate Aggregate 1: | F171: =IF('Matl Properties'!$G$22="","",'Matl Properties'!$G$22) -> Absorption (%)
A172: 170 | B172: =IF('Matl Properties'!$C$27="","",'Matl Properties'!$C$27) ->  | C172: =IF('Matl Properties'!$B$6="","",'Matl Properties'!$B$6) -> Material Properties | D172: =IF('Matl Properties'!$B$21="","",'Matl Properties'!$B$21) -> AGGREGATE PROPERTIES (FROM LABORATORY TESTING) | E172: =IF('Matl Properties'!$B$27="","",'Matl Properties'!$B$27) -> Intermediate Aggregate 2: | F172: =IF('Matl Properties'!$C$22="","",'Matl Properties'!$C$22) -> Specific Gravity (SSD)
A173: 171 | B173: =IF('Matl Properties'!$D$27="","",'Matl Properties'!$D$27) ->  | C173: =IF('Matl Properties'!$B$6="","",'Matl Properties'!$B$6) -> Material Properties | D173: =IF('Matl Properties'!$B$21="","",'Matl Properties'!$B$21) -> AGGREGATE PROPERTIES (FROM LABORATORY TESTING) | E173: =IF('Matl Properties'!$B$27="","",'Matl Properties'!$B$27) -> Intermediate Aggregate 2: | F173: =IF('Matl Properties'!$D$22="","",'Matl Properties'!$D$22) -> Rodded Unit Weight (UDRY)
A174: 172 | B174: =IF('Matl Properties'!$G$27="","",'Matl Properties'!$G$27) ->  | C174: =IF('Matl Properties'!$B$6="","",'Matl Properties'!$B$6) -> Material Properties | D174: =IF('Matl Properties'!$B$21="","",'Matl Properties'!$B$21) -> AGGREGATE PROPERTIES (FROM LABORATORY TESTING) | E174: =IF('Matl Properties'!$B$27="","",'Matl Properties'!$B$27) -> Intermediate Aggregate 2: | F174: =IF('Matl Properties'!$G$22="","",'Matl Properties'!$G$22) -> Absorption (%)
A175: 173 | B175: =IF('Matl Properties'!$C$28="","",'Matl Properties'!$C$28) ->  | C175: =IF('Matl Properties'!$B$6="","",'Matl Properties'!$B$6) -> Material Properties | D175: =IF('Matl Properties'!$B$21="","",'Matl Properties'!$B$21) -> AGGREGATE PROPERTIES (FROM LABORATORY TESTING) | E175: =IF('Matl Properties'!$B$28="","",'Matl Properties'!$B$28) -> Fine Aggregate 1: | F175: =IF('Matl Properties'!$C$22="","",'Matl Properties'!$C$22) -> Specific Gravity (SSD)
A176: 174 | B176: =IF('Matl Properties'!$F$28="","",'Matl Properties'!$F$28) ->  | C176: =IF('Matl Properties'!$B$6="","",'Matl Properties'!$B$6) -> Material Properties | D176: =IF('Matl Properties'!$B$21="","",'Matl Properties'!$B$21) -> AGGREGATE PROPERTIES (FROM LABORATORY TESTING) | E176: =IF('Matl Properties'!$B$28="","",'Matl Properties'!$B$28) -> Fine Aggregate 1: | F176: =IF('Matl Properties'!$F$22="","",'Matl Properties'!$F$22) -> Fineness Modulus (FM)
A177: 175 | B177: =IF('Matl Properties'!$G$28="","",'Matl Properties'!$G$28) ->  | C177: =IF('Matl Properties'!$B$6="","",'Matl Properties'!$B$6) -> Material Properties | D177: =IF('Matl Properties'!$B$21="","",'Matl Properties'!$B$21) -> AGGREGATE PROPERTIES (FROM LABORATORY TESTING) | E177: =IF('Matl Properties'!$B$28="","",'Matl Properties'!$B$28) -> Fine Aggregate 1: | F177: =IF('Matl Properties'!$G$22="","",'Matl Properties'!$G$22) -> Absorption (%)
A178: 176 | B178: =IF('Matl Properties'!$C$29="","",'Matl Properties'!$C$29) ->  | C178: =IF('Matl Properties'!$B$6="","",'Matl Properties'!$B$6) -> Material Properties | D178: =IF('Matl Properties'!$B$21="","",'Matl Properties'!$B$21) -> AGGREGATE PROPERTIES (FROM LABORATORY TESTING) | E178: =IF('Matl Properties'!$B$29="","",'Matl Properties'!$B$29) -> Fine Aggregate 2: | F178: =IF('Matl Properties'!$C$22="","",'Matl Properties'!$C$22) -> Specific Gravity (SSD)
A179: 177 | B179: =IF('Matl Properties'!$F$29="","",'Matl Properties'!$F$29) ->  | C179: =IF('Matl Properties'!$B$6="","",'Matl Properties'!$B$6) -> Material Properties | D179: =IF('Matl Properties'!$B$21="","",'Matl Properties'!$B$21) -> AGGREGATE PROPERTIES (FROM LABORATORY TESTING) | E179: =IF('Matl Properties'!$B$29="","",'Matl Properties'!$B$29) -> Fine Aggregate 2: | F179: =IF('Matl Properties'!$F$22="","",'Matl Properties'!$F$22) -> Fineness Modulus (FM)
A180: 178 | B180: =IF('Matl Properties'!$G$29="","",'Matl Properties'!$G$29) ->  | C180: =IF('Matl Properties'!$B$6="","",'Matl Properties'!$B$6) -> Material Properties | D180: =IF('Matl Properties'!$B$21="","",'Matl Properties'!$B$21) -> AGGREGATE PROPERTIES (FROM LABORATORY TESTING) | E180: =IF('Matl Properties'!$B$29="","",'Matl Properties'!$B$29) -> Fine Aggregate 2: | F180: =IF('Matl Properties'!$G$22="","",'Matl Properties'!$G$22) -> Absorption (%)
A181: 179 | B181: =IF('Matl Properties'!$C$33="","",'Matl Properties'!$C$33) ->  | C181: =IF('Matl Properties'!$B$6="","",'Matl Properties'!$B$6) -> Material Properties | D181: =IF('Matl Properties'!$B$31="","",'Matl Properties'!$B$31) -> CEMENTITIOUS MATERIALS | E181: =IF('Matl Properties'!$B$33="","",'Matl Properties'!$B$33) -> Hydraulic cement | F181: =IF('Matl Properties'!$C$32="","",'Matl Properties'!$C$32) -> Specific Gravity
A182: 180 | B182: =IF('Matl Properties'!$C$34="","",'Matl Properties'!$C$34) ->  | C182: =IF('Matl Properties'!$B$6="","",'Matl Properties'!$B$6) -> Material Properties | D182: =IF('Matl Properties'!$B$31="","",'Matl Properties'!$B$31) -> CEMENTITIOUS MATERIALS | E182: =IF('Matl Properties'!$B$34="","",'Matl Properties'!$B$34) -> Fly Ash | F182: =IF('Matl Properties'!$C$32="","",'Matl Properties'!$C$32) -> Specific Gravity
A183: 181 | B183: =IF('Matl Properties'!$C$35="","",'Matl Properties'!$C$35) ->  | C183: =IF('Matl Properties'!$B$6="","",'Matl Properties'!$B$6) -> Material Properties | D183: =IF('Matl Properties'!$B$31="","",'Matl Properties'!$B$31) -> CEMENTITIOUS MATERIALS | E183: =IF('Matl Properties'!$B$35="","",'Matl Properties'!$B$35) -> Ground Granulated Blast Furnace Slag | F183: =IF('Matl Properties'!$C$32="","",'Matl Properties'!$C$32) -> Specific Gravity
A184: 182 | B184: =IF('Matl Properties'!$C$37="","",'Matl Properties'!$C$37) ->  | C184: =IF('Matl Properties'!$B$6="","",'Matl Properties'!$B$6) -> Material Properties | D184: =IF('Matl Properties'!$B$31="","",'Matl Properties'!$B$31) -> CEMENTITIOUS MATERIALS | E184: =IF('Matl Properties'!$B$37="","",'Matl Properties'!$B$37) -> Silica Fume | F184: =IF('Matl Properties'!$C$32="","",'Matl Properties'!$C$32) -> Specific Gravity
A185: 183 | B185: =IF('Matl Properties'!$C$38="","",'Matl Properties'!$C$38) ->  | C185: =IF('Matl Properties'!$B$6="","",'Matl Properties'!$B$6) -> Material Properties | D185: =IF('Matl Properties'!$B$31="","",'Matl Properties'!$B$31) -> CEMENTITIOUS MATERIALS | E185: =IF('Matl Properties'!$B$38="","",'Matl Properties'!$B$38) -> UFFA | F185: =IF('Matl Properties'!$C$32="","",'Matl Properties'!$C$32) -> Specific Gravity
A186: 184 | B186: =IF('Matl Properties'!$C$39="","",'Matl Properties'!$C$39) ->  | C186: =IF('Matl Properties'!$B$6="","",'Matl Properties'!$B$6) -> Material Properties | D186: =IF('Matl Properties'!$B$31="","",'Matl Properties'!$B$31) -> CEMENTITIOUS MATERIALS | E186: =IF('Matl Properties'!$B$39="","",'Matl Properties'!$B$39) -> MFFA | F186: =IF('Matl Properties'!$C$32="","",'Matl Properties'!$C$32) -> Specific Gravity
A187: 185 | B187: =IF('Matl Properties'!$C$40="","",'Matl Properties'!$C$40) ->  | C187: =IF('Matl Properties'!$B$6="","",'Matl Properties'!$B$6) -> Material Properties | D187: =IF('Matl Properties'!$B$31="","",'Matl Properties'!$B$31) -> CEMENTITIOUS MATERIALS | E187: =IF('Matl Properties'!$B$40="","",'Matl Properties'!$B$40) -> Metakaolin | F187: =IF('Matl Properties'!$C$32="","",'Matl Properties'!$C$32) -> Specific Gravity
A188: 186 | B188: =IF('Matl Properties'!$C$41="","",'Matl Properties'!$C$41) ->  | C188: =IF('Matl Properties'!$B$6="","",'Matl Properties'!$B$6) -> Material Properties | D188: =IF('Matl Properties'!$B$31="","",'Matl Properties'!$B$31) -> CEMENTITIOUS MATERIALS | E188: =IF('Matl Properties'!$B$41="","",'Matl Properties'!$B$41) -> Other Pozzolan | F188: =IF('Matl Properties'!$C$32="","",'Matl Properties'!$C$32) -> Specific Gravity
A189: 187 | B189: =IF('Matl Properties'!$H$33="","",'Matl Properties'!$H$33) ->  | C189: =IF('Matl Properties'!$B$6="","",'Matl Properties'!$B$6) -> Material Properties | D189: =IF('Matl Properties'!$E$31="","",'Matl Properties'!$E$31) -> CHEMICAL ADMIXTURES | E189: =IF('Matl Properties'!$E$33="","",'Matl Properties'!$E$33) -> Air entraining admixutre | F189: =IF('Matl Properties'!$H$32="","",'Matl Properties'!$H$32) -> % Solids
A190: 188 | B190: =IF('Matl Properties'!$H$34="","",'Matl Properties'!$H$34) ->  | C190: =IF('Matl Properties'!$B$6="","",'Matl Properties'!$B$6) -> Material Properties | D190: =IF('Matl Properties'!$E$31="","",'Matl Properties'!$E$31) -> CHEMICAL ADMIXTURES | E190: =IF('Matl Properties'!$E$34="","",'Matl Properties'!$E$34) -> Set Retarder | F190: =IF('Matl Properties'!$H$32="","",'Matl Properties'!$H$32) -> % Solids
A191: 189 | B191: =IF('Matl Properties'!$H$35="","",'Matl Properties'!$H$35) ->  | C191: =IF('Matl Properties'!$B$6="","",'Matl Properties'!$B$6) -> Material Properties | D191: =IF('Matl Properties'!$E$31="","",'Matl Properties'!$E$31) -> CHEMICAL ADMIXTURES | E191: =IF('Matl Properties'!$E$35="","",'Matl Properties'!$E$35) -> Accelerator | F191: =IF('Matl Properties'!$H$32="","",'Matl Properties'!$H$32) -> % Solids
A192: 190 | B192: =IF('Matl Properties'!$H$36="","",'Matl Properties'!$H$36) ->  | C192: =IF('Matl Properties'!$B$6="","",'Matl Properties'!$B$6) -> Material Properties | D192: =IF('Matl Properties'!$E$31="","",'Matl Properties'!$E$31) -> CHEMICAL ADMIXTURES | E192: =IF('Matl Properties'!$E$36="","",'Matl Properties'!$E$36) -> Water reducer | F192: =IF('Matl Properties'!$H$32="","",'Matl Properties'!$H$32) -> % Solids
A193: 191 | B193: =IF('Matl Properties'!$H$37="","",'Matl Properties'!$H$37) ->  | C193: =IF('Matl Properties'!$B$6="","",'Matl Properties'!$B$6) -> Material Properties | D193: =IF('Matl Properties'!$E$31="","",'Matl Properties'!$E$31) -> CHEMICAL ADMIXTURES | E193: =IF('Matl Properties'!$E$37="","",'Matl Properties'!$E$37) -> High-range water reducer | F193: =IF('Matl Properties'!$H$32="","",'Matl Properties'!$H$32) -> % Solids
A194: 192 | B194: =IF('Matl Properties'!$H$38="","",'Matl Properties'!$H$38) ->  | C194: =IF('Matl Properties'!$B$6="","",'Matl Properties'!$B$6) -> Material Properties | D194: =IF('Matl Properties'!$E$31="","",'Matl Properties'!$E$31) -> CHEMICAL ADMIXTURES | E194: =IF('Matl Properties'!$E$38="","",'Matl Properties'!$E$38) -> Water reducing retarder | F194: =IF('Matl Properties'!$H$32="","",'Matl Properties'!$H$32) -> % Solids
A195: 193 | B195: =IF('Matl Properties'!$H$39="","",'Matl Properties'!$H$39) ->  | C195: =IF('Matl Properties'!$B$6="","",'Matl Properties'!$B$6) -> Material Properties | D195: =IF('Matl Properties'!$E$31="","",'Matl Properties'!$E$31) -> CHEMICAL ADMIXTURES | E195: =IF('Matl Properties'!$E$39="","",'Matl Properties'!$E$39) -> High-range water reducing retarder | F195: =IF('Matl Properties'!$H$32="","",'Matl Properties'!$H$32) -> % Solids
A196: 194 | B196: =IF('Matl Properties'!$H$40="","",'Matl Properties'!$H$40) ->  | C196: =IF('Matl Properties'!$B$6="","",'Matl Properties'!$B$6) -> Material Properties | D196: =IF('Matl Properties'!$E$31="","",'Matl Properties'!$E$31) -> CHEMICAL ADMIXTURES | E196: =IF('Matl Properties'!$E$40="","",'Matl Properties'!$E$40) -> Lithium nitrate admixture | F196: =IF('Matl Properties'!$H$32="","",'Matl Properties'!$H$32) -> % Solids
A197: 195 | B197: =IF('Matl Properties'!$H$41="","",'Matl Properties'!$H$41) ->  | C197: =IF('Matl Properties'!$B$6="","",'Matl Properties'!$B$6) -> Material Properties | D197: =IF('Matl Properties'!$E$31="","",'Matl Properties'!$E$31) -> CHEMICAL ADMIXTURES | E197: =IF('Matl Properties'!$E$41="","",'Matl Properties'!$E$41) -> Corrosion inhibitor | F197: =IF('Matl Properties'!$H$32="","",'Matl Properties'!$H$32) -> % Solids
A198: 196 | B198: =IF('Matl Properties'!$D$45="","",'Matl Properties'!$D$45) ->  | C198: =IF('Matl Properties'!$B$6="","",'Matl Properties'!$B$6) -> Material Properties | D198: =IF('Matl Properties'!$B$43="","",'Matl Properties'!$B$43) -> OTHER MATERIALS | E198: =IF('Matl Properties'!$B$45="","",'Matl Properties'!$B$45) -> Fibers | F198: =IF('Matl Properties'!$D$44="","",'Matl Properties'!$D$44) -> Specific Gravity
A199: 197 | B199: =IF('Matl Properties'!$D$46="","",'Matl Properties'!$D$46) ->  | C199: =IF('Matl Properties'!$B$6="","",'Matl Properties'!$B$6) -> Material Properties | D199: =IF('Matl Properties'!$B$43="","",'Matl Properties'!$B$43) -> OTHER MATERIALS | E199: =IF('Matl Properties'!$B$46="","",'Matl Properties'!$B$46) ->  | F199: =IF('Matl Properties'!$D$44="","",'Matl Properties'!$D$44) -> Specific Gravity
A200: 198 | B200: =IF('Optimized Gradation'!$D$22="","",'Optimized Gradation'!$D$22) ->  | C200: =IF('Optimized Gradation'!$B$5="","",'Optimized Gradation'!$B$5) -> Optimized Gradation | D200: =IF('Optimized Gradation'!$B$20="","",'Optimized Gradation'!$B$20) -> SIEVE ANALYSIS | E200: =IF('Optimized Gradation'!$D$21="","",'Optimized Gradation'!$D$21) -> Coarse Agg. 1 % Passing | F200: =IF('Optimized Gradation'!$B$21="","",'Optimized Gradation'!$B$21) -> Sieve Size | G200: =IF('Optimized Gradation'!$B$22="","",'Optimized Gradation'!$B$22) -> 2 1/2 in
... 905 more rows

Sheet Revisions (hidden)
A1: Date | B1: Changes | C1: By
A2: 2010-05-01 | C2: HUA CHEN
B4: Revisions for HCCMXDES2.XLS WORKSHEET
B6: 1. Added references for titles cells for seven tabs using Mix Design Tab input
B8: 2. Mix Design Tab
B10: Cell I77
B11: =IF(I74="","",27-I75-I76-I74)
B12: Instead of 27 - cement -water Changd to sum of input volumes for aggregates
B13: =IF(ISBLANK(I78),"",SUM(I78:I83))
B15: Cell H41
B16: =IF(COUNTBLANK(H34:H40)=7,"",IF(ConcreteClass="P",0,IF(N(H40)<15,IF(N(H36)<3000,1000,IF(AND(N(H36)>=3000,N(H36)<=5000),1200,1400)),IF(AND(N(H40)>=15,N(H40)<20),O38,IF(AND(N(H40)>=20,N(H40)<30),O39,O40)))))
B17: Class P still have over design
B18: Changed to
B19: =IF(COUNTBLANK(H34:H40)=7,"",IF(ConcreteClass="CLASS P",0,IF(N(H40)<15,IF(N(H36)<3000,1000,IF(AND(N(H36)>=3000,N(H36)<=5000),1200,1400)),IF(AND(N(H40)>=15,N(H40)<20),O38,IF(AND(N(H40)>=20,N(H40)<30),O39,O40)))))
B21: Cell L97
B23: =IF(ISERROR(N(K93)/(N(I96)-N(I72)-N(I73))),"",(ROUND((N(K93)/(N(I96)-N(I72)-N(I73))),1)))
B24: Changed to
B25: Subtract total Air Content
B27: =IF(ISERROR(N(K93)/(N(I96)-N(I72)-N(I73))),"",(ROUND((N(K93)/(N(I96)-N(I72)-N(I73))),1)))
B29: Cell B50 added text
B30: For Non-ACI 211 Mix Proptions, input below cells. For ACI 211 Design go to Matl Propterties Tab and Mix Proportions via ACI 211 Tab
B31: So, these input cells will not used as input for ACI 211 Tab, only for Non-ACI 211 design.
B33: Account the water contributions from Lithium Nitrate Admixture and Corrosion Inhibitor.
B34: Cell L70 added
B35: =IF(ISBLANK(H70),"", "Input at Left - Water Contribution (lbs/CY) ")
B36: Cell 69 added
B37: =IF(ISBLANK(H69),"", "Input at Left - Water Contribution (lbs/CY) ")
B38: Cell F53
B39: =IF(K53="","",IF((N(K52)+N(K69)+N(K70))/N(K53)=<N(H47),"",CONCATENATE("Exceeds Controlling W/Cm! ")))
B40: So use the total water (sum of Basic water + water from Lithium+ water from Corrosion) for W/Cm ratio
B43: 3. Materials Properties TAB
B44: Cells: H24 to H27
B45: Added Unit Weight (SSD) for coarse and intermediate aggregates
B47: 4.Mix Proportions via ACI 211 Tab
B48: Cell D57 changed label to Specified Water
B49: Cell E57 changed equations to input water, user has the option to specify the water
B50: Cell E58 changed equations to input Cement weight
B51: Cell G58 added
B52: =IF(E58="","",IF((N(L57)+N(L74)+N(L75))/N(E58)<=N(H53),"",CONCATENATE("Exceeds Controlling W/Cm! ")))
B54: Cell I 58 added
B55: =IF(E58="","",IF((E58)<='Mix Design'!H48,"",CONCATENATE("Cementitious content exceeds max! ")))
B58: G56 changed from fl oz. to fl oz./CY
B61: Cells K80 and K81
B63: =IF(H81="","",ROUND((L81/H81),2))
B64: Added 62.4*
B65: =IF(H81="","",ROUND((L81/(62.4*H81)),2))
B67: Cells H86 to H89
B68: =IF('Matl Properties'!D27="","",'Matl Properties'!D27)
B69: Changed D24-27 to H24 to H27 using SSD unit weight for CA SSD weight
B70: =IF('Matl Properties'!H27="","",'Matl Properties'!H27)
B72: Cell H62
B73: =IF('Matl Properties'!$C36="","",'Matl Properties'!$C36)
B74: Changed to
B75: =IF('Matl Properties'!$C37="","",'Matl Properties'!$C37)
B78: Cell H63
B79: =IF('Matl Properties'!$C37="","",'Matl Properties'!$C37)
B80: Changed to
B81: =IF('Matl Properties'!$C38="","",'Matl Properties'!$C38)
B83: Cell H64
B84: =IF('Matl Properties'!$C38="","",'Matl Properties'!$C38)
B85: Changed to
B86: =IF('Matl Properties'!$C39="","",'Matl Properties'!$C39)
B88: Cell H65
B89: =IF('Matl Properties'!$C39="","",'Matl Properties'!$C39)
B90: Changed to
B91: =IF('Matl Properties'!$C40="","",'Matl Properties'!$C40)
B93: Cell H66
B94: =IF('Matl Properties'!$C40="","",'Matl Properties'!$C40)
B95: Changed to
B96: =IF('Matl Properties'!$C41="","",'Matl Properties'!$C41)
B98: Cells G67 TO G75
B99: Changed as inputs, not from Mix Design Tab
B101: Cells H80 and H81
B102: =IF('Matl Properties'!ED45="","",'Matl Properties'!ED45)
B103: Changed Column ED to Column D
B104: =IF('Matl Properties'!D45="","",'Matl Properties'!D45)
B106: L74, L75 added equations for water from Lithium and Corrosion inhibitor
B107: =IF(ISBLANK(G75),"",K75*62.4*(1-'Matl Properties'!H41/100))
B109: Cells L80 and L81
B110: Changed as inputs, not from Mix Design Tab
B112: Cell J102
B113: =IF(ISERROR(K76+K78+SUM(K86:K89)+SUM(K93:K94)),"",K76+K78+SUM(K86:K89)+SUM(K93:K94))
B114: Added Specified Entapped Air K79=K76+K77+K78
B115: =IF(ISERROR(K79+SUM(K86:K89)+SUM(K93:K94)),"",K79+SUM(K86:K89)+SUM(K93:K94))
B117: 5. Non-Vol.Mixesr Tolerances Tab
B119: Cell B24
B120: Free (Surface) Moisture (%)
B121: Changed to Free Moisture ( + ) or Absorption ( - ) (%)
B123: Cell L37
B125: =ROUND((((N('Mix Proportions via ACI 211'!$L$57)-N('Mix Proportions via ACI 211'!$L$86)*E25-N('Mix Proportions via ACI 211'!$L$87)*F25-N('Mix Proportions via ACI 211'!$L$88)*G25-N('Mix Proportions via ACI 211'!$L$89)*H25-N('Mix Proportions via ACI 211'!$L$93)*I25-N('Mix Proportions via ACI 211'!$L$94)*J25-N('Mix Proportions via ACI 211'!O76))*$D$21)-G21),0)
B127: Changed to
B129: =ROUND((((N('Mix Proportions via ACI 211'!$L$57)-N('Mix Proportions via ACI 211'!$L$86)*E24/100-N('Mix Proportions via ACI 211'!$L$87)*F24/100-N('Mix Proportions via ACI 211'!$L$88)*G24/100-N('Mix Proportions via ACI 211'!$L$89)*H24/100-N('Mix Proportions via ACI 211'!$L$93)*I24/100-N('Mix Proportions via ACI 211'!$L$94)*J24/100-N('Mix Proportions via ACI 211'!O76))*$D$21)-G21),0)
B130: Frees water from CA, IA, FA from ACI 211 tab
B132: Cell M37
B134: =ROUND((((N('Mix Design'!$K$52)-N('Mix Design'!$K$78)*E25-N('Mix Design'!$K$79)*F25-N('Mix Design'!$K$80)*G25-N('Mix Design'!$K$81)*H25-N('Mix Design'!$K$82)*I25-N('Mix Design'!$K$83)*J25-N('Mix Proportions via ACI 211'!O76))*$D$21)-G21),0)
B136: Changed to
B137: =ROUND((((N('Mix Design'!$K$52)-N('Mix Design'!$K$78)*E24/100-N('Mix Design'!$K$79)*F24/100-N('Mix Design'!$K$80)*G24/100-N('Mix Design'!$K$81)*H24/100-N('Mix Design'!$K$82)*I24/100-N('Mix Design'!$K$83)*J24/100-N('Mix Proportions via ACI 211'!O76))*$D$21)-G21),0)
B138: Frees water from CA, IA, FA from Mix Design Tab
B140: Row 53, Row 54, Row 83, Row 84 added Fibers
B141: Fibers, wt | C141: ±2 | F141: 0 - 0 | G141: NA
B142: Other, wt | C142: ±2 | F142: 0 - 0 | G142: NA
B145: 6. Vol.Mixesr Tolerances Tab
B147: Same changes for Cell B24, Cell L37 and Cell M37 as Non-Vol.Mixesr Tolerances Tab
B148: Added Row 53 and Row 54 for Fibers
B150: 7. Trial Batch Tab -
B152: Cell J28
B154: =IF('Mix Proportions via ACI 211'!L104=0,CONCATENATE('Mix Design'!L98," lb/ft³"),CONCATENATE('Mix Proportions via ACI 211'!L104," lb/ft³"))
B156: Changed to get unit weight from Mix Design Tab first, then from ACI 211 tab
B158: =IF('Mix Design'!L98=0,CONCATENATE('Mix Proportions via ACI 211'!L104," lb/ft³"),CONCATENATE(' Mix Design'!L98," lb/ft³"))
A160: 2011-01-11 | B160: Unlocked fields for Fine Aggregate on MIX DESIGN sheet. Rows 82 & 83 Column H & F. Also added to UPLC | C160: SHD
A162: 2011-01-11 | B162: 1. Delete text at Cell B50 at MIX DESIGN sheet | C162: Hua Chen
B163: 2. Add ROUND(*****,2) for Cell F53 at MIX DESIGN sheet, and Cell G58 at Mix Proportion ACI211 sheet When w/c = 0.454, will not have warning for exceed w/c=0.45
B164: 3.Corrected Cell O39 MIX Design sheet in accordance with Table 6. (470 to 430, 620 to 580, 850 to 760, 1120 to 1010, 1390 to 1260)
B165: 4.Add IF(G25="","",G25) at Cell H34 MIX DESIGN sheet.So, for Class SS concrete, when no input for strength, will not have over design.

Sheet Hidden Tables (hidden)
A1: 2004 Concrete Classes
A2: Class | B2: Strength | C2: W/C | D2: Max. Nominal Aggregate | E2: Min. Nominal Aggregate | H2: Length to Diameter Ratio | I2: Correction Factor | N2: Select Water Adjustment Percentage
A3: CLASS A | B3: =IF(ISNUMBER('2004, Item 421 Info'!$B$8),'2004, Item 421 Info'!$B$8,"Input at right") -> 3000 | C3: =IF(ISNUMBER('2004, Item 421 Info'!$C$8),'2004, Item 421 Info'!$C$8,"Input at right") -> 0.6 | D3: 2 | E3: 0.375 | H3: 1 | I3: 0.87 | N3: -30
A4: CLASS B | B4: =IF(ISNUMBER('2004, Item 421 Info'!$B$9),'2004, Item 421 Info'!$B$9,"Input at right") -> 2000 | C4: =IF(ISNUMBER('2004, Item 421 Info'!$C$9),'2004, Item 421 Info'!$C$9,"Input at right") -> 0.6 | D4: 1.5 | E4: 0.375 | H4: 1.01 | I4: 0.8724 | N4: -29
A5: CLASS C | B5: =IF(ISNUMBER('2004, Item 421 Info'!$B$10),'2004, Item 421 Info'!$B$10,"Input at right") -> 3600 | C5: =IF(ISNUMBER('2004, Item 421 Info'!$C$10),'2004, Item 421 Info'!$C$10,"Input at right") -> 0.45 | D5: 2 | E5: 0.5 | H5: 1.02 | I5: 0.8748 | N5: -28
A6: CLASS C(HPC) | B6: =IF(ISNUMBER('2004, Item 421 Info'!$B$10),'2004, Item 421 Info'!$B$10,"Input at right") -> 3600 | C6: =IF(ISNUMBER('2004, Item 421 Info'!$C$10),'2004, Item 421 Info'!$C$10,"Input at right") -> 0.45 | D6: 2 | E6: 0.5 | H6: 1.03 | I6: 0.8772 | N6: -27
A7: CLASS CO | B7: =IF(ISNUMBER('2004, Item 421 Info'!$B$22),'2004, Item 421 Info'!$B$22,"Input at right") -> 4600 | C7: =IF(ISNUMBER('2004, Item 421 Info'!$C$22),'2004, Item 421 Info'!$C$22,"Input at right") -> 0.4 | D7: 0.5 | E7: 0.5 | H7: 1.04 | I7: 0.0896 | N7: -26
A8: CLASS D | B8: =IF(ISNUMBER('2004, Item 421 Info'!$B$12),'2004, Item 421 Info'!$B$12,"Input at right") -> 1500 | C8: =IF(ISNUMBER('2004, Item 421 Info'!$C$12),'2004, Item 421 Info'!$C$12,"Input at right") -> 0.6 | D8: 1.5 | E8: 0.375 | H8: 1.05 | I8: 0.882 | N8: -25
A9: CLASS DC | B9: =IF(ISNUMBER('2004, Item 421 Info'!$B$21),'2004, Item 421 Info'!$B$21,"Input at right") -> 5500 | C9: =IF(ISNUMBER('2004, Item 421 Info'!$C$21),'2004, Item 421 Info'!$C$21,"Input at right") -> 0.4 | D9: 0.5 | E9: 0.5 | H9: 1.06 | I9: 0.8844 | K9: Failure Types | N9: -24
A10: CLASS E | B10: =IF(ISNUMBER('2004, Item 421 Info'!$B$13),'2004, Item 421 Info'!$B$13,"Input at right") -> 3000 | C10: =IF(ISNUMBER('2004, Item 421 Info'!$C$13),'2004, Item 421 Info'!$C$13,"Input at right") -> 0.5 | D10: 1.5 | E10: 0.75 | H10: 1.07 | I10: 0.8868 | N10: -23
A11: CLASS F | B11: =IF(ISNUMBER('2004, Item 421 Info'!$B$14),'2004, Item 421 Info'!$B$14,"Input at right") -> Input at right | C11: =IF(ISNUMBER('2004, Item 421 Info'!$C$14),'2004, Item 421 Info'!$C$14,"Input at right") -> 0.45 | D11: 1.5 | E11: 0.75 | H11: 1.08 | I11: 0.8892 | K11: Type 1 | N11: -22
A12: CLASS F(HPC) | B12: =IF(ISNUMBER('2004, Item 421 Info'!$B$14),'2004, Item 421 Info'!$B$14,"Input at right") -> Input at right | C12: =IF(ISNUMBER('2004, Item 421 Info'!$C$14),'2004, Item 421 Info'!$C$14,"Input at right") -> 0.45 | D12: 1.5 | E12: 0.75 | H12: 1.09 | I12: 0.8916 | K12: Type 2 | N12: -21
A13: CLASS H | B13: =IF(ISNUMBER('2004, Item 421 Info'!$B$16),'2004, Item 421 Info'!$B$16,"Input at right") -> Input at right | C13: =IF(ISNUMBER('2004, Item 421 Info'!$C$16),'2004, Item 421 Info'!$C$16,"Input at right") -> 0.45 | D13: 1.5 | E13: 0.5 | H13: 1.1 | I13: 0.894 | K13: Type 3 | N13: -20
A14: CLASS H(HPC) | B14: =IF(ISNUMBER('2004, Item 421 Info'!$B$16),'2004, Item 421 Info'!$B$16,"Input at right") -> Input at right | C14: =IF(ISNUMBER('2004, Item 421 Info'!$C$16),'2004, Item 421 Info'!$C$16,"Input at right") -> 0.45 | D14: 1.5 | E14: 0.5 | H14: 1.11 | I14: 0.8964 | K14: Type 4 | N14: -19
A15: CLASS HES | B15: =IF(ISNUMBER('2004, Item 421 Info'!$B$26),'2004, Item 421 Info'!$B$26,"Input at right") -> Input at right | C15: =IF(ISNUMBER('2004, Item 421 Info'!$C$26),'2004, Item 421 Info'!$C$26,"Input at right") -> 0.45 | D15: Input at right | E15: Input at right | H15: 1.12 | I15: 0.8988 | K15: Type 5 | N15: -18
A16: CLASS K | B16: =IF(ISNUMBER('2004, Item 421 Info'!$B$25),'2004, Item 421 Info'!$B$25,"Input at right") -> Input at right | C16: =IF(ISNUMBER('2004, Item 421 Info'!$C$25),'2004, Item 421 Info'!$C$25,"Input at right") -> 0.45 | D16: Input at right | E16: Input at right | H16: 1.13 | I16: 0.9012 | K16: Type 6 | N16: -17
A17: CLASS LMC | B17: =IF(ISNUMBER('2004, Item 421 Info'!$B$23),'2004, Item 421 Info'!$B$23,"Input at right") -> 4000 | C17: =IF(ISNUMBER('2004, Item 421 Info'!$C$23),'2004, Item 421 Info'!$C$23,"Input at right") -> 0.4 | D17: 0.5 | E17: 0.375 | H17: 1.14 | I17: 0.9036 | N17: -16
A18: CLASS P | B18: =IF(ISNUMBER('2004, Item 421 Info'!$B$20),'2004, Item 421 Info'!$B$20,"Input at right") -> Input at right | C18: =IF(ISNUMBER('2004, Item 421 Info'!$C20),'2004, Item 421 Info'!$C$20,"Input at right") -> 0.45 | D18: 1.5 | E18: 0.5 | H18: 1.15 | I18: 0.906 | N18: -15
A19: CLASS S | B19: =IF(ISNUMBER('2004, Item 421 Info'!$B$18),'2004, Item 421 Info'!$B$18,"Input at right") -> 4000 | C19: =IF(ISNUMBER('2004, Item 421 Info'!$C$18),'2004, Item 421 Info'!$C$18,"Input at right") -> 0.45 | D19: 1.5 | E19: 0.75 | H19: 1.16 | I19: 0.9084 | N19: -14
A20: CLASS S(HPC) | B20: =IF(ISNUMBER('2004, Item 421 Info'!$B$18),'2004, Item 421 Info'!$B$18,"Input at right") -> 4000 | C20: =IF(ISNUMBER('2004, Item 421 Info'!$C$18),'2004, Item 421 Info'!$C$18,"Input at right") -> 0.45 | D20: 1.5 | E20: 0.75 | H20: 1.17 | I20: 0.9108 | N20: -13
A21: CLASS SS | B21: =IF(ISNUMBER('2004, Item 421 Info'!$B$24),'2004, Item 421 Info'!$B$24,"Input at right") -> Input at right | C21: =IF(ISNUMBER('2004, Item 421 Info'!$C$24),'2004, Item 421 Info'!$C$24,"Input at right") -> 0.45 | D21: 1 | E21: 0.5 | H21: 1.18 | I21: 0.9132 | N21: -12
A22: OTHER | B22: =IF(ISNUMBER('2004, Item 421 Info'!$B$24),'2004, Item 421 Info'!$B$24,"Input at right") -> Input at right | C22: =IF(ISNUMBER('2004, Item 421 Info'!$B$24),'2004, Item 421 Info'!$B$24,"Input at right") -> Input at right | D22: Input at right | E22: Input at right | H22: 1.19 | I22: 0.9156 | N22: -11
H23: 1.2 | I23: 0.918 | N23: -10
H24: 1.21 | I24: 0.9204 | N24: -9
H25: 1.22 | I25: 0.9228 | N25: -8
H26: 1.23 | I26: 0.9252 | N26: -7
H27: 1.24 | I27: 0.9276 | N27: -6
H28: 1.25 | I28: 0.93 | N28: -5
H29: 1.26 | I29: 0.9312 | N29: -4
A30: Tex-414-A Correction Factor Table | H30: 1.27 | I30: 0.9324 | N30: -3
A31: 70% Isopropyl Alcohol Used | D31: Correction Factor | H31: 1.28 | I31: 0.9336 | N31: -2
A32: Pints | B32: Ounces | C32: Liters | H32: 1.29 | I32: 0.9348 | N32: -1
A33: 1 | B33: 16 | C33: 0.5 | D33: 0 | H33: 1.3 | I33: 0.936 | N33: 0
A34: 2 | B34: 32 | C34: 0.9 | D34: 0 | H34: 1.31 | I34: 0.9372 | N34: 1
A35: 3 | B35: 48 | C35: 1.4 | D35: 0.25 | H35: 1.32 | I35: 0.9384 | N35: 2
A36: 4 | B36: 64 | C36: 1.9 | D36: 0.5 | H36: 1.33 | I36: 0.9396 | N36: 3
A37: 5 | B37: 80 | C37: 2.4 | D37: 0.75 | H37: 1.34 | I37: 0.9408 | N37: 4
H38: 1.35 | I38: 0.942 | N38: 5
H39: 1.36 | I39: 0.9432 | N39: 6
H40: 1.37 | I40: 0.9444 | N40: 7
H41: 1.38 | I41: 0.9456 | N41: 8
H42: 1.39 | I42: 0.9468 | N42: 9
H43: 1.4 | I43: 0.948 | N43: 10
H44: 1.41 | I44: 0.9492 | N44: 11
H45: 1.42 | I45: 0.9504 | N45: 12
H46: 1.43 | I46: 0.9516 | N46: 13
H47: 1.44 | I47: 0.9528 | N47: 14
H48: 1.45 | I48: 0.954 | N48: 15
H49: 1.46 | I49: 0.9552
H50: 1.47 | I50: 0.9564
H51: 1.48 | I51: 0.9576
H52: 1.49 | I52: 0.9588
H53: 1.5 | I53: 0.96
H54: 1.51 | I54: 0.9608
H55: 1.52 | I55: 0.9616
H56: 1.53 | I56: 0.9624
H57: 1.54 | I57: 0.9632
H58: 1.55 | I58: 0.964
H59: 1.56 | I59: 0.9648
H60: 1.57 | I60: 0.9656
H61: 1.58 | I61: 0.9664
H62: 1.59 | I62: 0.9672
H63: 1.6 | I63: 0.968
H64: 1.61 | I64: 0.9688
H65: 1.62 | I65: 0.9696
H66: 1.63 | I66: 0.9704
H67: 1.64 | I67: 0.9712
H68: 1.65 | I68: 0.972
H69: 1.66 | I69: 0.9728
H70: 1.67 | I70: 0.9736
H71: 1.68 | I71: 0.9744
H72: 1.69 | I72: 0.9752
H73: 1.7 | I73: 0.976
H74: 1.71 | I74: 0.9768
H75: 1.72 | I75: 0.9776
H76: 1.73 | I76: 0.9784
H77: 1.74 | I77: 0.9792
H78: 1.75 | I78: 0.98
H79: 1.76 | I79: 1
H80: 1.77 | I80: 1
H81: 1.78 | I81: 1
H82: 1.79 | I82: 1
H83: 1.8 | I83: 1
H84: 1.81 | I84: 1
H85: 1.82 | I85: 1
H86: 1.83 | I86: 1
H87: 1.84 | I87: 1
H88: 1.85 | I88: 1
H89: 1.86 | I89: 1
H90: 1.87 | I90: 1
H91: 1.88 | I91: 1
H92: 1.89 | I92: 1
H93: 1.9 | I93: 1
H94: 1.91 | I94: 1
H95: 1.92 | I95: 1
H96: 1.93 | I96: 1
H97: 1.94 | I97: 1
H98: 1.95 | I98: 1
H99: 1.96 | I99: 1
H100: 1.97 | I100: 1
H101: 1.98 | I101: 1
H102: 1.99 | I102: 1
H103: 2 | I103: 1
H104: 2.01 | I104: 1
H105: 2.02 | I105: 1
H106: 2.03 | I106: 1
H107: 2.04 | I107: 1
H108: 2.05 | I108: 1
H109: 2.06 | I109: 1
H110: 2.07 | I110: 1
H111: 2.08 | I111: 1
H112: 2.09 | I112: 1
H113: 2.1 | I113: 1
